Workbook

Sheet Index
A1: Number | B1: Spreadsheet | C1: Magazine | D1: Title | E1: Folder | F1: File Name | G1: Hyperlink
A2: 1 | B2: Rb-Sr_01 | C2: Geochimica et Cosmochimica Acta, 1991, Volume 55, Pages 829-848 | D2: Sm-Nd and Rb-Sr isotopic systematics of ureilites | E2: =("C:\Essays\Geo_Dating\Rubidium\") -> C:\Essays\Geo_Dating\Rubidium\ | F2: Rubidium_040.pdf | G2: =(E2 & F2) -> C:\Essays\Geo_Dating\Rubidium\Rubidium_040.pdf | H2: =(A2) -> 1 | I2: =(D2 & ", " & C2) -> Sm-Nd and Rb-Sr isotopic systematics of ureilites, Geochimica et Cosmochimica Acta, 1991, Volume 55, Pages 829-848
A3: 2 | B3: Rb-Sr_02 | C3: Journal Of Petrology, 2001, Volume 42, Number 7, Pages 1387-1400 | D3: Sr, Nd, Pb and Os Isotopes | E3: C:\Essays\Geo_Dating\Rubidium\ | F3: Rubidium_041.pdf | G3: C:\Essays\Geo_Dating\Rubidium\Rubidium_041.pdf | H3: =(A3) -> 2 | I3: =(D3 & ", " & C3) -> Sr, Nd, Pb and Os Isotopes, Journal Of Petrology, 2001, Volume 42, Number 7, Pages 1387-1400
A4: 3 | B4: Rb-Sr_03 | C4: Geochimica et Cosmochimica Acta, 2001, Volume 65, Number 22, Pages 4243–4255 | D4: Sr-Nd-Pb isotope systematics of mantle xenoliths | E4: C:\Essays\Geo_Dating\Rubidium\ | F4: Rubidium_042.pdf | G4: C:\Essays\Geo_Dating\Rubidium\Rubidium_042.pdf | H4: 3 | I4: Sr-Nd-Pb isotope systematics of mantle xenoliths, Geochimica et Cosmochimica Acta, 2001, Volume 65, Number 22, Pages 4243–4255
A5: 4 | B5: Rb-Sr_04 | C5: Geochimica et Cosmochimica Acta, 1997, Volume 61, Number 19, Pages 4181-4200 | D5: Strontium, neodymium, and lead isotope variations | E5: C:\Essays\Geo_Dating\Rubidium\ | F5: Rubidium_043.pdf | G5: C:\Essays\Geo_Dating\Rubidium\Rubidium_043.pdf | H5: 4 | I5: Strontium, neodymium, and lead isotope variations, Geochimica et Cosmochimica Acta, 1997, Volume 61, Number 19, Pages 4181-4200
A6: 5 | B6: Rb-Sr_05 | C6: Geochimica et Cosmochimica Acta, 2002, Volume 66, Number 10, Pages 1821–1837 | D6: Crystallization history of rhyolites at Long Valley | E6: C:\Essays\Geo_Dating\Rubidium\ | F6: Rubidium_044.pdf | G6: C:\Essays\Geo_Dating\Rubidium\Rubidium_044.pdf | H6: 5 | I6: Crystallization history of rhyolites at Long Valley, Geochimica et Cosmochimica Acta, 2002, Volume 66, Number 10, Pages 1821–1837
A7: 6 | B7: Rb-Sr_06 | C7: Geochimica et Cosmochimica Acta, 2003, Volume 67, Number 23, Pages 4577–4595 | D7: Fluid–rock interaction during progressive migration | E7: =("C:\Essays\Geo_Dating\Rubidium\") -> C:\Essays\Geo_Dating\Rubidium\ | F7: Rubidium_045.pdf | G7: C:\Essays\Geo_Dating\Rubidium\Rubidium_045.pdf | H7: 6 | I7: Fluid–rock interaction during progressive migration, Geochimica et Cosmochimica Acta, 2003, Volume 67, Number 23, Pages 4577–4595
A8: 7 | B8: Rb-Sr_07 | C8: Geochimica et Cosmochimica Acta, 2005, Volume 69, Number 24, Pages 5819–5830 | D8: Constraints on the U-Pb isotopic systematics | E8: C:\Essays\Geo_Dating\Rubidium\ | F8: Rubidium_046.pdf | G8: C:\Essays\Geo_Dating\Rubidium\Rubidium_046.pdf | H8: 7 | I8: Constraints on the U-Pb isotopic systematics, Geochimica et Cosmochimica Acta, 2005, Volume 69, Number 24, Pages 5819–5830
A9: 8 | B9: Rb-Sr_08 | C9: Canadian Journal Of Earth Science, 1987, Volume 24, Pages 24-30 | D9: Age and Radiogenic Isotopic Systematics | E9: C:\Essays\Geo_Dating\Rubidium\ | F9: Rubidium_047.pdf | G9: C:\Essays\Geo_Dating\Rubidium\Rubidium_047.pdf | H9: 8 | I9: Age and Radiogenic Isotopic Systematics, Canadian Journal Of Earth Science, 1987, Volume 24, Pages 24-30
A10: 9 | B10: Rb-Sr_09 | C10: Journal Of Petrology, 1998, Volume 39, Number 4, Pages 749–783 | D10: Crustal Age Domains | E10: C:\Essays\Geo_Dating\Rubidium\ | F10: Rubidium_048.pdf | G10: C:\Essays\Geo_Dating\Rubidium\Rubidium_048.pdf | H10: 9 | I10: Crustal Age Domains, Journal Of Petrology, 1998, Volume 39, Number 4, Pages 749–783
A11: 10 | B11: Rb-Sr_10 | C11: Journal Of Petrology, 2010, Volume 51, Number 7, Pages 1417-1445 | D11: Melt Peridotite Reactions | E11: C:\Essays\Geo_Dating\Rubidium\ | F11: Rubidium_049.pdf | G11: C:\Essays\Geo_Dating\Rubidium\Rubidium_049.pdf | H11: 10 | I11: Melt Peridotite Reactions, Journal Of Petrology, 2010, Volume 51, Number 7, Pages 1417-1445
A12: 11 | B12: Rb-Sr_11 | C12: Geochimica et Cosmochimica Acta, 2006, Volume 70, Pages 5990–6015 | D12: Feldspathic clasts in Yamato-86032 | E12: C:\Essays\Geo_Dating\Rubidium\ | F12: Rubidium_050.pdf | G12: C:\Essays\Geo_Dating\Rubidium\Rubidium_050.pdf | H12: 11 | I12: Feldspathic clasts in Yamato-86032, Geochimica et Cosmochimica Acta, 2006, Volume 70, Pages 5990–6015
A13: 12 | B13: Rb-Sr_12 | C13: Geochimica et Cosmochimica Acta, 2006, Volume 70, Pages 4950–4976 | D13: Cretaceous seamounts along the continent | E13: C:\Essays\Geo_Dating\Rubidium\ | F13: Rubidium_051.pdf | G13: C:\Essays\Geo_Dating\Rubidium\Rubidium_051.pdf | H13: 12 | I13: Cretaceous seamounts along the continent, Geochimica et Cosmochimica Acta, 2006, Volume 70, Pages 4950–4976
A14: 13 | B14: Rb-Sr_13 | C14: Geochimica et Cosmochimica Acta, 1998, Volume 62, Number 12, Pages 2179–2196 | D14: Petrology and geochemistry of target rocks | E14: C:\Essays\Geo_Dating\Rubidium\ | F14: Rubidium_052.pdf | G14: C:\Essays\Geo_Dating\Rubidium\Rubidium_052.pdf | H14: 13 | I14: Petrology and geochemistry of target rocks, Geochimica et Cosmochimica Acta, 1998, Volume 62, Number 12, Pages 2179–2196
A15: 14 | B15: Rb-Sr_14 | C15: Journal Of Geophysical Research, 1981, Volume 86, Number B11, Pages 10663-10680 | D15: Geochronology of the Deep Profile | E15: C:\Essays\Geo_Dating\Rubidium\ | F15: Rubidium_053.pdf | G15: C:\Essays\Geo_Dating\Rubidium\Rubidium_053.pdf | H15: 14 | I15: Geochronology of the Deep Profile, Journal Of Geophysical Research, 1981, Volume 86, Number B11, Pages 10663-10680
A16: 15 | B16: Rb-Sr_15 | C16: Geochimica et Cosmochimica Acta, 2009, Volume 73, Pages 3963–3980 | D16: Mechanisms for Incompatible-Element Enrichment | E16: C:\Essays\Geo_Dating\Rubidium\ | F16: Rubidium_054.pdf | G16: C:\Essays\Geo_Dating\Rubidium\Rubidium_054.pdf | H16: 15 | I16: Mechanisms for Incompatible-Element Enrichment, Geochimica et Cosmochimica Acta, 2009, Volume 73, Pages 3963–3980
A17: 16 | B17: Rb-Sr_16 | C17: Journal Of Petrology, 2001, Volume 42, Number 1, Pages 159-172 | D17: A Non-Cognate Origin Of The Gibeon Kimberlites | E17: C:\Essays\Geo_Dating\Rubidium\ | F17: Rubidium_055.pdf | G17: C:\Essays\Geo_Dating\Rubidium\Rubidium_055.pdf | H17: 16 | I17: A Non-Cognate Origin Of The Gibeon Kimberlites, Journal Of Petrology, 2001, Volume 42, Number 1, Pages 159-172
A18: 17 | B18: Rb-Sr_17 | C18: Chemical Geology 255 (2008) 329–345 | D18: Zircon U–Pb geochronology | E18: C:\Essays\Geo_Dating\Rubidium\ | F18: Rubidium_057.pdf | G18: =(E18 & F18) -> C:\Essays\Geo_Dating\Rubidium\Rubidium_057.pdf | H18: 17 | I18: Zircon U–Pb geochronology, Chemical Geology 255 (2008) 329–345
A19: 18 | B19: Rb-Sr_18 | C19: Geochimica et Cosmochimica Acta, 1997, Volume 61, Number 8, Pages 1713-1731 | D19: Radiometric ages of basaltic achondrites | E19: C:\Essays\Geo_Dating\Rubidium\ | F19: Rubidium_058.pdf | G19: C:\Essays\Geo_Dating\Rubidium\Rubidium_058.pdf | H19: 18 | I19: Radiometric ages of basaltic achondrites, Geochimica et Cosmochimica Acta, 1997, Volume 61, Number 8, Pages 1713-1731

Sheet Rb-Sr_01
A1: Neodymium | K1: Rubidium_040.pdf
A2: Samarium | B2: Initial | C2: Today | D2: Today | E2: The Ratio | F2: Half | G2: Decay | H2: 2.303/Delta | I2: Age | J2: Age | K2: Age | L2: Model Age | M2: Model Age | N2: Model Age
A3: Dating | B3: 143Nd/144Nd | C3: 143Nd/144Nd | D3: 147Sm/144Nd | E3: Plus One | F3: Life | G3: Constant | H3: Constant | I3: Years | J3: Million Years | K3: Billion Years | L3: Million Years | M3: % Difference | N3: Difference
B4: 0.5088 | C4: 0.514087 | D4: 0.1884 | E4: =1+((C4-B4)/D4) -> 1.028062633 | F4: 106000000000 | G4: =(0.693/F4) -> 6.537735849e-12 | H4: =(2.303/G4) -> 3.522626263e+11 | I4: =(LOG(E4))*(H4) -> 4234046705 | J4: =(I4/1000000) -> 4234.046705 | K4: =(J4/1000) -> 4.234046705
B5: 0.5088 | C5: 0.512405 | D5: 0.119 | E5: =1+((C5-B5)/D5) -> 1.030294118 | F5: 106000000000 | G5: 6.537735849e-12 | H5: =(2.303/G5) -> 3.522626263e+11 | I5: =(LOG(E5))*(H5) -> 4565753494 | J5: =(I5/1000000) -> 4565.753494 | K5: =(J5/1000) -> 4.565753494
B6: 0.5088 | C6: 0.5199 | D6: 0.348 | E6: 1.031896552 | F6: 106000000000 | G6: 6.537735849e-12 | H6: 3.522626263e+11 | I6: 4803509949 | J6: 4803.509949 | K6: 4.803509949
B7: 0.5088 | C7: 0.5188 | D7: 0.3454 | E7: 1.02895194 | F7: 106000000000 | G7: 6.537735849e-12 | H7: 3.522626263e+11 | I7: 4366327040 | J7: 4366.32704 | K7: 4.36632704
B8: 0.5088 | C8: 0.512321 | D8: 0.1165 | E8: 1.030223176 | F8: 106000000000 | G8: 6.537735849e-12 | H8: 3.522626263e+11 | I8: 4555219184 | J8: 4555.219184 | K8: 4.555219184
B9: 0.5088 | C9: 0.512267 | D9: 0.1143 | E9: 1.030332458 | F9: 106000000000 | G9: 6.537735849e-12 | H9: 3.522626263e+11 | I9: 4571446514 | J9: 4571.446514 | K9: 4.571446514
B10: 0.5088 | C10: 0.513031 | D10: 0.14 | E10: 1.030221429 | F10: 106000000000 | G10: 6.537735849e-12 | H10: 3.522626263e+11 | I10: 4554959700 | J10: 4554.9597 | K10: 4.5549597
B11: 0.5088 | C11: 0.512247 | D11: 0.116 | E11: 1.029715517 | F11: 106000000000 | G11: 6.537735849e-12 | H11: 3.522626263e+11 | I11: 4479814479 | J11: 4479.814479 | K11: 4.479814479
B12: 0.5088 | C12: 0.512254 | D12: 0.1263 | E12: 1.027347585 | F12: 106000000000 | G12: 6.537735849e-12 | H12: 3.522626263e+11 | I12: 4127603652 | J12: 4127.603652 | K12: 4.127603652 | M12: 3
B13: 0.5088 | C13: 0.51261 | D13: 0.1187 | E13: 1.032097725 | F13: 106000000000 | G13: 6.537735849e-12 | H13: 3.522626263e+11 | I13: 4833332408 | J13: 4833.332408 | K13: 4.833332408
B14: 0.5088 | C14: 0.512309 | D14: 0.12 | E14: 1.029241667 | F14: 106000000000 | G14: 6.537735849e-12 | H14: 3.522626263e+11 | I14: 4409397891 | J14: 4409.397891 | K14: 4.409397891
B15: 0.5088 | C15: 0.51517 | D15: 0.2293 | E15: 1.027780201 | F15: 106000000000 | G15: 6.537735849e-12 | H15: 3.522626263e+11 | I15: 4192012291 | J15: 4192.012291 | K15: 4.192012291
B16: 0.5088 | C16: 0.512634 | D16: 0.1175 | E16: 1.032629787 | F16: 106000000000 | G16: 6.537735849e-12 | H16: 3.522626263e+11 | I16: 4912178520 | J16: 4912.17852 | K16: 4.91217852
B17: 0.5088 | C17: 0.51333 | D17: 0.1588 | E17: 1.028526448 | F17: 106000000000 | G17: 6.537735849e-12 | H17: 3.522626263e+11 | I17: 4303051421 | J17: 4303.051421 | K17: 4.303051421
B18: 0.5088 | C18: 0.51728 | D18: 0.3157 | E18: 1.026860944 | F18: 106000000000 | G18: 6.537735849e-12 | H18: 3.522626263e+11 | I18: 4055119141 | J18: 4055.119141 | K18: 4.055119141
B19: 0.5088 | C19: 0.51683 | D19: 0.3472 | E19: 1.02312788 | F19: 106000000000 | G19: 6.537735849e-12 | H19: 3.522626263e+11 | I19: 3497939462 | J19: 3497.939462 | K19: 3.497939462
B20: 0.5088 | C20: 0.51639 | D20: 0.3349 | E20: 1.022663482 | F20: 106000000000 | G20: 6.537735849e-12 | H20: 3.522626263e+11 | I20: 3428483362 | J20: 3428.483362 | K20: 3.428483362
B21: 0.5088 | C21: 0.51636 | D21: 0.2793 | E21: 1.027067669 | F21: 106000000000 | G21: 6.537735849e-12 | H21: 3.522626263e+11 | I21: 4085914767 | J21: 4085.914767 | K21: 4.085914767
B22: 0.5088 | C22: 0.517277 | D22: 0.3498 | E22: 1.024233848 | F22: 106000000000 | G22: 6.537735849e-12 | H22: 3.522626263e+11 | I22: 3663222692 | J22: 3663.222692 | K22: 3.663222692
B23: 0.5088 | C23: 0.516589 | D23: 0.3264 | E23: 1.023863358 | F23: 106000000000 | G23: 6.537735849e-12 | H23: 3.522626263e+11 | I23: 3607874061 | J23: 3607.874061 | K23: 3.607874061
B24: 0.5088 | C24: 0.516825 | D24: 0.3142 | E24: 1.025541057 | F24: 106000000000 | G24: 6.537735849e-12 | H24: 3.522626263e+11 | I24: 3858350742 | J24: 3858.350742 | K24: 3.858350742
B25: 0.5088 | C25: 0.516854 | D25: 0.3139 | E25: 1.025657853 | F25: 106000000000 | G25: 6.537735849e-12 | H25: 3.522626263e+11 | I25: 3875772890 | J25: 3875.77289 | K25: 3.87577289 | M25: Dating | N25: Age | O25: Age
B26: 0.5088 | C26: 0.512554 | D26: 0.1942 | E26: 1.019330587 | F26: 106000000000 | G26: 6.537735849e-12 | H26: 3.522626263e+11 | I26: 2929083559 | J26: 2929.083559 | K26: 2.929083559 | M26: Summary | N26: 147Sm/144Nd | O26: 87Rb/86Sr
I27: Average | J27: =AVERAGE(J4:J26) -> 4170.017997 | M27: Average | N27: 4170.017997 | O27: 7759.179014
I28: Maximum | J28: =MAX(J4:J27) -> 4912.17852 | M28: Maximum | N28: 4912.17852 | O28: 19651.50411
I29: Minimum | J29: =MIN(J4:J28) -> 2929.083559 | M29: Minimum | N29: 2929.083559 | O29: 2423.046502
I30: Difference | J30: =(J28-ABS(J29)) -> 1983.094961 | M30: Difference | N30: 1983.094961 | O30: 17228.45761
A33: Rubidium
A34: Strontium | B34: Initial | C34: Today | D34: Today | E34: The Ratio | F34: Half | G34: Decay | H34: 2.303/Delta | I34: Age | J34: Age | K34: Age | L34: 87Rb/86Sr | M34: 87Rb/86Sr | N34: Model Age
A35: Dating | B35: 87Sr/86Sr | C35: 87Sr/86Sr | D35: 87Rb/86Sr | E35: Plus One | F35: Life | G35: Constant | H35: Constant | I35: Years | J35: Million Years | K35: Billion Years | L35: Age Sorted | M35: Age Sorted | N35: Difference
B36: 0.69897 | C36: 0.713139 | D36: 0.3989 | E36: =1+((C36-B36)/D36) -> 1.03552018 | F36: 48800000000 | G36: =(0.693/F36) -> 1.420081967e-11 | H36: =(2.303/G36) -> 1.621737374e+11 | I36: =(LOG(E36))*(H36) -> 2458321457 | J36: =(I36/1000000) -> 2458.321457 | K36: =(J36/1000) -> 2.458321457 | L36: 19651.50411 | M36: 10138.97415
B37: 0.69897 | C37: 0.712975 | D37: 0.3683 | E37: =1+((C37-B37)/D37) -> 1.038026066 | F37: 48800000000 | G37: 1.420081967e-11 | H37: =(2.303/G37) -> 1.621737374e+11 | I37: =(LOG(E37))*(H37) -> 2628553963 | J37: =(I37/1000000) -> 2628.553963 | K37: =(J37/1000) -> 2.628553963 | L37: 17418.71832 | M37: 8489.621096
B38: 0.69897 | C38: 0.710765 | D38: 0.224 | E38: 1.05265625 | F38: 48800000000 | G38: 1.420081967e-11 | H38: 1.621737374e+11 | I38: 3614296896 | J38: 3614.296896 | K38: 3.614296896 | L38: 14812.22937 | M38: 7714.327743
B39: 0.69897 | C39: 0.70866 | D39: 0.0414 | E39: 1.234057971 | F39: 48800000000 | G39: 1.420081967e-11 | H39: 1.621737374e+11 | I39: 1.481222937e+10 | J39: 14812.22937 | K39: 14.81222937 | L39: 13793.64409 | M39: 6819.220774
B40: 0.69897 | C40: 0.708697 | D40: 0.1226 | E40: 1.079339315 | F40: 48800000000 | G40: 1.420081967e-11 | H40: 1.621737374e+11 | I40: 5377356214 | J40: 5377.356214 | K40: 5.377356214 | L40: 11014.56657 | M40: 5377.356214
B41: 0.69897 | C41: 0.708662 | D41: 0.0448 | E41: 1.216339286 | F41: 48800000000 | G41: 1.420081967e-11 | H41: 1.621737374e+11 | I41: 1.379364409e+10 | J41: 13793.64409 | K41: 13.79364409
B42: 0.69897 | C42: 0.708594 | D42: 0.0343 | E42: 1.28058309 | F42: 48800000000 | G42: 1.420081967e-11 | H42: 1.621737374e+11 | I42: 1.741871832e+10 | J42: 17418.71832 | K42: 17.41871832
B43: 0.69897 | C43: 0.708872 | D43: 0.0974 | E43: 1.101663244 | F43: 48800000000 | G43: 1.420081967e-11 | H43: 1.621737374e+11 | I43: 6819220774 | J43: 6819.220774 | K43: 6.819220774
B44: 0.69897 | C44: 0.708709 | D44: 0.0629 | E44: 1.154833068 | F44: 48800000000 | G44: 1.420081967e-11 | H44: 1.621737374e+11 | I44: 1.013897415e+10 | J44: 10138.97415 | K44: 10.13897415
B45: 0.69897 | C45: 0.708818 | D45: 0.0306 | E45: 1.321830065 | F45: 48800000000 | G45: 1.420081967e-11 | H45: 1.621737374e+11 | I45: 1.965150411e+10 | J45: 19651.50411 | K45: 19.65150411
B46: 0.69897 | C46: 0.708602 | D46: 0.0569 | E46: 1.169279438 | F46: 48800000000 | G46: 1.420081967e-11 | H46: 1.621737374e+11 | I46: 1.101456657e+10 | J46: 11014.56657 | K46: 11.01456657
B47: 0.69897 | C47: 0.708629 | D47: 0.0754 | E47: 1.128103448 | F47: 48800000000 | G47: 1.420081967e-11 | H47: 1.621737374e+11 | I47: 8489621096 | J47: 8489.621096 | K47: 8.489621096
B48: 0.69897 | C48: 0.708647 | D48: 0.0836 | E48: 1.115753589 | F48: 48800000000 | G48: 1.420081967e-11 | H48: 1.621737374e+11 | I48: 7714327743 | J48: 7714.327743 | K48: 7.714327743 | L48: 14 | M48: 6
B49: 0.69897 | C49: 0.717444 | D49: 0.3267 | E49: 1.056547291 | F49: 48800000000 | G49: 1.420081967e-11 | H49: 1.621737374e+11 | I49: 3874158821 | J49: 3874.158821 | K49: 3.874158821 | L49: 17 | M49: 6
B50: 0.69897 | C50: 0.720566 | D50: 0.4345 | E50: 1.049703107 | F50: 48800000000 | G50: 1.420081967e-11 | H50: 1.621737374e+11 | I50: 3416430229 | J50: 3416.430229 | K50: 3.416430229
B51: 0.69897 | C51: 0.709404 | D51: 0.2981 | E51: 1.035001677 | F51: 48800000000 | G51: 1.420081967e-11 | H51: 1.621737374e+11 | I51: 2423046502 | J51: 2423.046502 | K51: 2.423046502
B52: 0.69897 | C52: 0.716029 | D52: 0.2359 | E52: 1.07231454 | F52: 48800000000 | G52: 1.420081967e-11 | H52: 1.621737374e+11 | I52: 4917463664 | J52: 4917.463664 | K52: 4.917463664
B53: 0.69897 | C53: 0.708661 | D53: 0.1508 | E53: 1.064263926 | F53: 48800000000 | G53: 1.420081967e-11 | H53: 1.621737374e+11 | I53: 4386692815 | J53: 4386.692815 | K53: 4.386692815
B54: 0.69897 | C54: 0.714085 | D54: 0.2304 | E54: 1.065603299 | F54: 48800000000 | G54: 1.420081967e-11 | H54: 1.621737374e+11 | I54: 4475274484 | J54: 4475.274484 | K54: 4.475274484
I55: Average | J55: =AVERAGE(J36:J54) -> 7759.179014
I56: Maximum | J56: =MAX(J36:J55) -> 19651.50411
I57: Minimum | J57: =MIN(J36:J56) -> 2423.046502
I58: Difference | J58: =(J56-ABS(J57)) -> 17228.45761

Sheet Rb-Sr _02
A1: Table 5 | F1: Age | G1: Age | J1: Dating | K1: Age | L1: Age | M1: Age | N1: Age
A2: 238U/204Pb | B2: 206Pb/204Pb | C2: 207Pb/204Pb | D2: 207Pb/206Pb | E2: 206Pb/238U | F2: 207Pb/206Pb | G2: 206Pb/238U | J2: Summary | K2: 207Pb/206Pb | L2: 206Pb/238U | M2: 87Rb/86Sr | N2: 147Sm/144Nd
A3: 5.1 | B3: 17.28 | C3: 15.49 | D3: =(C3/B3) -> 0.896412037 | E3: =(B3/A3) -> 3.388235294 | F3: =[1]!AgePb76(D3) -> 5083.221633 | G3: =[1]!AgePb6U8(E3) -> 9533.777039 | J3: Average | K3: 5069.013783 | L3: 9856.974161 | M3: 445.6531706 | N3: 446.7826171
A4: 3.33 | B4: 16.81 | C4: 15.45 | D4: =(C4/B4) -> 0.9190957763 | E4: =(B4/A4) -> 5.048048048 | F4: =[1]!AgePb76(D4) -> 5118.536296 | G4: =[1]!AgePb6U8(E4) -> 11601.84099 | J4: Maximum | K4: 5122.813701 | L4: 11601.84099 | M4: 447.5360008 | N4: 453.7394768
A5: 3.61 | B5: 16.77 | C5: 15.46 | D5: 0.9218843172 | E5: 4.645429363 | F5: =[1]!AgePb76(D5) -> 5122.813701 | G5: =[1]!AgePb6U8(E5) -> 11157.75185 | J5: Minimum | K5: 5025.651549 | L5: 6403.36109 | M5: 444.4190837 | N5: 439.3652388
A6: 10.64 | B6: 18.09 | C6: 15.57 | D6: 0.8606965174 | E6: 1.70018797 | F6: =[1]!AgePb76(D6) -> 5025.651549 | G6: =[1]!AgePb6U8(E6) -> 6403.36109 | J6: Difference | K6: 97.16215221 | L6: 5198.479898 | M6: 3.1169171 | N6: 14.37423797
A7: 4.22 | B7: 17.52 | C7: 15.54 | D7: 0.8869863014 | E7: 4.151658768 | F7: =[1]!AgePb76(D7) -> 5068.26783 | G7: =[1]!AgePb6U8(E7) -> 10567.72766
A8: 4.51 | B8: 17.79 | C8: 15.54 | D8: 0.8735244519 | E8: 3.944567627 | F8: =[1]!AgePb76(D8) -> 5046.615913 | G8: =[1]!AgePb6U8(E8) -> 10303.23626
A9: 3.8 | B9: 17.77 | C9: 15.55 | D9: 0.8750703433 | E9: 4.676315789 | F9: =[1]!AgePb76(D9) -> 5049.120239 | G9: =[1]!AgePb6U8(E9) -> 11192.92437
A10: 7.13 | B10: 17.9 | C10: 15.54 | D10: 0.8681564246 | E10: 2.510518934 | F10: =[1]!AgePb76(D10) -> 5037.883105 | G10: =[1]!AgePb6U8(E10) -> 8095.174028
E11: Average | F11: =AVERAGE(F3:F10) -> 5069.013783 | G11: =AVERAGE(G3:G10) -> 9856.974161
E12: Maximum | F12: =MAX(F3:F11) -> 5122.813701 | G12: =MAX(G3:G11) -> 11601.84099
E13: Minimum | F13: =MIN(F3:F12) -> 5025.651549 | G13: =MIN(G3:G12) -> 6403.36109
E14: Difference | F14: =(F12-ABS(F13)) -> 97.16215221 | G14: =(G12-ABS(G13)) -> 5198.479898
A17: Rubidium
A18: Strontium | B18: Initial | C18: Today | D18: Today | E18: The Ratio | F18: Half | G18: Decay | H18: 2.303/Delta | I18: Age | J18: Age | K18: Age
A19: Dating | B19: 87Sr/86Sr | C19: 87Sr/86Sr | D19: 87Rb/86Sr | E19: Plus One | F19: Life | G19: Constant | H19: Constant | I19: Years | J19: Million Years | K19: Billion Years
B20: 0.70946 | C20: 0.712875 | D20: 0.5387 | E20: =1+((C20-B20)/D20) -> 1.006339335 | F20: 48800000000 | G20: =(0.693/F20) -> 1.420081967e-11 | H20: =(2.303/G20) -> 1.621737374e+11 | I20: =(LOG(E20))*(H20) -> 445077481.8 | J20: =(I20/1000000) -> 445.0774818 | K20: =(J20/1000) -> 0.4450774818
B21: 0.7099 | C21: 0.711967 | D21: 0.3264 | E21: =1+((C21-B21)/D21) -> 1.006332721 | F21: 48800000000 | G21: =(0.693/F21) -> 1.420081967e-11 | H21: =(2.303/G21) -> 1.621737374e+11 | I21: =(LOG(E21))*(H21) -> 444614523.7 | J21: =(I21/1000000) -> 444.6145237 | K21: =(J21/1000) -> 0.4446145237
B22: 0.70978 | C22: 0.713238 | D22: 0.5443 | E22: 1.006353114 | F22: 48800000000 | G22: 1.420081967e-11 | H22: 1.621737374e+11 | I22: 446041808.6 | J22: 446.0418086 | K22: 0.4460418086
B23: 0.70731 | C23: 0.708332 | D23: 0.1605 | E23: 1.006367601 | F23: 48800000000 | G23: 1.420081967e-11 | H23: 1.621737374e+11 | I23: 447055706.9 | J23: 447.0557069 | K23: 0.4470557069
B24: 0.70726 | C24: 0.708638 | D24: 0.2168 | E24: 1.006356089 | F24: 48800000000 | G24: 1.420081967e-11 | H24: 1.621737374e+11 | I24: 446249981.1 | J24: 446.2499811 | K24: 0.4462499811
B25: 0.70729 | C25: 0.708628 | D25: 0.2099 | E25: 1.006374464 | F25: 48800000000 | G25: 1.420081967e-11 | H25: 1.621737374e+11 | I25: 447536000.8 | J25: 447.5360008 | K25: 0.4475360008
B26: 0.70626 | C26: 0.708369 | D26: 0.332 | E26: 1.00635241 | F26: 48800000000 | G26: 1.420081967e-11 | H26: 1.621737374e+11 | I26: 445992506.4 | J26: 445.9925064 | K26: 0.4459925064
B27: 0.70617 | C27: 0.707745 | D27: 0.2483 | E27: 1.006343133 | F27: 48800000000 | G27: 1.420081967e-11 | H27: 1.621737374e+11 | I27: 445343284.6 | J27: 445.3432846 | K27: 0.4453432846
B28: 0.70619 | C28: 0.707863 | D28: 0.2643 | E28: 1.006329928 | F28: 48800000000 | G28: 1.420081967e-11 | H28: 1.621737374e+11 | I28: 444419083.7 | J28: 444.4190837 | K28: 0.4444190837
B29: 0.70615 | C29: 0.707858 | D29: 0.2698 | E29: 1.006330615 | F29: 48800000000 | G29: 1.420081967e-11 | H29: 1.621737374e+11 | I29: 444467176.6 | J29: 444.4671766 | K29: 0.4444671766
B30: 0.71021 | C30: 0.713373 | D30: 0.4986 | E30: 1.006343763 | F30: 48800000000 | G30: 1.420081967e-11 | H30: 1.621737374e+11 | I30: 445387322.6 | J30: 445.3873226 | K30: 0.4453873226
I31: Average | J31: =AVERAGE(J20:J30) -> 445.6531706
I32: Maximum | J32: =MAX(J20:J31) -> 447.5360008
I33: Minimum | J33: =MIN(J20:J32) -> 444.4190837
I34: Difference | J34: =(J32-ABS(J33)) -> 3.1169171
K36: Rubidium_040.PDF
A37: Neodymium | B37: Initial | C37: Today | D37: Today | E37: The Ratio | F37: Half | G37: Decay | H37: 2.303/Delta | I37: Age | J37: Age | K37: Age
A38: Samarium | B38: 143Nd/144Nd | C38: 143Nd/144Nd | D38: 147Sm/144Nd | E38: Plus One | F38: Life | G38: Constant | H38: Constant | I38: Years | J38: Million Years | K38: Billion Years
A39: Dating | B39: 0.51134 | C39: 0.511644 | D39: 0.1031 | E39: =1+((C39-B39)/D39) -> 1.002948594 | F39: 106000000000 | G39: =(0.693/F39) -> 6.537735849e-12 | H39: =(2.303/G39) -> 3.522626263e+11 | I39: =(LOG(E39))*(H39) -> 450428959.1 | J39: =(I39/1000000) -> 450.4289591 | K39: =(J39/1000) -> 0.4504289591
B40: 0.51128 | C40: 0.511584 | D40: 0.1057 | E40: =1+((C40-B40)/D40) -> 1.002876064 | F40: 106000000000 | G40: 6.537735849e-12 | H40: =(2.303/G40) -> 3.522626263e+11 | I40: =(LOG(E40))*(H40) -> 439365238.8 | J40: =(I40/1000000) -> 439.3652388 | K40: =(J40/1000) -> 0.4393652388
B41: 0.51131 | C41: 0.511618 | D41: 0.1052 | E41: =1+((C41-B41)/D41) -> 1.002927757 | F41: 106000000000 | G41: =(0.693/F41) -> 6.537735849e-12 | H41: =(2.303/G41) -> 3.522626263e+11 | I41: =(LOG(E41))*(H41) -> 447250543 | J41: =(I41/1000000) -> 447.250543 | K41: =(J41/1000) -> 0.447250543
B42: 0.51151 | C42: 0.51181 | D42: 0.101 | E42: 1.002970297 | F42: 106000000000 | G42: 6.537735849e-12 | H42: 3.522626263e+11 | I42: 453739476.8 | J42: 453.7394768 | K42: 0.4537394768
B43: 0.51149 | C43: 0.511792 | D43: 0.102 | E43: 1.002960784 | F43: 106000000000 | G43: 6.537735849e-12 | H43: 3.522626263e+11 | I43: 452288470.1 | J43: 452.2884701 | K43: 0.4522884701
B44: 0.51151 | C44: 0.511802 | D44: 0.0999 | E44: 1.002922923 | F44: 106000000000 | G44: 6.537735849e-12 | H44: 3.522626263e+11 | I44: 446513208.2 | J44: 446.5132082 | K44: 0.4465132082
B45: 0.5119 | C45: 0.512307 | D45: 0.1389 | E45: 1.002930166 | F45: 106000000000 | G45: 6.537735849e-12 | H45: 3.522626263e+11 | I45: 447617999 | J45: 447.617999 | K45: 0.447617999
B46: 0.51188 | C46: 0.512269 | D46: 0.1344 | E46: 1.002894345 | F46: 106000000000 | G46: 6.537735849e-12 | H46: 3.522626263e+11 | I46: 442153910.2 | J46: 442.1539102 | K46: 0.4421539102
B47: 0.5119 | C47: 0.512293 | D47: 0.1344 | E47: 1.002924107 | F47: 106000000000 | G47: 6.537735849e-12 | H47: 3.522626263e+11 | I47: 446693848.8 | J47: 446.6938488 | K47: 0.4466938488
B48: 0.51187 | C48: 0.512291 | D48: 0.1436 | E48: 1.002931755 | F48: 106000000000 | G48: 6.537735849e-12 | H48: 3.522626263e+11 | I48: 447860426.8 | J48: 447.8604268 | K48: 0.4478604268
B49: 0.51104 | C49: 0.511353 | D49: 0.1085 | E49: 1.002884793 | F49: 106000000000 | G49: 6.537735849e-12 | H49: 3.522626263e+11 | I49: 440696707.8 | J49: 440.6967078 | K49: 0.4406967078
I50: Average | J50: =AVERAGE(J39:J49) -> 446.7826171
I51: Maximum | J51: =MAX(J39:J50) -> 453.7394768
I52: Minimum | J52: =MIN(J39:J51) -> 439.3652388
I53: Difference | J53: =(J51-ABS(J52)) -> 14.37423797
H56: Age | I56: Age
H57: 206Pb/238U | I57: 206Pb/238U
H58: 11601.84099 | I58: 10303.23626
H59: 11192.92437 | I59: 9533.777039
H60: 11157.75185 | I60: 8095.174028
H61: 10567.72766 | I61: 6403.36109

Sheet Rb-Sr _03
A1: Rubidium | K1: Rubidium_042.pdf
A2: Strontium | B2: Initial | C2: Today | D2: Today | E2: The Ratio | F2: Half | G2: Decay | H2: 2.303/Delta | I2: Age | J2: Age | K2: Age | L2: Model Age | M2: Model Age | N2: Model Age
A3: Dating | B3: 87Sr/86Sr | C3: 87Sr/86Sr | D3: 87Rb/86Sr | E3: Plus One | F3: Life | G3: Constant | H3: Constant | I3: Years | J3: Million Years | K3: Billion Years | L3: Million Years | M3: % Difference | N3: Difference
B4: 0.7052 | C4: 0.705403 | D4: 0.16 | E4: 1.00126875 | F4: 48800000000 | G4: 1.42008e-11 | H4: 162173737374 | I4: 89302894 | J4: 89 | K4: 0.09
B5: 0.7052 | C5: 0.705334 | D5: 0.12 | E5: 1.001116667 | F5: 48800000000 | G5: 1.42008e-11 | H5: 162173737374 | I5: 78604249 | J5: 79 | K5: 0.08
B6: 0.7052 | C6: 0.705248 | D6: 0.05 | E6: 1.00096 | F6: 48800000000 | G6: 1.42008e-11 | H6: 162173737374 | I6: 67581479 | J6: 68 | K6: 0.07
B7: 0.7052 | C7: 0.705243 | D7: 0.03 | E7: 1.001433333 | F7: 48800000000 | G7: 1.42008e-11 | H7: 162173737374 | I7: 100879049 | J7: 101 | K7: 0.1
B8: 0.7052 | C8: 0.705272 | D8: 0.07 | E8: 1.001028571 | F8: 48800000000 | G8: 1.42008e-11 | H8: 162173737374 | I8: 72406247 | J8: 72 | K8: 0.07
B9: 0.7051 | C9: 0.705677 | D9: 0.38 | E9: 1.001518421 | F9: 48800000000 | G9: 1.42008e-11 | H9: 162173737374 | I9: 106863044 | J9: 107 | K9: 0.11
B10: 0.7066 | C10: 0.706917 | D10: 0.2 | E10: 1.001585 | F10: 48800000000 | G10: 1.42008e-11 | H10: 162173737374 | I10: 111545011 | J10: 112 | K10: 0.11
B11: 0.7071 | C11: 0.707539 | D11: 0.29 | E11: 1.001513793 | F11: 48800000000 | G11: 1.42008e-11 | H11: 162173737374 | I11: 106537586 | J11: 107 | K11: 0.11
B12: 0.7057 | C12: 0.706093 | D12: 0.28 | E12: 1.001403571 | F12: 48800000000 | G12: 1.42008e-11 | H12: 162173737374 | I12: 98785853 | J12: 99 | K12: 0.1
B13: 0.7051 | C13: 0.705329 | D13: 0.16 | E13: 1.00143125 | F13: 48800000000 | G13: 1.42008e-11 | H13: 162173737374 | I13: 100732527 | J13: 101 | K13: 0.1
B14: 0.7055 | C14: 0.705637 | D14: 0.09 | E14: 1.001522222 | F14: 48800000000 | G14: 1.42008e-11 | H14: 162173737374 | I14: 107130358 | J14: 107 | K14: 0.11
B15: 0.7057 | C15: 0.705792 | D15: 0.1 | E15: 1.00092 | F15: 48800000000 | G15: 1.42008e-11 | H15: 162173737374 | I15: 64766878 | J15: 65 | K15: 0.06
B16: 0.7054 | C16: 0.705534 | D16: 0.1 | E16: 1.00134 | F16: 48800000000 | G16: 1.42008e-11 | H16: 162173737374 | I16: 94314577 | J16: 94 | K16: 0.09
B17: 0.706 | C17: 0.706203 | D17: 0.16 | E17: 1.00126875 | F17: 48800000000 | G17: 1.42008e-11 | H17: 162173737374 | I17: 89302894 | J17: 89 | K17: 0.09
B18: 0.7065 | C18: 0.706668 | D18: 0.09 | E18: 1.001866667 | F18: 48800000000 | G18: 1.42008e-11 | H18: 162173737374 | I18: 131348943 | J18: 131 | K18: 0.13
B19: 0.7047 | C19: 0.705188 | D19: 0.37 | E19: 1.001318919 | F19: 48800000000 | G19: 1.42008e-11 | H19: 162173737374 | I19: 92831783 | J19: 93 | K19: 0.09
B20: 0.7064 | C20: 0.706544 | D20: 0.14 | E20: 1.001028571 | F20: 48800000000 | G20: 1.42008e-11 | H20: 162173737374 | I20: 72406247 | J20: 72 | K20: 0.07
B21: 0.708 | C21: 0.709277 | D21: 0.93 | E21: 1.001373118 | F21: 48800000000 | G21: 1.42008e-11 | H21: 162173737374 | I21: 96643976 | J21: 97 | K21: 0.1
B22: 0.7095 | C22: 0.710015 | D22: 0.39 | E22: 1.001320513 | F22: 48800000000 | G22: 1.42008e-11 | H22: 162173737374 | I22: 92943895 | J22: 93 | K22: 0.09
B23: 0.7066 | C23: 0.706912 | D23: 0.25 | E23: 1.001248 | F23: 48800000000 | G23: 1.42008e-11 | H23: 162173737374 | I23: 87843284 | J23: 88 | K23: 0.09
B24: 0.707 | C24: 0.707152 | D24: 0.12 | E24: 1.001266667 | F24: 48800000000 | G24: 1.42008e-11 | H24: 162173737374 | I24: 89156348 | J24: 89 | K24: 0.09
B25: 0.708 | C25: 0.708065 | D25: 0.04 | E25: 1.001625 | F25: 48800000000 | G25: 1.42008e-11 | H25: 162173737374 | I25: 114357743 | J25: 114 | K25: 0.11
B26: 0.7066 | C26: 0.709693 | D26: 2.21 | E26: 1.001399548 | F26: 48800000000 | G26: 1.42008e-11 | H26: 162173737374 | I26: 98502840 | J26: 99 | K26: 0.1
B27: 0.7066 | C27: 0.706955 | D27: 0.27 | E27: 1.001314815 | F27: 48800000000 | G27: 1.42008e-11 | H27: 162173737374 | I27: 92543106 | J27: 93 | K27: 0.09
B28: 0.7071 | C28: 0.707234 | D28: 0.13 | E28: 1.001030769 | F28: 48800000000 | G28: 1.42008e-11 | H28: 162173737374 | I28: 72560882 | J28: 73 | K28: 0.07
B29: 0.7064 | C29: 0.70666 | D29: 0.2 | E29: 1.0013 | F29: 48800000000 | G29: 1.42008e-11 | H29: 162173737374 | I29: 91501044 | J29: 92 | K29: 0.09
B30: 0.7077 | C30: 0.708523 | D30: 0.56 | E30: 1.001469643 | F30: 48800000000 | G30: 1.42008e-11 | H30: 162173737374 | I30: 103432664 | J30: 103 | K30: 0.1
B31: 0.7085 | C31: 0.708533 | D31: 0.03 | E31: 1.0011 | F31: 48800000000 | G31: 1.42008e-11 | H31: 162173737374 | I31: 77431696 | J31: 77 | K31: 0.08
B32: 0.7085 | C32: 0.708867 | D32: 0.27 | E32: 1.001359259 | F32: 48800000000 | G32: 1.42008e-11 | H32: 162173737374 | I32: 95669200 | J32: 96 | K32: 0.1
B33: 0.7041 | C33: 0.704128 | D33: 0.04 | E33: 1.0007 | F33: 106000000000 | G33: 6.53774e-12 | H33: 352262626263 | I33: 107052536 | J33: 107 | K33: 0.11
B34: 0.7059 | C34: 0.706629 | D34: 0.54 | E34: 1.00135 | F34: 106000000000 | G34: 6.53774e-12 | H34: 352262626263 | I34: 206391432 | J34: 206 | K34: 0.21
B35: 0.7057 | C35: 0.706108 | D35: 0.27 | E35: 1.001511111 | F35: 106000000000 | G35: 6.53774e-12 | H35: 352262626263 | I35: 231003921 | J35: 231 | K35: 0.23 | M35: Dating | N35: Age | O35: Age | P35: Age | Q35: Age
B36: 0.7046 | C36: 0.70484 | D36: 0.16 | E36: 1.0015 | F36: 106000000000 | G36: 6.53774e-12 | H36: 352262626263 | I36: 229306635 | J36: 229 | K36: 0.23 | M36: Summary | N36: 87Rb/86Sr | O36: 147Sm/144Nd | P36: 206Pb/238U | Q36: 207Pb/206Pb
B37: 0.7056 | C37: 0.70611 | D37: 0.35 | E37: 1.001457143 | F37: 106000000000 | G37: 6.53774e-12 | H37: 352262626263 | I37: 222759784 | J37: 223 | K37: 0.22 | M37: Average | N37: 4349 | O37: 4349 | P37: 4349.107143 | Q37: 4974.357143
B38: 0.509388 | C38: 0.510906 | D38: 0.0913 | E38: 1.016626506 | F38: 106000000000 | G38: 6.53774e-12 | H38: 352262626263 | I38: 2522703671 | J38: 2523 | K38: 2.52 | M38: Maximum | N38: 9644 | O38: 9644 | P38: 9644 | Q38: 5092
B39: 0.509142 | C39: 0.510555 | D39: 0.085 | E39: 1.016623529 | F39: 106000000000 | G39: 6.53774e-12 | H39: 352262626263 | I39: 2522255739 | J39: 2522 | K39: 2.52 | M39: Minimum | N39: 1173 | O39: 1173 | P39: 1173 | Q39: 4904
I40: Average | J40: =AVERAGE(J4:J39) -> 242.8055556 | M40: Std Deviation | N40: 1991 | O40: 1991 | P40: 2198.740844 | Q40: 38.70412162
I41: Maximum | J41: =MAX(J4:J40) -> 2523
I42: Minimum | J42: =MIN(J4:J41) -> 65
I43: Std Deviation | J43: =STDEV(J4:J42) -> 652.6945934
A46: Neodymium | K46: Rubidium_042.pdf
A47: Samarium | B47: Initial | C47: Today | D47: Today | E47: The Ratio | F47: Half | G47: Decay | H47: 2.303/Delta | I47: Age | J47: Age | K47: Age | L47: Model Age | M47: Model Age | N47: Model Age
A48: Dating | B48: 143Nd/144Nd | C48: 143Nd/144Nd | D48: 147Sm/144Nd | E48: Plus One | F48: Life | G48: Constant | H48: Constant | I48: Years | J48: Million Years | K48: Billion Years | L48: Million Years | M48: % Difference | N48: Difference
B49: 0.512563 | C49: 0.512617 | D49: 0.0819 | E49: 1.000659341 | F49: 106000000000 | G49: 6.53774e-12 | H49: 352262626263 | I49: 100836463 | J49: 101 | K49: 0.1
B50: 0.512539 | C50: 0.512593 | D50: 0.0828 | E50: 1.000652174 | F50: 106000000000 | G50: 6.53774e-12 | H50: 352262626263 | I50: 99740772 | J50: 100 | K50: 0.1
B51: 0.512587 | C51: 0.51264 | D51: 0.0808 | E51: 1.000655941 | F51: 106000000000 | G51: 6.53774e-12 | H51: 352262626263 | I51: 100316643 | J51: 100 | K51: 0.1
B52: 0.51258 | C52: 0.512634 | D52: 0.0814 | E52: 1.000663391 | F52: 106000000000 | G52: 6.53774e-12 | H52: 352262626263 | I52: 101455646 | J52: 101 | K52: 0.1
B53: 0.512575 | C53: 0.512631 | D53: 0.085 | E53: 1.000658824 | F53: 106000000000 | G53: 6.53774e-12 | H53: 352262626263 | I53: 100757402 | J53: 101 | K53: 0.1
B54: 0.512671 | C54: 0.512763 | D54: 0.1411 | E54: 1.00065202 | F54: 106000000000 | G54: 6.53774e-12 | H54: 352262626263 | I54: 99717217 | J54: 100 | K54: 0.1
B55: 0.512611 | C55: 0.512676 | D55: 0.0984 | E55: 1.000660569 | F55: 106000000000 | G55: 6.53774e-12 | H55: 352262626263 | I55: 101024274 | J55: 101 | K55: 0.1
B56: 0.512562 | C56: 0.51262 | D56: 0.0875 | E56: 1.000662857 | F56: 106000000000 | G56: 6.53774e-12 | H56: 352262626263 | I56: 101374079 | J56: 101 | K56: 0.1
B57: 0.512705 | C57: 0.513049 | D57: 0.5256 | E57: 1.00065449 | F57: 106000000000 | G57: 6.53774e-12 | H57: 352262626263 | I57: 100094885 | J57: 100 | K57: 0.1
B58: 0.512643 | C58: 0.512701 | D58: 0.0879 | E58: 1.000659841 | F58: 106000000000 | G58: 6.53774e-12 | H58: 352262626263 | I58: 100912916 | J58: 101 | K58: 0.1
B59: 0.512676 | C59: 0.512732 | D59: 0.0864 | E59: 1.000648148 | F59: 106000000000 | G59: 6.53774e-12 | H59: 352262626263 | I59: 99125287 | J59: 99 | K59: 0.1
B60: 0.51269 | C60: 0.512829 | D60: 0.2135 | E60: 1.000651054 | F60: 106000000000 | G60: 6.53774e-12 | H60: 352262626263 | I60: 99569532 | J60: 100 | K60: 0.1
B61: 0.512699 | C61: 0.512755 | D61: 0.0853 | E61: 1.000656506 | F61: 106000000000 | G61: 6.53774e-12 | H61: 352262626263 | I61: 100403154 | J61: 100 | K61: 0.1
B62: 0.512585 | C62: 0.512648 | D62: 0.0964 | E62: 1.000653527 | F62: 106000000000 | G62: 6.53774e-12 | H62: 352262626263 | I62: 99947635 | J62: 100 | K62: 0.1
B63: 0.512595 | C63: 0.512657 | D63: 0.0944 | E63: 1.00065678 | F63: 106000000000 | G63: 6.53774e-12 | H63: 352262626263 | I63: 100444924 | J63: 100 | K63: 0.1
B64: 0.512568 | C64: 0.512621 | D64: 0.0806 | E64: 1.000657568 | F64: 106000000000 | G64: 6.53774e-12 | H64: 352262626263 | I64: 100565486 | J64: 101 | K64: 0.1
B65: 0.512602 | C65: 0.512807 | D65: 0.3137 | E65: 1.000653491 | F65: 106000000000 | G65: 6.53774e-12 | H65: 352262626263 | I65: 99942074 | J65: 100 | K65: 0.1
B66: 0.512594 | C66: 0.512655 | D66: 0.0938 | E66: 1.00065032 | F66: 106000000000 | G66: 6.53774e-12 | H66: 352262626263 | I66: 99457308 | J66: 99 | K66: 0.1
B67: 0.512599 | C67: 0.51267 | D67: 0.1094 | E67: 1.000648995 | F67: 106000000000 | G67: 6.53774e-12 | H67: 352262626263 | I67: 99254685 | J67: 99 | K67: 0.1
B68: 0.512568 | C68: 0.512655 | D68: 0.1324 | E68: 1.0006571 | F68: 106000000000 | G68: 6.53774e-12 | H68: 352262626263 | I68: 100493853 | J68: 100 | K68: 0.1
B69: 0.512567 | C69: 0.512646 | D69: 0.1207 | E69: 1.000654515 | F69: 106000000000 | G69: 6.53774e-12 | H69: 352262626263 | I69: 100098741 | J69: 100 | K69: 0.1
B70: 0.51255 | C70: 0.512829 | D70: 0.4272 | E70: 1.00065309 | F70: 106000000000 | G70: 6.53774e-12 | H70: 352262626263 | I70: 99880811 | J70: 100 | K70: 0.1
B71: 0.512763 | C71: 0.512847 | D71: 0.128 | E71: 1.00065625 | F71: 106000000000 | G71: 6.53774e-12 | H71: 352262626263 | I71: 100363947 | J71: 100 | K71: 0.1
B72: 0.512686 | C72: 0.512775 | D72: 0.1357 | E72: 1.000655859 | F72: 106000000000 | G72: 6.53774e-12 | H72: 352262626263 | I72: 100304094 | J72: 100 | K72: 0.1
B73: 0.512624 | C73: 0.512886 | D73: 0.3999 | E73: 1.000655164 | F73: 106000000000 | G73: 6.53774e-12 | H73: 352262626263 | I73: 100197881 | J73: 100 | K73: 0.1
B74: 0.512584 | C74: 0.512674 | D74: 0.1371 | E74: 1.000656455 | F74: 106000000000 | G74: 6.53774e-12 | H74: 352262626263 | I74: 100395310 | J74: 100 | K74: 0.1
B75: 0.512539 | C75: 0.512624 | D75: 0.1299 | E75: 1.000654349 | F75: 106000000000 | G75: 6.53774e-12 | H75: 352262626263 | I75: 100073388 | J75: 100 | K75: 0.1
B76: 0.512559 | C76: 0.512664 | D76: 0.1604 | E76: 1.000654613 | F76: 106000000000 | G76: 6.53774e-12 | H76: 352262626263 | I76: 100113745 | J76: 100 | K76: 0.1
B77: 0.51256 | C77: 0.512966 | D77: 0.6205 | E77: 1.000654311 | F77: 106000000000 | G77: 6.53774e-12 | H77: 352262626263 | I77: 100067508 | J77: 100 | K77: 0.1
B78: 0.51256 | C78: 0.512661 | D78: 0.1548 | E78: 1.000652455 | F78: 106000000000 | G78: 6.53774e-12 | H78: 352262626263 | I78: 99783712 | J78: 100 | K78: 0.1
B79: 0.512563 | C79: 0.512655 | D79: 0.1405 | E79: 1.000654804 | F79: 106000000000 | G79: 6.53774e-12 | H79: 352262626263 | I79: 100142916 | J79: 100 | K79: 0.1
B80: 0.512554 | C80: 0.512628 | D80: 0.112 | E80: 1.000660714 | F80: 106000000000 | G80: 6.53774e-12 | H80: 352262626263 | I80: 101046470 | J80: 101 | K80: 0.1
B81: 0.5126 | C81: 0.512694 | D81: 0.1451 | E81: 1.000647829 | F81: 106000000000 | G81: 6.53774e-12 | H81: 352262626263 | I81: 99076507 | J81: 99 | K81: 0.1
B82: 0.512609 | C82: 0.5127 | D82: 0.1395 | E82: 1.00065233 | F82: 106000000000 | G82: 6.53774e-12 | H82: 352262626263 | I82: 99764597 | J82: 100 | K82: 0.1
B83: 0.512584 | C83: 0.512999 | D83: 0.6334 | E83: 1.000655194 | F83: 106000000000 | G83: 6.53774e-12 | H83: 352262626263 | I83: 100202529 | J83: 100 | K83: 0.1
B84: 0.512585 | C84: 0.512662 | D84: 0.1177 | E84: 1.000654206 | F84: 106000000000 | G84: 6.53774e-12 | H84: 352262626263 | I84: 100051389 | J84: 100 | K84: 0.1
B85: 0.512624 | C85: 0.512749 | D85: 0.1904 | E85: 1.000656513 | F85: 106000000000 | G85: 6.53774e-12 | H85: 352262626263 | I85: 100404095 | J85: 100 | K85: 0.1
B86: 0.512523 | C86: 0.512886 | D86: 0.5551 | E86: 1.000653936 | F86: 106000000000 | G86: 6.53774e-12 | H86: 352262626263 | I86: 100010205 | J86: 100 | K86: 0.1
B87: 0.512588 | C87: 0.512686 | D87: 0.1488 | E87: 1.000658602 | F87: 106000000000 | G87: 6.53774e-12 | H87: 352262626263 | I87: 100723556 | J87: 101 | K87: 0.1
B88: 0.512591 | C88: 0.512687 | D88: 0.1456 | E88: 1.000659341 | F88: 106000000000 | G88: 6.53774e-12 | H88: 352262626263 | I88: 100836463 | J88: 101 | K88: 0.1
B89: 0.512594 | C89: 0.512911 | D89: 0.485 | E89: 1.000653608 | F89: 106000000000 | G89: 6.53774e-12 | H89: 352262626263 | I89: 99960061 | J89: 100 | K89: 0.1
B90: 0.512571 | C90: 0.512639 | D90: 0.1043 | E90: 1.000651965 | F90: 106000000000 | G90: 6.53774e-12 | H90: 352262626263 | I90: 99708906 | J90: 100 | K90: 0.1
B91: 0.512494 | C91: 0.512569 | D91: 0.115 | E91: 1.000652174 | F91: 106000000000 | G91: 6.53774e-12 | H91: 352262626263 | I91: 99740772 | J91: 100 | K91: 0.1
B92: 0.512541 | C92: 0.512639 | D92: 0.1501 | E92: 1.000652898 | F92: 106000000000 | G92: 6.53774e-12 | H92: 352262626263 | I92: 99851485 | J92: 100 | K92: 0.1
B93: 0.512421 | C93: 0.512797 | D93: 0.5752 | E93: 1.000653686 | F93: 106000000000 | G93: 6.53774e-12 | H93: 352262626263 | I93: 99971899 | J93: 100 | K93: 0.1
B94: 0.51249 | C94: 0.512554 | D94: 0.0973 | E94: 1.00065776 | F94: 106000000000 | G94: 6.53774e-12 | H94: 352262626263 | I94: 100594728 | J94: 101 | K94: 0.1
B95: 0.51264 | C95: 0.51272 | D95: 0.1218 | E95: 1.000656814 | F95: 106000000000 | G95: 6.53774e-12 | H95: 352262626263 | I95: 100450243 | J95: 100 | K95: 0.1
B96: 0.512866 | C96: 0.51298 | D96: 0.1745 | E96: 1.000653295 | F96: 106000000000 | G96: 6.53774e-12 | H96: 352262626263 | I96: 99912190 | J96: 100 | K96: 0.1
B97: 0.511971 | C97: 0.512058 | D97: 0.133 | E97: 1.000654135 | F97: 106000000000 | G97: 6.53774e-12 | H97: 352262626263 | I97: 100040646 | J97: 100 | K97: 0.1
B98: 0.511791 | C98: 0.511879 | D98: 0.1342 | E98: 1.000655738 | F98: 106000000000 | G98: 6.53774e-12 | H98: 352262626263 | I98: 100285625 | J98: 100 | K98: 0.1
B99: 0.512707 | C99: 0.512956 | D99: 0.3806 | E99: 1.00065423 | F99: 106000000000 | G99: 6.53774e-12 | H99: 352262626263 | I99: 100055143 | J99: 100 | K99: 0.1
I100: Average | J100: =AVERAGE(J49:J99) -> 100.1372549
I101: Maximum | J101: =MAX(J49:J100) -> 101
I102: Minimum | J102: =MIN(J49:J101) -> 99
I103: Std Deviation | J103: =STDEV(J49:J102) -> 0.5507370367
F106: 206Pb/238U | H106: 207Pb/206Pb | I106: Rubidium_042.pdf | J106: 206Pb/238U | K106: 207Pb/206Pb
B107: 238U/204Pb | C107: 206Pb/204Pb | D107: 207Pb/204Pb | E107: 206Pb/238U | F107: Age | G107: 207Pb/206Pb | H107: Age | J107: Age Sorted | K107: Age Sorted
A108: NK3–K1 | B108: 17 | C108: 18.485 | D108: 15.478 | E108: 1.087352941 | F108: 4744 | G108: 0.837327563 | H108: 4987 | J108: 9644 | K108: 5092
A109: NK3–K2 | B109: 14.6 | C109: 18.483 | D109: 15.466 | E109: 1.265958904 | F109: 5273 | G109: 0.836768923 | H109: 4986 | J109: 8218 | K109: 5001
A110: NK3–K3 | B110: 16.2 | C110: 18.712 | D110: 15.512 | E110: 1.155061728 | F110: 4950 | G110: 0.828986746 | H110: 4972 | J110: 7359 | K110: 4996
A111: NK3–K4 | B111: 8.8 | C111: 18.758 | D111: 15.513 | E111: 2.131590909 | F111: 7359 | G111: 0.827007144 | H111: 4969 | J111: 6417 | K111: 4992
A112: NK3–K5 | B112: 5.4 | C112: 18.704 | D112: 15.537 | E112: 3.463703704 | F112: 9644 | G112: 0.83067793 | H112: 4975 | J112: 6280 | K112: 4989
A113: NK3–20 | B113: 22.2 | C113: 18.823 | D113: 15.587 | E113: 0.847882883 | F113: 3958 | G113: 0.828082665 | H113: 4971 | J113: 5231 | K113: 4987
A114: NK1–4 | B114: 22.7 | C114: 18.675 | D114: 15.542 | E114: 0.822687225 | F114: 3870 | G114: 0.832235609 | H114: 4978 | J114: 5213 | K114: 4986
A115: NK2–3 | B115: 36.7 | C115: 19.147 | D115: 15.509 | E115: 0.521716621 | F115: 2706 | G115: 0.809996344 | H115: 4939 | J115: 5033 | K115: 4985
A116: NK1–23 | B116: 30.7 | C116: 18.6 | D116: 15.451 | E116: 0.605863192 | F116: 3053 | G116: 0.830698925 | H116: 4975 | J116: 4950 | K116: 4980
A117: NK2–10 | B117: 16.3 | C117: 19.287 | D117: 15.55 | E117: 1.183251534 | F117: 5033 | G117: 0.806242547 | H117: 4933 | J117: 4744 | K117: 4979
A118: NK1–14 | B118: 28.3 | C118: 18.771 | D118: 15.517 | E118: 0.663286219 | F118: 3280 | G118: 0.826647488 | H118: 4968 | J118: 4706 | K118: 4978
A119: NK1–2 | B119: 18.5 | C119: 18.587 | D119: 15.494 | E119: 1.004702703 | F119: 4483 | G119: 0.833593372 | H119: 4980 | K119: 4978
A120: NK1–12 | B120: 15.1 | C120: 18.798 | D120: 15.515 | E120: 1.244900662 | F120: 5213 | G120: 0.825353761 | H120: 4966 | K120: 4978
A121: NK1–3 | B121: 37.5 | C121: 18.407 | D121: 15.394 | E121: 0.490853333 | F121: 2574 | G121: 0.836312273 | H121: 4985 | K121: 4975
A122: NK2–4 | B122: 21.9 | C122: 18.994 | D122: 15.503 | E122: 0.867305936 | F122: 4026 | G122: 0.816205117 | H122: 4950 | K122: 4975
A123: NK2–1 | B123: 14.8 | C123: 18.52 | D123: 15.427 | E123: 1.251351351 | F123: 5231 | G123: 0.832991361 | H123: 4979 | K123: 4973
A124: NK1–9 | B124: 20.2 | C124: 18.614 | D124: 15.496 | E124: 0.921485149 | F124: 4210 | G124: 0.832491673 | H124: 4978 | K124: 4972
A125: NK1–1 | B125: 37.7 | C125: 18.571 | D125: 15.454 | E125: 0.492599469 | F125: 2582 | G125: 0.832157665 | H125: 4978 | K125: 4971
A126: NK3–11 | B126: 77.6 | C126: 19.193 | D126: 15.575 | E126: 0.247332474 | F126: 1425 | G126: 0.811493774 | H126: 4942 | K126: 4971
A127: NK3–25 | B127: 56.6 | C127: 18.314 | D127: 15.436 | E127: 0.323568905 | F127: 1807 | G127: 0.842852463 | H127: 4996 | K127: 4969
A128: NK1–5 | B128: 20.3 | C128: 18.426 | D128: 15.492 | E128: 0.907684729 | F128: 4164 | G128: 0.840768479 | H128: 4992 | K128: 4968
A129: NK3–16 | B129: 46.3 | C129: 18.377 | D129: 15.549 | E129: 0.396911447 | F129: 2155 | G129: 0.846111988 | H129: 5001 | K129: 4966
A130: NK1–7 | B130: 17.2 | C130: 18.494 | D130: 15.509 | E130: 1.075232558 | F130: 4706 | G130: 0.838596302 | H130: 4989 | K130: 4953
A131: NK2–2 | B131: 28.6 | C131: 18.682 | D131: 15.472 | E131: 0.653216783 | F131: 3241 | G131: 0.828176855 | H131: 4971 | K131: 4950
A132: NK3–4 | B132: 93.4 | C132: 18.641 | D132: 15.455 | E132: 0.199582441 | F132: 1173 | G132: 0.829086422 | H132: 4973 | K132: 4942
A133: NK2–7 | B133: 11.5 | C133: 18.964 | D133: 15.509 | E133: 1.649043478 | F133: 6280 | G133: 0.817812698 | H133: 4953 | K133: 4939
A134: NK3–17 | B134: 11.6 | C134: 19.788 | D134: 15.632 | E134: 1.705862069 | F134: 6417 | G134: 0.789973721 | H134: 4904 | K134: 4933
A135: NK3–1 | B135: 6.6 | C135: 17.015 | D135: 15.349 | E135: 2.578030303 | F135: 8218 | G135: 0.902086394 | H135: 5092 | K135: 4904
E136: Average | F136: =AVERAGE(F108:F135) -> 4349.107143 | H136: =AVERAGE(H108:H135) -> 4974.357143 | K136: =COUNT(K108:K135) -> 28
E137: Maximum | F137: =MAX(F108:F136) -> 9644 | H137: =MAX(H108:H136) -> 5092
E138: Minimum | F138: =MIN(F108:F137) -> 1173 | H138: =MIN(H108:H137) -> 4904
E139: Std Deviation | F139: =STDEV(F108:F138) -> 2198.740844 | H139: =STDEV(H108:H138) -> 38.70412162

Sheet Rb-Sr _04
D1: Rubidium_059.pdf
A2: Ratio | B2: Ratio | C2: Ratio | D2: Age
A3: 206Pb/204Pb | B3: 207Pb/204Pb | C3: 207Pb/206Pb | D3: Million Years
A4: 18.655 | B4: 15.609 | C4: =(B4/A4) -> 0.8367193782 | D4: =[1]!AgePb76($C$4) -> 4985.561444
A5: 18.941 | B5: 15.638 | C5: =(B5/A5) -> 0.8256163877 | D5: =[1]!AgePb76($C$5) -> 4966.581678
A6: 18.794 | B6: 15.605 | C6: 0.8303181867 | D6: =[1]!AgePb76($C$6) -> 4974.651983
A7: 18.925 | B7: 15.669 | C7: 0.8279524439 | D7: =[1]!AgePb76($C$7) -> 4970.597442
A8: 18.87 | B8: 15.637 | C8: 0.8286698463 | D8: =[1]!AgePb76($C$8) -> 4971.828265
A9: 18.722 | B9: 15.608 | C9: 0.8336716163 | D9: =[1]!AgePb76($C$9) -> 4980.378288
A10: 18.738 | B10: 15.617 | C10: 0.8334400683 | D10: =[1]!AgePb76($C$10) -> 4979.983685
A11: 18.615 | B11: 15.633 | C11: 0.8398066076 | D11: =[1]!AgePb76($C$11) -> 4990.791306
A12: 18.572 | B12: 15.588 | C12: 0.8393280207 | D12: =[1]!AgePb76($C$12) -> 4989.981904
A13: 18.649 | B13: 15.589 | C13: 0.8359161349 | D13: =[1]!AgePb76($C$13) -> 4984.197363
A14: 18.746 | B14: 15.636 | C14: 0.8340979409 | D14: =[1]!AgePb76($C$14) -> 4981.104525
A15: 18.588 | B15: 15.617 | C15: 0.8401656983 | D15: =[1]!AgePb76($C$15) -> 4991.39829
A16: 18.706 | B16: 15.605 | C16: 0.8342243131 | D16: =[1]!AgePb76($C$16) -> 4981.319722
A17: 18.627 | B17: 15.584 | C17: 0.8366349922 | D17: =[1]!AgePb76($C$17) -> 4985.418203
A18: 15.58 | B18: 15.6 | C18: 1.001283697 | D18: =[1]!AgePb76($C$18) -> 5239.174986
A19: 18.503 | B19: 15.584 | C19: 0.8422417986 | D19: =[1]!AgePb76($C$19) -> 4994.902205
A20: 18.61 | B20: 15.587 | C20: 0.8375604514 | D20: =[1]!AgePb76($C$20) -> 4986.988277
A21: 18.718 | B21: 15.57 | C21: 0.8318196389 | D21: =[1]!AgePb76($C$21) -> 4977.218891
A22: 18.875 | B22: 15.639 | C22: 0.8285562914 | D22: =[1]!AgePb76($C$22) -> 4971.633518
A23: 18.859 | B23: 15.624 | C23: 0.8284638634 | D23: =[1]!AgePb76($C$23) -> 4971.474983
A24: 18.605 | B24: 15.602 | C24: 0.8385917764 | D24: =[1]!AgePb76($C$24) -> 4988.735786
A25: 18.664 | B25: 15.595 | C25: 0.8355657951 | D25: =[1]!AgePb76($C$25) -> 4983.601974
A26: 18.293 | B26: 15.555 | C26: 0.850325261 | D26: =[1]!AgePb76($C$26) -> 5008.458107
A27: 18.663 | B27: 15.6114 | C27: 0.8364893104 | D27: =[1]!AgePb76($C$27) -> 4985.170881
A28: 18.621 | B28: 15.601 | C28: 0.8378175179 | D28: =[1]!AgePb76($C$28) -> 4987.424072
A29: 18.621 | B29: 15.59 | C29: 0.837226787 | D29: =[1]!AgePb76($C$29) -> 4986.422416
A30: 18.581 | B30: 15.578 | C30: 0.8383832948 | D30: =[1]!AgePb76($C$30) -> 4988.382712
A31: 18.627 | B31: 15.604 | C31: 0.8377087024 | D31: =[1]!AgePb76($C$31) -> 4987.239619
A32: 18.625 | B32: 15.611 | C32: 0.8381744966 | D32: =[1]!AgePb76($C$32) -> 4988.029009
A33: 18.981 | B33: 15.655 | C33: 0.8247721406 | D33: =[1]!AgePb76($C$33) -> 4965.127414
A34: 19.006 | B34: 15.62 | C34: 0.8218457329 | D34: =[1]!AgePb76($C$34) -> 4960.074235
A35: 19.024 | B35: 15.666 | C35: 0.8234861228 | D35: =[1]!AgePb76($C$35) -> 4962.909132
A36: 18.927 | B36: 15.658 | C36: 0.8272837745 | D36: =[1]!AgePb76($C$36) -> 4969.449207
A37: 18.912 | B37: 15.651 | C37: 0.827569797 | D37: =[1]!AgePb76($C$37) -> 4969.940483
A38: 18.936 | B38: 15.71 | C38: 0.8296366709 | D38: =[1]!AgePb76($C$38) -> 4973.485224
A39: 18.777 | B39: 15.625 | C39: 0.8321350588 | D39: =[1]!AgePb76($C$39) -> 4977.757512
A40: 18.776 | B40: 15.583 | C40: 0.8299424798 | D40: =[1]!AgePb76($C$40) -> 4974.008896
A41: 18.826 | B41: 15.589 | C41: 0.8280569425 | D41: =[1]!AgePb76($C$41) -> 4970.776797
A42: 18.891 | B42: 15.596 | C42: 0.8255783177 | D42: =[1]!AgePb76($C$42) -> 4966.516134
A43: 18.556 | B43: 15.633 | C43: 0.8424768269 | D43: =[1]!AgePb76($C$43) -> 4995.298293
A44: 18.871 | B44: 15.635 | C44: 0.8285199512 | D44: =[1]!AgePb76($C$44) -> 4971.571189
A45: 19.001 | B45: 15.618 | C45: 0.8219567391 | D45: =[1]!AgePb76($C$45) -> 4960.266264
A46: 18.56 | B46: 15.575 | C46: 0.8391702586 | D46: =[1]!AgePb76($C$46) -> 4989.714984
A47: 18.647 | B47: 15.563 | C47: 0.8346114657 | D47: =[1]!AgePb76($C$47) -> 4981.978781
C48: Average | D48: =AVERAGE(D4:D47) -> 4985.625593
C49: Maximum | D49: =MAX(D4:D48) -> 5239.174986
C50: Minimum | D50: =MIN(D4:D49) -> 4960.074235
C51: Std Deviation | D51: =STDEV(D4:D47) -> 40.48159504

Sheet Rb-Sr _05
A1: Rubidium | B1: TABLE 1. | K1: Rubidium_044.pdf
A2: Strontium | B2: Initial | C2: Today | D2: Today | E2: The Ratio | F2: Half | G2: Decay | H2: 2.303/Delta | I2: Age | J2: Age | K2: Age | L2: Model Age | M2: Model Age | N2: Model Age
A3: Dating | B3: 87Sr/86Sr | C3: 87Sr/86Sr | D3: 87Rb/86Sr | E3: Plus One | F3: Life | G3: Constant | H3: Constant | I3: Years | J3: Million Years | K3: Billion Years | L3: Million Years | M3: % Difference | N3: Difference
B4: 0.7063 | C4: 0.70633 | D4: 10.59 | E4: =1+((C4-B4)/D4) -> 1.000002833 | F4: 48800000000 | G4: =(0.693/F4) -> 1.420081967e-11 | H4: =(2.303/G4) -> 1.621737374e+11 | I4: =(LOG(E4))*(H4) -> 199521.415 | J4: =(I4/1000000) -> 0.199521415 | K4: =(J4/1000) -> 0.000199521415
B5: 0.7063 | C5: 0.706387 | D5: 28.76 | E5: 1.000003025 | F5: 48800000000 | G5: 1.420081967e-11 | H5: 1.621737374e+11 | I5: 213056.3834 | J5: 0.2130563834 | K5: 0.0002130563834
B6: 0.7063 | C6: 0.706284 | D6: 1.873 | E6: 0.9999914576 | F6: 48800000000 | G6: 1.420081967e-11 | H6: 1.621737374e+11 | I6: -601656.8934 | J6: -0.6016568934 | K6: -0.0006016568934
B7: 0.7063 | C7: 0.706351 | D7: 12.92 | E7: 1.000003947 | F7: 48800000000 | G7: 1.420081967e-11 | H7: 1.621737374e+11 | I7: 278017.1852 | J7: 0.2780171852 | K7: 0.0002780171852
B8: 0.7063 | C8: 0.706364 | D8: 23.84 | E8: 1.000002685 | F8: 48800000000 | G8: 1.420081967e-11 | H8: 1.621737374e+11 | I8: 189076.6838 | J8: 0.1890766838 | K8: 0.0001890766838
B9: 0.7063 | C9: 0.706304 | D9: 1.861 | E9: 1.000002149 | F9: 48800000000 | G9: 1.420081967e-11 | H9: 1.621737374e+11 | I9: 151383.3069 | J9: 0.1513833069 | K9: 0.0001513833069
B10: 0.7063 | C10: 0.706304 | D10: 1.044 | E10: 1.000003831 | F10: 48800000000 | G10: 1.420081967e-11 | H10: 1.621737374e+11 | I10: 269850.6679 | J10: 0.2698506679 | K10: 0.0002698506679
B11: 0.7063 | C11: 0.707454 | D11: 85.62 | E11: 1.000013478 | F11: 48800000000 | G11: 1.420081967e-11 | H11: 1.621737374e+11 | I11: 949275.9874 | J11: 0.9492759874 | K11: 0.0009492759874
B12: 0.7063 | C12: 0.706407 | D12: 1.52 | E12: 1.000070395 | F12: 48800000000 | G12: 1.420081967e-11 | H12: 1.621737374e+11 | I12: 4957808.421 | J12: 4.957808421 | K12: 0.004957808421
B13: 0.7063 | C13: 0.70633 | D13: 8.123 | E13: 1.000003693 | F13: 48800000000 | G13: 1.420081967e-11 | H13: 1.621737374e+11 | I13: 260117.0597 | J13: 0.2601170597 | K13: 0.0002601170597
B14: 0.7063 | C14: 0.706322 | D14: 10.45 | E14: 1.000002105 | F14: 48800000000 | G14: 1.420081967e-11 | H14: 1.621737374e+11 | I14: 148275.9687 | J14: 0.1482759687 | K14: 0.0001482759687
B15: 0.7063 | C15: 0.706284 | D15: 1.512 | E15: 0.999989418 | F15: 48800000000 | G15: 1.420081967e-11 | H15: 1.621737374e+11 | I15: -745307.2159 | J15: -0.7453072159 | K15: -0.0007453072159
B16: 0.7063 | C16: 0.706294 | D16: 1.4 | E16: 0.9999957143 | F16: 48800000000 | G16: 1.420081967e-11 | H16: 1.621737374e+11 | I16: -301848.4722 | J16: -0.3018484722 | K16: -0.0003018484722
B17: 0.7063 | C17: 0.706289 | D17: 2.85 | E17: 0.9999961404 | F17: 48800000000 | G17: 1.420081967e-11 | H17: 1.621737374e+11 | I17: -271840.0866 | J17: -0.2718400866 | K17: -0.0002718400866
B18: 0.7063 | C18: 0.7063 | D18: 0.9891 | E18: =1+((C18-B18)/D18) -> 1 | F18: 48800000000 | G18: =(0.693/F18) -> 1.420081967e-11 | H18: =(2.303/G18) -> 1.621737374e+11 | I18: =(LOG(E18))*(H18) -> 0 | J18: =(I18/1000000) -> 0 | K18: =(J18/1000) -> 0
B19: 0.7063 | C19: 0.70614 | D19: 2.931 | E19: 0.9999454111 | F19: 48800000000 | G19: 1.420081967e-11 | H19: 1.621737374e+11 | I19: -3844862.87 | J19: -3.84486287 | K19: -0.00384486287
B20: 0.7063 | C20: 0.706169 | D20: 3.758 | E20: 0.999965141 | F20: 48800000000 | G20: 1.420081967e-11 | H20: 1.621737374e+11 | I20: -2455200.287 | J20: -2.455200287 | K20: -0.002455200287
B21: 0.7063 | C21: 0.706109 | D21: 0.8371 | E21: 0.9997718313 | F21: 48800000000 | G21: 1.420081967e-11 | H21: 1.621737374e+11 | I21: -16072018.1 | J21: -16.0720181 | K21: -0.0160720181
B22: 0.7063 | C22: 0.706127 | D22: 3.639 | E22: 0.9999524595 | F22: 48800000000 | G22: 1.420081967e-11 | H22: 1.621737374e+11 | I22: -3348414.452 | J22: -3.348414452 | K22: -0.003348414452
B23: 0.7063 | C23: 0.706165 | D23: 4.554 | E23: 0.9999703557 | F23: 48800000000 | G23: 1.420081967e-11 | H23: 1.621737374e+11 | I23: -2087911.162 | J23: -2.087911162 | K23: -0.002087911162
B24: 0.7063 | C24: 0.706145 | D24: 0.7865 | E24: 0.9998029243 | F24: 48800000000 | G24: 1.420081967e-11 | H24: 1.621737374e+11 | I24: -13881634.51 | J24: -13.88163451 | K24: -0.01388163451
I25: Average | J25: =AVERAGE(J4:J24) -> -1.714014808
I26: Maximum | J26: =MAX(J4:J25) -> 4.957808421
I27: Minimum | J27: =MIN(J4:J26) -> -16.0720181
I28: Difference | J28: =(J26+ABS(J27)) -> 21.02982652
C31: 206Pb/204Pb | D31: 207Pb/204Pb | E31: 207Pb/206Pb | F31: Age
C32: 19.178 | D32: 15.69 | E32: =(D32/C32) -> 0.8181249348 | F32: =[1]!AgePb76($E$32) -> 4953.621644 | I32: Dating | J32: Age | K32: Age
C33: 19.183 | D33: 15.681 | E33: =(D33/C33) -> 0.8174425272 | F33: =[1]!AgePb76($E$33) -> 4952.434831 | I33: Summary | J33: 87Rb/86Sr | K33: 207Pb/206Pb
C34: 19.174 | D34: 15.665 | E34: 0.8169917597 | F34: =[1]!AgePb76($E$34) -> 4951.650297 | I34: Average | J34: -1.714014808 | K34: 4952.638458
C35: 19.178 | D35: 15.689 | E35: 0.8180727917 | F35: =[1]!AgePb76($E$35) -> 4953.530996 | I35: Maximum | J35: 4.957808421 | K35: 4953.943203
C36: 19.174 | D36: 15.673 | E36: 0.8174089913 | F36: =[1]!AgePb76($E$36) -> 4952.376479 | I36: Minimum | J36: -16.0720181 | K36: 4951.371583
C37: 19.181 | D37: 15.673 | E37: 0.8171106824 | F37: =[1]!AgePb76($E$37) -> 4951.85732 | I37: Difference | J37: 21.02982652 | K37: 2.571620171
C38: 19.182 | D38: 15.687 | E38: 0.8177979356 | F38: =[1]!AgePb76($E$38) -> 4953.053073
C39: 19.185 | D39: 15.677 | E39: 0.8171488142 | F39: =[1]!AgePb76($E$39) -> 4951.923693
C40: 19.178 | D40: 15.675 | E40: 0.8173427886 | F40: =[1]!AgePb76($E$40) -> 4952.261281
C41: 19.191 | D41: 15.696 | E41: 0.8178833828 | F41: =[1]!AgePb76($E$41) -> 4953.201668
C42: 19.19 | D42: 15.675 | E42: 0.8168316832 | F42: =[1]!AgePb76($E$42) -> 4951.371583
C43: 19.182 | D43: 15.678 | E43: 0.8173287457 | F43: =[1]!AgePb76($E$43) -> 4952.236844
C44: 19.175 | D44: 15.682 | E44: 0.8178357236 | F44: =[1]!AgePb76($E$44) -> 4953.118789
C45: 19.172 | D45: 15.685 | E45: 0.8181201753 | F45: =[1]!AgePb76($E$45) -> 4953.61337
C46: 19.198 | D46: 15.693 | E46: 0.8174288988 | F46: =[1]!AgePb76($E$46) -> 4952.411118
C47: 19.159 | D47: 15.678 | E47: 0.8183099327 | F47: =[1]!AgePb76($E$47) -> 4953.943203
C48: 19.185 | D48: 15.687 | E48: 0.8176700547 | F48: =[1]!AgePb76($E$48) -> 4952.830654
C49: 19.182 | D49: 15.676 | E49: 0.8172244813 | F49: =[1]!AgePb76($E$49) -> 4952.055392
E50: Average | F50: =AVERAGE(F32:F49) -> 4952.638458
E51: Maximum | F51: =MAX(F32:F50) -> 4953.943203
E52: Minimum | F52: =MIN(F32:F51) -> 4951.371583
E53: Difference | F53: =(F51-ABS(F52)) -> 2.571620171

Sheet Rb-Sr _06
A1: Rubidium | B1: TABLE 1. | K1: Rubidium_045.pdf
A2: Strontium | B2: Initial | C2: Today | D2: Today | E2: The Ratio | F2: Half | G2: Decay | H2: 2.303/Delta | I2: Age | J2: Age | K2: Age | L2: Model Age | M2: Model Age | N2: Model Age
A3: Dating | B3: 87Sr/86Sr | C3: 87Sr/86Sr | D3: 87Rb/86Sr | E3: Plus One | F3: Life | G3: Constant | H3: Constant | I3: Years | J3: Million Years | K3: Billion Years | L3: Million Years | M3: % Difference | N3: Difference
B4: 0.70459 | C4: 0.70459 | D4: 0.0001 | E4: =1+((C4-B4)/D4) -> 1 | F4: 48800000000 | G4: =(0.693/F4) -> 1.420081967e-11 | H4: =(2.303/G4) -> 1.621737374e+11 | I4: =(LOG(E4))*(H4) -> 0 | J4: =(I4/1000000) -> 0 | K4: =(J4/1000) -> 0
B5: 0.70459 | C5: 0.70459 | D5: 0.0001 | E5: 1 | F5: 48800000000 | G5: 1.420081967e-11 | H5: 1.621737374e+11 | I5: 0 | J5: 0 | K5: 0
B6: 0.70458 | C6: 0.70458 | D6: 0.0001 | E6: 1 | F6: 48800000000 | G6: 1.420081967e-11 | H6: 1.621737374e+11 | I6: 0 | J6: 0 | K6: 0
B7: 0.70456 | C7: 0.70456 | D7: 0.0001 | E7: 1 | F7: 48800000000 | G7: 1.420081967e-11 | H7: 1.621737374e+11 | I7: 0 | J7: 0 | K7: 0
B8: 0.70457 | C8: 0.70457 | D8: 0.0001 | E8: 1 | F8: 48800000000 | G8: 1.420081967e-11 | H8: 1.621737374e+11 | I8: 0 | J8: 0 | K8: 0
B9: 0.70458 | C9: 0.70458 | D9: 0.0001 | E9: 1 | F9: 48800000000 | G9: 1.420081967e-11 | H9: 1.621737374e+11 | I9: 0 | J9: 0 | K9: 0
B10: 0.70459 | C10: 0.70459 | D10: 0.0003 | E10: 1 | F10: 48800000000 | G10: 1.420081967e-11 | H10: 1.621737374e+11 | I10: 0 | J10: 0 | K10: 0
B11: 0.70459 | C11: 0.70459 | D11: 0.0001 | E11: 1 | F11: 48800000000 | G11: 1.420081967e-11 | H11: 1.621737374e+11 | I11: 0 | J11: 0 | K11: 0
B12: 0.70458 | C12: 0.70458 | D12: 0.0001 | E12: 1 | F12: 48800000000 | G12: 1.420081967e-11 | H12: 1.621737374e+11 | I12: 0 | J12: 0 | K12: 0
B13: 0.70457 | C13: 0.70457 | D13: 0.0001 | E13: 1 | F13: 48800000000 | G13: 1.420081967e-11 | H13: 1.621737374e+11 | I13: 0 | J13: 0 | K13: 0
B14: 0.70458 | C14: 0.70458 | D14: 0.0001 | E14: 1 | F14: 48800000000 | G14: 1.420081967e-11 | H14: 1.621737374e+11 | I14: 0 | J14: 0 | K14: 0
B15: 0.70484 | C15: 0.70484 | D15: 0.0001 | E15: 1 | F15: 48800000000 | G15: 1.420081967e-11 | H15: 1.621737374e+11 | I15: 0 | J15: =(I15/1000000) -> 0 | K15: =(J15/1000) -> 0
B16: 0.70455 | C16: 0.70455 | D16: 0.0001 | E16: 1 | F16: 48800000000 | G16: 1.420081967e-11 | H16: 1.621737374e+11 | I16: 0 | J16: 0 | K16: 0
B17: 0.70454 | C17: 0.70454 | D17: 0.0001 | E17: 1 | F17: 48800000000 | G17: 1.420081967e-11 | H17: 1.621737374e+11 | I17: 0 | J17: 0 | K17: 0
B18: 0.70459 | C18: 0.70459 | D18: 0.001 | E18: 1 | F18: 48800000000 | G18: 1.420081967e-11 | H18: 1.621737374e+11 | I18: 0 | J18: 0 | K18: 0
B19: 0.70501 | C19: 0.70501 | D19: 0.0006 | E19: 1 | F19: 48800000000 | G19: 1.420081967e-11 | H19: 1.621737374e+11 | I19: 0 | J19: =(I19/1000000) -> 0 | K19: =(J19/1000) -> 0
B20: 0.70494 | C20: 0.70494 | D20: 0.0006 | E20: 1 | F20: 48800000000 | G20: 1.420081967e-11 | H20: 1.621737374e+11 | I20: 0 | J20: =(I20/1000000) -> 0 | K20: =(J20/1000) -> 0
B21: 0.70482 | C21: 0.70482 | D21: 0.0003 | E21: 1 | F21: 48800000000 | G21: 1.420081967e-11 | H21: 1.621737374e+11 | I21: 0 | J21: 0 | K21: 0
B22: 0.70487 | C22: 0.70487 | D22: 0.001 | E22: 1 | F22: 48800000000 | G22: 1.420081967e-11 | H22: 1.621737374e+11 | I22: 0 | J22: 0 | K22: 0
B23: 0.70429 | C23: 0.7043 | D23: 0.007 | E23: =1+((C23-B23)/D23) -> 1.001428571 | F23: 48800000000 | G23: =(0.693/F23) -> 1.420081967e-11 | H23: =(2.303/G23) -> 1.621737374e+11 | I23: =(LOG(E23))*(H23) -> 100544141.6 | J23: 100.5441416 | K23: 0.1005441416
B24: 0.70478 | C24: 0.70478 | D24: 0.0001 | E24: 1 | F24: 48800000000 | G24: 1.420081967e-11 | H24: 1.621737374e+11 | I24: 0 | J24: 0 | K24: 0
B25: 0.70641 | C25: 0.70705 | D25: 0.352 | E25: 1.001818182 | F25: 48800000000 | G25: 1.420081967e-11 | H25: 1.621737374e+11 | I25: 127940379 | J25: 127.940379 | K25: 0.127940379
B26: 0.70643 | C26: 0.70718 | D26: 0.418 | E26: 1.001794258 | F26: 48800000000 | G26: 1.420081967e-11 | H26: 1.621737374e+11 | I26: 126258460.9 | J26: 126.2584609 | K26: 0.1262584609
B27: 0.70653 | C27: 0.70664 | D27: 0.0616 | E27: 1.001785714 | F27: 48800000000 | G27: 1.420081967e-11 | H27: 1.621737374e+11 | I27: 125657766.2 | J27: 125.6577662 | K27: 0.1256577662
B28: 0.70495 | C28: 0.70522 | D28: 0.15 | E28: 1.0018 | F28: 48800000000 | G28: 1.420081967e-11 | H28: 1.621737374e+11 | I28: 126662124.9 | J28: 126.6621249 | K28: 0.1266621249
B29: 0.70751 | C29: 0.70751 | D29: 0.0001 | E29: 1 | F29: 48800000000 | G29: 1.420081967e-11 | H29: 1.621737374e+11 | I29: 0 | J29: 0 | K29: 0
B30: 0.70758 | C30: 0.70758 | D30: 0.0002 | E30: 1 | F30: 48800000000 | G30: 1.420081967e-11 | H30: 1.621737374e+11 | I30: 0 | J30: 0 | K30: 0
B31: 0.71 | C31: 0.71 | D31: 0.04 | E31: 1 | F31: 48800000000 | G31: 1.420081967e-11 | H31: 1.621737374e+11 | I31: 0 | J31: 0 | K31: 0
B32: 0.70435 | C32: 0.70438 | D32: 0.006 | E32: 1.005 | F32: 48800000000 | G32: 1.420081967e-11 | H32: 1.621737374e+11 | I32: 351278330.4 | J32: 351.2783304 | K32: 0.3512783304 | M32: Dating | N32: 87Rb/86Sr | O32: 206Pb/238U | P32: 207Pb/235U | Q32: 207Pb/206Pb
B33: 0.70442 | C33: 0.70442 | D33: 0.0004 | E33: 1 | F33: 48800000000 | G33: 1.420081967e-11 | H33: 1.621737374e+11 | I33: 0 | J33: 0 | K33: 0 | M33: Summary | N33: Age | O33: Age | P33: Age | Q33: Age
H34: Average | I34: =AVERAGE(I4:I33) -> 31944706.77 | J34: =AVERAGE(J4:J33) -> 31.94470677 | M34: Average | N34: 31.94470677 | O34: 10874.22318 | P34: 5213.733196 | Q34: 4597.888464
H35: Maximum | I35: =MAX(I4:I34) -> 351278330.4 | J35: =MAX(J4:J34) -> 351.2783304 | M35: Maximum | N35: 351.2783304 | O35: 36764.01067 | P35: 10638.22921 | Q35: 5019.292309
H36: Minimum | I36: =MAX(I4:I35) -> 351278330.4 | J36: =MIN(J4:J35) -> 0 | M36: Minimum | N36: 0 | O36: 137.702672 | P36: 327.7386325 | Q36: 2047.316449
H37: Difference | I37: =(I35-ABS(I36)) -> 0 | J37: =(J35-ABS(J36)) -> 351.2783304 | M37: Difference | N37: 351.2783304 | O37: 36626.30799 | P37: 10310.49058 | Q37: 2971.97586
G40: 206Pb/238U | I40: 207Pb/235U | K40: 207Pb/206Pb | M40: 206Pb/238U | N40: 207Pb/235U | O40: 207Pb/206Pb
A41: 238U/204Pb | B41: 235U/204Pb | C41: 206Pb/204Pb | D41: 207Pb/204Pb | E41: 208Pb/204Pb | F41: 206Pb/238U | G41: Age | H41: 207Pb/235U | I41: Age | J41: 207Pb/206Pb | K41: Age | M41: Age Sorted | N41: Age Sorted | O41: Age Sorted
A42: 33.12 | B42: 0.24 | C42: 19.26 | D42: 15.641 | E42: 75.266 | F42: =(C42/A42) -> 0.5815217391 | G42: =[1]!AgePb6U8(F42) -> 2954.955743 | H42: =(D42/B42) -> 65.17083333 | I42: =[1]!AgePb7U5(H42) -> 4256.72923 | J42: =(D42/C42) -> 0.8120976116 | K42: =[1]!AgePb76($J$42) -> 4943.102581 | M42: 36764.01067 | N42: 10638.22921 | O42: 5019.292309
A43: 962.8 | B43: 6.98 | C43: 32.293 | D43: 16.268 | E43: 45.992 | F43: =(C43/A43) -> 0.03354071458 | G43: =[1]!AgePb6U8(F43) -> 212.6703898 | H43: =(D43/B43) -> 2.330659026 | I43: =[1]!AgePb7U5(H43) -> 1221.678621 | J43: =(D43/C43) -> 0.5037624253 | K43: =[1]!AgePb76($J$43) -> 4252.256141 | M43: 25352.73495 | N43: 8815.601802 | O43: 5012.540629
A44: 8800 | B44: 63 | C44: 190 | D44: 24 | E44: 240 | F44: 0.02159090909 | G44: =[1]!AgePb6U8(F44) -> 137.702672 | H44: 0.380952381 | I44: =[1]!AgePb7U5(H44) -> 327.7386325 | J44: 0.1263157895 | K44: =[1]!AgePb76($J$44) -> 2047.316449 | M44: 22727.63874 | N44: 8371.775049 | O44: 5000.109728
A45: 86.86 | B45: 0.63 | C45: 20.077 | D45: 15.684 | E45: 46.973 | F45: 0.2311420677 | G45: =[1]!AgePb6U8(F45) -> 1340.481862 | H45: 24.8952381 | I45: =[1]!AgePb7U5(H45) -> 3304.116459 | J45: 0.7811924092 | K45: =[1]!AgePb76($J$45) -> 4887.827389 | M45: 17109.68942 | N45: 7448.504387 | O45: 4990.010869
A46: 0.56 | B46: 0.0041 | C46: 18.466 | D46: 15.61 | E46: 38.752 | F46: 32.975 | G46: =[1]!AgePb6U8(F46) -> 22727.63874 | H46: 3807.317073 | I46: =[1]!AgePb7U5(H46) -> 8371.775049 | J46: 0.8453373768 | K46: =[1]!AgePb76($J$46) -> 5000.109728 | M46: 7145.054447 | N46: 5516.795023 | O46: 4943.102581
A47: 22.74 | B47: 0.165 | C47: 21.71 | D47: 15.628 | E47: 40.426 | F47: 0.954705365 | G47: =[1]!AgePb6U8(F47) -> 4320.641248 | H47: 94.71515152 | I47: =[1]!AgePb7U5(H47) -> 4631.544508 | J47: 0.7198526025 | K47: =[1]!AgePb76($J$47) -> 4770.865839 | N47: 4631.544508 | O47: 4937.249874
A48: 0.366 | B48: 0.00265 | C48: 18.319 | D48: 15.622 | E48: 38.348 | F48: 50.05191257 | G48: =[1]!AgePb6U8(F48) -> 25352.73495 | H48: 5895.09434 | I48: =[1]!AgePb7U5(H48) -> 8815.601802 | J48: 0.8527758065 | K48: =[1]!AgePb76($J$48) -> 5012.540629 | O48: 4887.827389
A49: 1.41 | B49: 0.0102 | C49: 18.63 | D49: 15.637 | E49: 38.737 | F49: 13.21276596 | G49: =[1]!AgePb6U8(F49) -> 17109.68942 | H49: 1533.039216 | I49: =[1]!AgePb7U5(H49) -> 7448.504387 | J49: 0.8393451422 | K49: =[1]!AgePb76($J$49) -> 4990.010869 | O49: 4770.865839
A50: 0.061 | B50: 0.00044 | C50: 18.225 | D50: 15.616 | E50: 38.172 | F50: 298.7704918 | G50: =[1]!AgePb6U8(F50) -> 36764.01067 | H50: 35490.90909 | I50: =[1]!AgePb7U5(H50) -> 10638.22921 | J50: 0.8568449931 | K50: =[1]!AgePb76($J$50) -> 5019.292309
A51: 9.58 | B51: 0.069 | C51: 19.442 | D51: 15.724 | E51: 37.853 | F51: 2.029436326 | G51: =[1]!AgePb6U8(F51) -> 7145.054447 | H51: 227.884058 | I51: =[1]!AgePb7U5(H51) -> 5516.795023 | J51: 0.8087645304 | K51: =[1]!AgePb76($J$51) -> 4937.249874
A52: 157.1 | B52: 1.14 | C52: 42.729 | D52: 17.156 | E52: 38.202 | F52: 0.2719859962 | G52: =[1]!AgePb6U8(F52) -> 1550.874814 | H52: 15.04912281 | I52: =[1]!AgePb7U5(H52) -> 2818.352231 | J52: 0.4015071731 | K52: =[1]!AgePb76($J$52) -> 3914.731999
C53: 18.18 | D53: 15.539 | E53: 38.652 | F53: 0 | H53: 0 | J53: 0.854730473 | K53: =[1]!AgePb76($J$53) -> 5015.788113
C54: 18.685 | D54: 15.589 | E54: 39.135 | F54: 0 | H54: 0 | J54: 0.8343055927 | K54: =[1]!AgePb76($J$54) -> 4981.458113
F55: Average | G55: =AVERAGE(G42:G54) -> 10874.22318 | I55: =AVERAGE(I42:I54) -> 5213.733196 | K55: =AVERAGE(K42:K54) -> 4597.888464
F56: Maximum | G56: =MAX(G42:G55) -> 36764.01067 | I56: =MAX(I42:I55) -> 10638.22921 | K56: =MAX(K42:K55) -> 5019.292309
F57: Minimum | G57: =MIN(G42:G56) -> 137.702672 | I57: =MIN(I42:I56) -> 327.7386325 | K57: =MIN(K42:K56) -> 2047.316449
F58: Difference | G58: =(G56-ABS(G57)) -> 36626.30799 | I58: =(I56-ABS(I57)) -> 10310.49058 | K58: =(K56-ABS(K57)) -> 2971.97586

Sheet Rb-Sr _07
A1: Rubidium | B1: TABLE 1. | K1: Rubidium_046.pdf
A2: Strontium | B2: Initial | C2: Today | D2: Today | E2: The Ratio | F2: Half | G2: Decay | H2: 2.303/Delta | I2: Age | J2: Age | K2: Age | L2: Model Age | M2: Model Age | N2: Model Age
A3: Dating | B3: 87Sr/86Sr | C3: 87Sr/86Sr | D3: 87Rb/86Sr | E3: Plus One | F3: Life | G3: Constant | H3: Constant | I3: Years | J3: Million Years | K3: Billion Years | L3: Million Years | M3: % Difference | N3: Difference
B4: 0.69903 | C4: 0.71369 | D4: 0.2375 | E4: =1+((C4-B4)/D4) -> 1.061726316 | F4: 48800000000 | G4: =(0.693/F4) -> 1.420081967e-11 | H4: =(2.303/G4) -> 1.621737374e+11 | I4: =(LOG(E4))*(H4) -> 4218557617 | J4: =(I4/1000000) -> 4218.557617 | K4: =(J4/1000) -> 4.218557617
B5: 0.69903 | C5: 0.70053 | D5: 0.01634 | E5: =1+((C5-B5)/D5) -> 1.091799266 | F5: 48800000000 | G5: =(0.693/F5) -> 1.420081967e-11 | H5: =(2.303/G5) -> 1.621737374e+11 | I5: =(LOG(E5))*(H5) -> 6185760080 | J5: =(I5/1000000) -> 6185.76008 | K5: =(J5/1000) -> 6.18576008
B6: 0.69903 | C6: 0.705463 | D6: 0.1035 | E6: 1.062154589 | F6: 48800000000 | G6: 1.420081967e-11 | H6: 1.621737374e+11 | I6: 4246962040 | J6: 4246.96204 | K6: 4.24696204
B7: 0.69903 | C7: 0.748935 | D7: 0.8386 | E7: 1.059509897 | F7: 48800000000 | G7: 1.420081967e-11 | H7: 1.621737374e+11 | I7: 4071374603 | J7: 4071.374603 | K7: 4.071374603
B8: 0.69903 | C8: 0.705221 | D8: 0.09241 | E8: 1.066994914 | F8: 48800000000 | G8: 1.420081967e-11 | H8: 1.621737374e+11 | I8: 4567193437 | J8: 4567.193437 | K8: 4.567193437
B9: 0.69903 | C9: 0.725513 | D9: 0.4424 | E9: 1.059862116 | F9: 48800000000 | G9: 1.420081967e-11 | H9: 1.621737374e+11 | I9: 4094784502 | J9: 4094.784502 | K9: 4.094784502
B10: 0.69903 | C10: 0.725716 | D10: 0.4428 | E10: 1.060266486 | F10: 48800000000 | G10: 1.420081967e-11 | H10: 1.621737374e+11 | I10: 4121651048 | J10: 4121.651048 | K10: 4.121651048
I11: Average | J11: =AVERAGE(J4:J10) -> 4500.897618
I12: Maximum | J12: =MAX(J4:J11) -> 6185.76008
I13: Minimum | J13: =MIN(J4:J12) -> 4071.374603
I14: Difference | J14: =(J12-ABS(J13)) -> 2114.385477
D17: Age | I17: Age | M17: Age
C18: 207Pb/206Pb | D18: 207Pb/206Pb | E18: 238U | F18: 206Pb | G18: 238U/204Pb | H18: 206Pb/238U | I18: 206Pb/238U | J18: 207Pb/204Pb | K18: 206Pb/204Pb | L18: 206Pb/238U | M18: 206Pb/238U | P18: 207Pb/206Pb | R18: 206Pb/238U | T18: 206Pb/238U
B19: Wr | C19: =(J19/K19) -> 0.9199973221 | D19: =[1]!AgePb76($C$19) -> 5119.920699 | E19: 13 | F19: 23 | G19: 8.427 | H19: =(F19/E19) -> 1.769230769 | I19: =[1]!AgePb6U8(H19) -> 6566.121392 | J19: 13.742 | K19: 14.937 | L19: =(K19/G19) -> 1.77251691 | M19: =[1]!AgePb6U8(L19) -> 6573.766571 | P19: 15 | R19: 2 | T19: 1
B20: Wr | C20: =(J20/K20) -> 0.8624770696 | D20: =[1]!AgePb76($C$20) -> 5028.581209 | E20: 11.7 | F20: 5.57 | G20: 35.46 | H20: =(F20/E20) -> 0.4760683761 | I20: =[1]!AgePb6U8(H20) -> 2510.117972 | J20: 14.575 | K20: 16.899 | L20: =(K20/G20) -> 0.4765651438 | M20: =[1]!AgePb6U8(L20) -> 2512.287134
B21: Mask | C21: 0.976618572 | D21: =[1]!AgePb76($C$21) -> 5204.105013 | E21: 19.4 | F21: 26.4 | G21: 10.09 | H21: 1.360824742 | I21: =[1]!AgePb6U8(H21) -> 5537.540854 | J21: 13.199 | K21: 13.515 | L21: 1.339444995 | M21: =[1]!AgePb6U8(L21) -> 5478.895856
B22: Mask | C22: 0.8277725693 | D22: =[1]!AgePb76($C$22) -> 4970.288659 | E22: 2.89 | F22: 1.23 | G22: 43 | H22: 0.4256055363 | I22: =[1]!AgePb6U8(H22) -> 2285.876946 | J22: 15.01 | K22: 18.133 | L22: 0.4216976744 | M22: =[1]!AgePb6U8(L22) -> 2268.181807
B23: Mask | C23: 0.9705492564 | D23: =[1]!AgePb76($C$23) -> 5195.331742 | E23: 39.9 | F23: 32.8 | G23: 16.54 | H23: 0.8220551378 | I23: =[1]!AgePb6U8(H23) -> 3867.623276 | J23: 13.182 | K23: 13.582 | L23: 0.8211608222 | M23: =[1]!AgePb6U8(L23) -> 3864.458419
B24: Mask | C24: 0.8580932617 | D24: =[1]!AgePb76($C$24) -> 5021.35664 | E24: 13.7 | F24: 3.76 | G24: 59.9 | H24: 0.2744525547 | I24: =[1]!AgePb6U8(H24) -> 1563.363208 | J24: 14.059 | K24: 16.384 | L24: 0.2735225376 | M24: =[1]!AgePb6U8(L24) -> 1558.657293
B25: Mg-Px | C25: 0.8294320562 | D25: =[1]!AgePb76($C$25) -> 4973.134723 | E25: 16 | F25: 2.22 | G25: 118.2 | H25: 0.13875 | I25: =[1]!AgePb6U8(H25) -> 837.5901344 | J25: 13.465 | K25: 16.234 | L25: 0.1373434856 | M25: =[1]!AgePb6U8(L25) -> 829.6229964
B26: Mg-Px | C26: 0.8230280658 | D26: =[1]!AgePb76($C$26) -> 4962.11813 | E26: 2.86 | F26: 1.88 | G26: 28.1 | H26: 0.6573426573 | I26: =[1]!AgePb6U8(H26) -> 3256.828434 | J26: 15.161 | K26: 18.421 | L26: 0.6555516014 | M26: =[1]!AgePb6U8(L26) -> 3249.858161
B27: Fe-Px | C27: 0.9033582341 | D27: =[1]!AgePb76($C$27) -> 5094.135361 | E27: 41.3 | F27: 9.33 | G27: 65.98 | H27: 0.2259079903 | I27: =[1]!AgePb6U8(H27) -> 1313.017154 | J27: 13.423 | K27: 14.859 | L27: 0.2252046075 | M27: =[1]!AgePb6U8(L27) -> 1309.317367
B28: Fe-Px | C28: 0.8528281164 | D28: =[1]!AgePb76($C$28) -> 5012.62764 | E28: 18 | F28: 7.15 | G28: 45.85 | H28: 0.3972222222 | I28: =[1]!AgePb6U8(H28) -> 2156.236188 | J28: 15.53 | K28: 18.21 | L28: 0.3971646674 | M28: =[1]!AgePb6U8(L28) -> 2155.97064
B29: Ox | C29: 0.8342818677 | D29: =[1]!AgePb76($C$29) -> 4981.417719 | E29: 467 | F29: 16.1 | G29: 474.3 | H29: 0.03447537473 | I29: =[1]!AgePb6U8(H29) -> 218.4974304 | J29: 13.633 | K29: 16.341 | L29: 0.03445287793 | M29: =[1]!AgePb6U8(L29) -> 218.3572383
B30: Mask | C30: 0.9503033805 | D30: =[1]!AgePb76($C$30) -> 5165.640613 | E30: 128 | F30: 74.3 | G30: 23.86 | H30: 0.58046875 | I30: =[1]!AgePb6U8(H30) -> 2950.662242 | J30: 13.156 | K30: 13.844 | L30: 0.580217938 | M30: =[1]!AgePb6U8(L30) -> 2949.639149
B31: Mg-Px | C31: 0.9735983388 | D31: =[1]!AgePb76($C$31) -> 5199.74646 | E31: 41.7 | F31: 27.3 | G31: 20.59 | H31: 0.654676259 | I31: =[1]!AgePb6U8(H31) -> 3246.448837 | J31: 13.128 | K31: 13.484 | L31: 0.6548810102 | M31: =[1]!AgePb6U8(L31) -> 3247.246473
B32: Fe-Px | C32: 0.9626519977 | D32: =[1]!AgePb76($C$32) -> 5183.82886 | E32: 25 | F32: 16.4 | G32: 21.08 | H32: 0.656 | I32: =[1]!AgePb6U8(H32) -> 3251.603906 | J32: 13.3 | K32: 13.816 | L32: 0.6554079696 | M32: =[1]!AgePb6U8(L32) -> 3249.298861
B33: NBS-981 | C33: 0.908919635 | D33: =[1]!AgePb76($C$33) -> 5102.809389 | J33: 15.438 | K33: 16.985
C34: Average | D34: =AVERAGE(D19:D33) -> 5081.002857 | H34: Average | I34: =AVERAGE(I19:I33) -> 2825.823427 | L34: Average | M34: =AVERAGE(M19:M33) -> 2818.968426
C35: Maximum | D35: =MAX(D19:D34) -> 5204.105013 | H35: Maximum | I35: =MAX(I19:I34) -> 6566.121392 | L35: Maximum | M35: =MAX(M19:M34) -> 6573.766571
C36: Minimum | D36: =MIN(D19:D35) -> 4962.11813 | H36: Minimum | I36: =MIN(I19:I35) -> 218.4974304 | L36: Minimum | M36: =MIN(M19:M35) -> 218.3572383
C37: Difference | D37: =(D35-ABS(D36)) -> 241.9868835 | H37: Difference | I37: =(I35-ABS(I36)) -> 6347.623962 | L37: Difference | M37: =(M35-ABS(M36)) -> 6355.409333
H43: Dating | I43: Age | J43: Age | K43: Age
H44: Summary | I44: 87Rb/86Sr | J44: 207Pb/206Pb | K44: 206Pb/238U
H45: Average | I45: 4500.897618 | J45: 5081.002857 | K45: 2825.823427
H46: Maximum | I46: 6185.76008 | J46: 5204.105013 | K46: 6566.121392
H47: Minimum | I47: 4071.374603 | J47: 4962.11813 | K47: 218.4974304
H48: Difference | I48: 2114.385477 | J48: 241.9868835 | K48: 6347.623962

Sheet Rb-Sr _08
A1: Rubidium | B1: TABLE 1. | K1: Rubidium_047.pdf
A2: Strontium | B2: Initial | C2: Today | D2: Today | E2: The Ratio | F2: Half | G2: Decay | H2: 2.303/Delta | I2: Age | J2: Age | K2: Age | L2: Model Age | M2: Model Age | N2: Model Age
A3: Dating | B3: 87Sr/86Sr | C3: 87Sr/86Sr | D3: 87Rb/86Sr | E3: Plus One | F3: Life | G3: Constant | H3: Constant | I3: Years | J3: Million Years | K3: Billion Years | L3: Million Years | M3: % Difference | N3: Difference
B4: 0.70184 | C4: 3.4498 | D4: 104.7 | E4: =1+((C4-B4)/D4) -> 1.026246036 | F4: 48800000000 | G4: =(0.693/F4) -> 1.420081967e-11 | H4: =(2.303/G4) -> 1.621737374e+11 | I4: =(LOG(E4))*(H4) -> 1824696629 | J4: =(I4/1000000) -> 1824.696629 | K4: =(J4/1000) -> 1.824696629
B5: 0.70184 | C5: 1.415 | D5: 27.75 | E5: 1.025699459 | F5: 48800000000 | G5: 1.420081967e-11 | H5: 1.621737374e+11 | I5: 1787175124 | J5: 1787.175124 | K5: 1.787175124
B6: 0.70184 | C6: 0.70186 | D6: 0.0003 | E6: 1.066666667 | F6: 48800000000 | G6: 1.420081967e-11 | H6: 1.621737374e+11 | I6: 4545522860 | J6: 4545.52286 | K6: 4.54552286
B7: 0.70184 | C7: 0.70185 | D7: 7e-05 | E7: 1.142857143 | F7: 48800000000 | G7: 1.420081967e-11 | H7: 1.621737374e+11 | I7: 9404770779 | J7: 9404.770779 | K7: 9.404770779
B8: 0.70184 | C8: 0.70189 | D8: 0.0023 | E8: =1+((C8-B8)/D8) -> 1.02173913 | F8: 48800000000 | G8: =(0.693/F8) -> 1.420081967e-11 | H8: =(2.303/G8) -> 1.621737374e+11 | I8: =(LOG(E8))*(H8) -> 1514706965 | J8: =(I8/1000000) -> 1514.706965 | K8: =(J8/1000) -> 1.514706965
I9: Average | J9: =AVERAGE(J4:J8) -> 3815.374471
I10: Maximum | J10: =MAX(J4:J9) -> 9404.770779
I11: Minimum | J11: =MIN(J4:J10) -> 1514.706965
I12: Difference | J12: =(J10-ABS(J11)) -> 7890.063814
K14: Age | L14: Age | M14: Age
B15: 206Pb/204Pb | C15: 207Pb/204Pb | D15: 208Pb/204Pb | E15: 238U/204Pb | F15: 232Th/238U | G15: 238U/232Th | H15: 208Pb/232Th | I15: 207Pb/206Pb | J15: 206Pb/238U | K15: 208Pb/232Th | L15: 207Pb/206Pb | M15: 206Pb/238U
B16: 15.909 | C16: 15.285 | D16: 35.494 | E16: 0.0236 | F16: 0.1413 | G16: =(1/F16) -> 7.077140835 | H16: =((D16/E16))/G16 -> 212.5128051 | I16: =(C16/B16) -> 0.9607769187 | J16: =(B16/E16) -> 674.1101695 | K16: =[1]!AgePb8Th2(H16) -> 108412.2649 | L16: =[1]!AgePb76(I16) -> 5181.083015 | M16: =[1]!AgePb6U8(J16) -> 41997.58834
B17: 15.803 | C17: 15.258 | D17: 35.56 | E17: 0.01664 | F17: 0.1267 | G17: =(1/F17) -> 7.892659826 | H17: =((D17/E17))/G17 -> 270.7603365 | I17: =(C17/B17) -> 0.9655128773 | J17: =(B17/E17) -> 949.6995192 | K17: =[1]!AgePb8Th2(H17) -> 113287.9346 | L17: =[1]!AgePb76(I17) -> 5188.007416 | M17: =[1]!AgePb6U8(J17) -> 44204.33876
B18: 15.89 | C18: 15.286 | D18: 35.763 | E18: 0.0405 | F18: 0.364 | G18: 2.747252747 | H18: 321.4254815 | I18: 0.9619886721 | J18: 392.345679 | K18: =[1]!AgePb8Th2(H18) -> 116743.245 | L18: =[1]!AgePb76(I18) -> 5182.858141 | M18: =[1]!AgePb6U8(J18) -> 38515.31871
B19: 15.856 | C19: 15.269 | D19: 35.634 | E19: 0.0733 | F19: 0.763 | G19: 1.31061599 | H19: 370.9241746 | I19: 0.9629793138 | J19: 216.3165075 | K19: =[1]!AgePb8Th2(H19) -> 119629.9141 | L19: =[1]!AgePb76(I19) -> 5184.307598 | M19: =[1]!AgePb6U8(J19) -> 34690.44223
B20: 15.996 | C20: 15.29 | D20: 34.83 | E20: 0.118 | F20: 1.569 | G20: 0.6373486297 | H20: 463.1209322 | I20: 0.955863966 | J20: 135.559322 | K20: =[1]!AgePb8Th2(H20) -> 124106.0161 | L20: =[1]!AgePb76(I20) -> 5173.861557 | M20: =[1]!AgePb6U8(J20) -> 31695.46568
B21: 15.439 | C21: 15.166 | D21: 35.43 | E21: 0.0251 | F21: 0.1471 | G21: 6.798096533 | H21: 207.6395618 | I21: 0.9823175076 | J21: 615.0996016 | K21: =[1]!AgePb8Th2(H21) -> 107945.5923 | L21: =[1]!AgePb76(I21) -> 5212.290556 | M21: =[1]!AgePb6U8(J21) -> 41407.95256
J22: Average | K22: =AVERAGE(K16:K21) -> 115020.8278 | L22: =AVERAGE(L16:L21) -> 5187.068047 | M22: =AVERAGE(M16:M21) -> 38751.85105
J23: Maximum | K23: =MAX(K16:K22) -> 124106.0161 | L23: =MAX(L16:L22) -> 5212.290556 | M23: =MAX(M16:M22) -> 44204.33876
J24: Minimum | K24: =MIN(K16:K23) -> 107945.5923 | L24: =MIN(L16:L23) -> 5173.861557 | M24: =MIN(M16:M23) -> 31695.46568
J25: Difference | K25: =(K23-ABS(K24)) -> 16160.42385 | L25: =(L23-ABS(L24)) -> 38.42899823 | M25: =(M23-ABS(M24)) -> 12508.87308
A28: Neodymium | K28: Rubidium_047.pdf
A29: Samarium | B29: Initial | C29: Today | D29: Today | E29: The Ratio | F29: Half | G29: Decay | H29: 2.303/Delta | I29: Age | J29: Age | K29: Age
A30: Dating | B30: 143Nd/144Nd | C30: 143Nd/144Nd | D30: 147Sm/144Nd | E30: Plus One | F30: Life | G30: Constant | H30: Constant | I30: Years | J30: Million Years | K30: Billion Years
B31: 0.51037 | C31: 0.51167 | D31: 0.1053 | E31: =1+((C31-B31)/D31) -> 1.012345679 | F31: 106000000000 | G31: =(0.693/F31) -> 6.537735849e-12 | H31: =(2.303/G31) -> 3.522626263e+11 | I31: =(LOG(E31))*(H31) -> 1877148885 | J31: =(I31/1000000) -> 1877.148885 | K31: =(J31/1000) -> 1.877148885
B32: 0.51035 | C32: 0.51175 | D32: 0.1121 | E32: =1+((C32-B32)/D32) -> 1.012488849 | F32: 106000000000 | G32: 6.537735849e-12 | H32: =(2.303/G32) -> 3.522626263e+11 | I32: =(LOG(E32))*(H32) -> 1898783246 | J32: =(I32/1000000) -> 1898.783246 | K32: =(J32/1000) -> 1.898783246
B33: 0.51036 | C33: 0.51174 | D33: 0.1102 | E33: 1.012522686 | F33: 106000000000 | G33: 6.537735849e-12 | H33: 3.522626263e+11 | I33: 1903895853 | J33: 1903.895853 | K33: 1.903895853
B34: 0.51036 | C34: 0.51169 | D34: 0.1061 | E34: 1.012535344 | F34: 106000000000 | G34: 6.537735849e-12 | H34: 3.522626263e+11 | I34: 1905808383 | J34: 1905.808383 | K34: 1.905808383
B35: 0.51036 | C35: 0.51174 | D35: 0.1119 | E35: =1+((C35-B35)/D35) -> 1.01233244 | F35: 106000000000 | G35: =(0.693/F35) -> 6.537735849e-12 | H35: =(2.303/G35) -> 3.522626263e+11 | I35: =(LOG(E35))*(H35) -> 1875148144 | J35: =(I35/1000000) -> 1875.148144 | K35: =(J35/1000) -> 1.875148144
B36: 0.51027 | C36: 0.51171 | D36: 0.1172 | E36: 1.012286689 | F36: 106000000000 | G36: 6.537735849e-12 | H36: 3.522626263e+11 | I36: 1868234116 | J36: 1868.234116 | K36: 1.868234116
I37: Average | J37: =AVERAGE(J31:J36) -> 1888.169771
I38: Maximum | J38: =MAX(J31:J37) -> 1905.808383
I39: Minimum | J39: =MIN(J31:J38) -> 1868.234116
I40: Difference | J40: =(J38-ABS(J39)) -> 37.57426633
C46: Dating | D46: Age | E46: Age | F46: Age | G46: Age | H46: Age
C47: Summary | D47: 147Sm/144Nd | E47: 87Rb/86Sr | F47: 208Pb/232Th | G47: 207Pb/206Pb | H47: 206Pb/238U
C48: Average | D48: 1888.169771 | E48: 3815.374471 | F48: 115020.8278 | G48: 5187.068047 | H48: 38751.85105
C49: Maximum | D49: 1905.808383 | E49: 9404.770779 | F49: 124106.0161 | G49: 5212.290556 | H49: 44204.33876
C50: Minimum | D50: 1868.234116 | E50: 1514.706965 | F50: 107945.5923 | G50: 5173.861557 | H50: 31695.46568
C51: Difference | D51: 37.57426633 | E51: 7890.063814 | F51: 16160.42385 | G51: 38.42899823 | H51: 12508.87308
C54: Age Sorted | D54: Age Sorted | E54: Age Sorted
C55: 208Pb/232Th | D55: 207Pb/206Pb | E55: 206Pb/238U
C56: 124106.0161 | D56: 5212.290556 | E56: 44204.33876
C57: 119629.9141 | D57: 5188.007416 | E57: 41997.58834
C58: 116743.245 | D58: 5184.307598 | E58: 41407.95256
C59: 113287.9346 | D59: 5182.858141 | E59: 38515.31871
C60: 108412.2649 | D60: 5181.083015 | E60: 34690.44223
C61: 107945.5923 | D61: 5173.861557 | E61: 31695.46568

Sheet Rb-Sr _09
A1: Rubidium | B1: TABLE 1. | K1: Rubidium_048.pdf
A2: Strontium | B2: Initial | C2: Today | D2: Today | E2: The Ratio | F2: Half | G2: Decay | H2: 2.303/Delta | I2: Age | J2: Age | K2: Age | L2: Model Age | M2: Model Age | N2: Model Age
A3: Dating | B3: 87Sr/86Sr | C3: 87Sr/86Sr | D3: 87Rb/86Sr | E3: Plus One | F3: Life | G3: Constant | H3: Constant | I3: Years | J3: Million Years | K3: Billion Years | L3: Million Years | M3: % Difference | N3: Difference
B4: 0.665 | C4: 0.748838 | D4: 2.905 | E4: =1+((C4-B4)/D4) -> 1.028859897 | F4: 48800000000 | G4: =(0.693/F4) -> 1.420081967e-11 | H4: =(2.303/G4) -> 1.621737374e+11 | I4: =(LOG(E4))*(H4) -> 2003857534 | J4: =(I4/1000000) -> 2003.857534 | K4: =(J4/1000) -> 2.003857534
B5: -0.624 | C5: 1.078531 | D5: 59.108 | E5: 1.028803732 | F5: 48800000000 | G5: 1.420081967e-11 | H5: 1.621737374e+11 | I5: 2000012653 | J5: 2000.012653 | K5: 2.000012653
B6: 0.705 | C6: 0.760968 | D6: 1.933 | E6: 1.028953958 | F6: 48800000000 | G6: 1.420081967e-11 | H6: 1.621737374e+11 | I6: 2010296226 | J6: 2010.296226 | K6: 2.010296226
B7: 0.702 | C7: 0.702662 | D7: 0.031 | E7: 1.021354839 | F7: 48800000000 | G7: 1.420081967e-11 | H7: 1.621737374e+11 | I7: 1488211745 | J7: 1488.211745 | K7: 1.488211745
B8: 0.707 | C8: 0.763085 | D8: 1.945 | E8: 1.028835476 | F8: 48800000000 | G8: 1.420081967e-11 | H8: 1.621737374e+11 | I8: 2002185751 | J8: 2002.185751 | K8: 2.002185751
B9: 0.709 | C9: 0.737284 | D9: 0.998 | E9: 1.028340681 | F9: 48800000000 | G9: 1.420081967e-11 | H9: 1.621737374e+11 | I9: 1968305395 | J9: 1968.305395 | K9: 1.968305395
B10: 0.704 | C10: 0.731776 | D10: 0.778 | E10: =1+((C10-B10)/D10) -> 1.035701799 | F10: 48800000000 | G10: =(0.693/F10) -> 1.420081967e-11 | H10: =(2.303/G10) -> 1.621737374e+11 | I10: =(LOG(E10))*(H10) -> 2470673234 | J10: =(I10/1000000) -> 2470.673234 | K10: =(J10/1000) -> 2.470673234
B11: 0.702 | C11: 0.704671 | D11: 0.066 | E11: =1+((C11-B11)/D11) -> 1.040469697 | F11: 48800000000 | G11: =(0.693/F11) -> 1.420081967e-11 | H11: =(2.303/G11) -> 1.621737374e+11 | I11: =(LOG(E11))*(H11) -> 2794162058 | J11: =(I11/1000000) -> 2794.162058 | K11: =(J11/1000) -> 2.794162058
B12: 0.7 | C12: 0.715468 | D12: 0.44 | E12: 1.035154545 | F12: 48800000000 | G12: 1.420081967e-11 | H12: 1.621737374e+11 | I12: 2433448308 | J12: 2433.448308 | K12: 2.433448308
B13: 0.702 | C13: 0.726995 | D13: 0.691 | E13: 1.036172214 | F13: 48800000000 | G13: 1.420081967e-11 | H13: 1.621737374e+11 | I13: 2502655732 | J13: 2502.655732 | K13: 2.502655732
B14: 0.702 | C14: 0.727279 | D14: 0.701 | E14: 1.036061341 | F14: 48800000000 | G14: 1.420081967e-11 | H14: 1.621737374e+11 | I14: 2495119003 | J14: 2495.119003 | K14: 2.495119003
B15: 0.712 | C15: 0.714823 | D15: 0.068 | E15: 1.041514706 | F15: 48800000000 | G15: 1.420081967e-11 | H15: 1.621737374e+11 | I15: 2864864984 | J15: 2864.864984 | K15: 2.864864984
B16: 0.703 | C16: 0.705213 | D16: 0.07 | E16: 1.031614286 | F16: 48800000000 | G16: 1.420081967e-11 | H16: 1.621737374e+11 | I16: 2192158777 | J16: 2192.158777 | K16: 2.192158777
I17: Average | J17: =AVERAGE(J4:J16) -> 2248.150108 | K17: =AVERAGE(K11:K16) -> 2.547068144
I18: Maximum | J18: =MAX(J4:J17) -> 2864.864984 | K18: =MAX(K11:K17) -> 2.864864984
I19: Minimum | J19: =MIN(J4:J18) -> 1488.211745 | K19: =MIN(K11:K18) -> 2.192158777
I20: Difference | J20: =(J18-ABS(J19)) -> 1376.653239 | K20: =(K18+ABS(K19)) -> 5.057023761
K22: Dating | L22: Age | M22: Age
F23: Age | K23: Summary | L23: 87Rb/86Sr | M23: 207Pb/206Pb
C24: 206Pb/204Pb | D24: 207Pb/204Pb | E24: 207Pb/206Pb | F24: 207Pb/206Pb | K24: Average | L24: 2248.150108 | M24: 5134.207848
A25: 1 | B25: A16G | C25: 17.362 | D25: 15.452 | E25: =(D25/C25) -> 0.8899896325 | F25: =[1]!AgePb76($E$25) -> 5073.050796 | K25: Maximum | L25: 2864.864984 | M25: 5333.179887
A26: 2 | B26: A26-2 | C26: 17.962 | D26: 15.555 | E26: =(D26/C26) -> 0.8659948781 | F26: =[1]!AgePb76($E$26) -> 5034.350464 | K26: Minimum | L26: 1488.211745 | M26: 5018.275886
A27: 3 | B27: T121G | C27: 17.994 | D27: 15.555 | E27: 0.8644548183 | F27: =[1]!AgePb76($E$27) -> 5031.827811 | K27: Difference | L27: 1376.653239 | M27: 314.9040009
A28: 4 | B28: T135G | C28: 17.539 | D28: 15.466 | E28: 0.8818062603 | F28: =[1]!AgePb76($E$28) -> 5059.977829
A29: 5 | B29: T139G | C29: 17.677 | D29: 15.483 | E29: 0.875883917 | F29: =[1]!AgePb76($E$29) -> 5050.436334
A30: 6 | B30: T137-1 | C30: 17.385 | D30: 15.508 | E30: 0.8920333621 | F30: =[1]!AgePb76($E$30) -> 5076.295768
A31: 7 | B31: A108G | C31: 17.359 | D31: 15.479 | E31: 0.8916988306 | F31: =[1]!AgePb76($E$31) -> 5075.765149
A32: 8 | B32: A114-1 | C32: 17.244 | D32: 15.461 | E32: 0.8966017165 | F32: =[1]!AgePb76($E$32) -> 5083.520843
A33: 9 | B33: A125G | C33: 18.153 | D33: 15.583 | E33: 0.8584256046 | F33: =[1]!AgePb76($E$33) -> 5021.905716
A34: 10 | B34: A144-1 | C34: 17.97 | D34: 15.52 | E34: 0.8636616583 | F34: =[1]!AgePb76($E$34) -> 5030.526736
A35: 11 | B35: T144-2 | C35: 17.051 | D35: 15.425 | E35: 0.9046390241 | F35: =[1]!AgePb76($E$35) -> 5096.137996
A36: 12 | B36: P1 | C36: 17.746 | D36: 15.713 | E36: 0.8854389722 | F36: =[1]!AgePb76($E$36) -> 5065.796915
A37: 13 | B37: P9-2 | C37: 18.175 | D37: 15.562 | E37: 0.8562310867 | F37: =[1]!AgePb76($E$37) -> 5018.275886
A38: 14 | B38: T28-1 | C38: 16.496 | D38: 15.281 | E38: 0.9263457808 | F38: =[1]!AgePb76($E$38) -> 5129.62881
A39: 15 | B39: T25-1 | C39: 16.781 | D39: 15.399 | E39: 0.9176449556 | F39: =[1]!AgePb76($E$39) -> 5116.305408
A40: 16 | B40: P8-7 | C40: 17.594 | D40: 15.646 | E40: 0.8892804365 | F40: =[1]!AgePb76($E$40) -> 5071.922909
A41: 17 | B41: P88-5 | C41: 17.33 | D41: 15.497 | E41: 0.8942296595 | F41: =[1]!AgePb76($E$41) -> 5079.774204
A42: 18 | B42: T9 | C42: 17.439 | D42: 15.637 | E42: 0.8966683869 | F42: =[1]!AgePb76($E$42) -> 5083.625996
A43: 19 | B43: b | C43: 17.291 | D43: 15.59 | E43: 0.9016251229 | F43: =[1]!AgePb76($E$43) -> 5091.420682
A44: 19 | B44: P20-1 | C44: 17.811 | D44: 15.514 | E44: 0.8710347538 | F44: =[1]!AgePb76($E$44) -> 5042.572728
A45: 20 | B45: T46G | C45: 15.652 | D45: 15.293 | E45: 0.977063634 | F45: =[1]!AgePb76($E$45) -> 5204.746085
A46: 21 | B46: P94G | C46: 17.282 | D46: 15.583 | E46: 0.9016896193 | F46: =[1]!AgePb76($E$46) -> 5091.521806
A47: 22 | B47: T73-3 | C47: 16.209 | D47: 15.56 | E47: 0.9599605158 | F47: =[1]!AgePb76($E$47) -> 5179.88571
A48: 27 | B48: T70G | C48: 15.947 | D48: 15.579 | E48: 0.9769235593 | F48: =[1]!AgePb76($E$48) -> 5204.544353
A49: 28 | B49: A167-9 | C49: 16.04 | D49: 15.436 | E49: 0.9623441397 | F49: =[1]!AgePb76($E$49) -> 5183.378425
A50: 29 | B50: A167-16 | C50: 16.539 | D50: 15.664 | E50: 0.9470947458 | F50: =[1]!AgePb76($E$50) -> 5160.873667
A51: 30 | B51: P6-3 | C51: 14.806 | D51: 14.972 | E51: 1.011211671 | F51: =[1]!AgePb76($E$51) -> 5253.033988
A52: 31 | B52: A154G | C52: 14.402 | D52: 15.107 | E52: 1.048951535 | F52: =[1]!AgePb76($E$52) -> 5304.436018
A53: 32 | B53: A156-5 | C53: 14.262 | D53: 14.949 | E53: 1.048169962 | F53: =[1]!AgePb76($E$53) -> 5303.391437
A54: 33 | B54: T71-1 | C54: 14.123 | D54: 15.058 | E54: 1.066204064 | F54: =[1]!AgePb76($E$54) -> 5327.287333
A55: 34 | B55: A159-1 | C55: 14.084 | D55: 15.002 | E55: 1.065180346 | F55: =[1]!AgePb76($E$55) -> 5325.942325
A56: 35 | B56: A164-1 | C56: 15.294 | D56: 15.144 | E56: 0.9901922322 | F56: =[1]!AgePb76($E$56) -> 5223.518982
A57: 36 | B57: A183-1 | C57: 13.946 | D57: 14.932 | E57: 1.070701276 | F57: =[1]!AgePb76($E$57) -> 5333.179887
D58: =COUNT(D25:D57) -> 33 | E58: Average | F58: =AVERAGE(F25:F57) -> 5134.207848
E59: Maximum | F59: =MAX(F25:F58) -> 5333.179887
E60: Minimum | F60: =MIN(F25:F59) -> 5018.275886
E61: Difference | F61: =(F59-F60) -> 314.9040009

Sheet Rb-Sr _10
B1: TABLE 1. | E1: Age | K1: Rubidium_049.pdf
A2: Sample | B2: 206Pb/204Pb | C2: 207Pb/204Pb | D2: 207Pb/206Pb | E2: 207Pb/206Pb
A3: 0902-7 | B3: 18.349 | C3: 15.542 | D3: =(C3/B3) -> 0.8470216361 | E3: =[1]!AgePb76($D$3) -> 5002.934563
A4: 0902-9 | B4: 18.343 | C4: 15.542 | D4: =(C4/B4) -> 0.8472986971 | E4: =[1]!AgePb76($D$4) -> 5003.398677
A5: 0903-8 | B5: 18.244 | C5: 15.519 | D5: 0.8506358255 | E5: =[1]!AgePb76($D$5) -> 5008.976187
A6: 0903-11 | B6: 18.271 | C6: 15.522 | D6: 0.8495429916 | E6: =[1]!AgePb76($D$6) -> 5007.152242
A7: 0903-1 | B7: 17.711 | C7: 15.407 | D7: 0.8699113545 | E7: =[1]!AgePb76($D$7) -> 5040.744348 | G7: Dating | H7: Age | I7: Age
A8: 0903-2 | B8: 18.02 | C8: 15.438 | D8: 0.8567147614 | E8: =[1]!AgePb76($D$8) -> 5019.076753 | G8: Summary | H8: 207Pb/206Pb | I8: 176Lu/177Hf
A9: 0903-5 | B9: 17.848 | C9: 15.418 | D9: 0.8638502913 | E9: =[1]!AgePb76($D$9) -> 5030.836279 | G9: Average | H9: 5013.954558 | I9: 439.7439285
A10: HR–10 | B10: 17.908 | C10: 15.426 | D10: 0.861402725 | E10: =[1]!AgePb76($D$10) -> 5026.814288 | G10: Maximum | H10: 5050.38063 | I10: 954.9171455
A11: HR–20 | B11: 18.008 | C11: 15.416 | D11: 0.8560639716 | E11: =[1]!AgePb76($D$11) -> 5017.999065 | G11: Minimum | H11: 4998.826861 | I11: 262.1953459
A12: HR–30 | B12: 18.08 | C12: 15.44 | D12: 0.8539823009 | E12: =[1]!AgePb76($D$12) -> 5014.546032 | G12: Difference | H12: 51.55376944 | I12: 692.7217996
A13: HR–40 | B13: 18.169 | C13: 15.444 | D13: 0.8500192636 | E13: =[1]!AgePb76($D$13) -> 5007.947449
A14: HR–80 | B14: 17.511 | C14: 15.337 | D14: 0.875849466 | E14: =[1]!AgePb76($D$14) -> 5050.38063
A15: 0903-6 | B15: 18.308 | C15: 15.525 | D15: 0.8479899497 | E15: =[1]!AgePb76($D$15) -> 5004.555916
A16: 0903-7 | B16: 18.373 | C16: 15.537 | D16: 0.8456430632 | E16: =[1]!AgePb76($D$16) -> 5000.622868
A17: 0903-9 | B17: 18.405 | C17: 15.551 | D17: 0.844933442 | E17: =[1]!AgePb76($D$17) -> 4999.43136
A18: 0903-10 | B18: 18.401 | C18: 15.541 | D18: 0.8445736645 | E18: =[1]!AgePb76($D$18) -> 4998.826861
A19: 0903-12 | B19: 18.346 | C19: 15.54 | D19: 0.8470511283 | E19: =[1]!AgePb76($D$19) -> 5002.983974
D20: Average | E20: =AVERAGE(E3:E19) -> 5013.954558
D21: Maximum | E21: =MAX(E3:E20) -> 5050.38063
D22: Minimum | E22: =MIN(E3:E21) -> 4998.826861
D23: Difference | E23: =(E21-E22) -> 51.55376944
A26: Lutetium | K26: Rubidium_049.pdf
A27: Hafnium | B27: Initial | C27: Today | D27: Today | E27: The Ratio | F27: Half | G27: Decay | H27: 2.303/Delta | I27: Age | J27: Age | K27: Age | L27: Model Age | M27: Model Age | N27: Model Age
A28: Dating | B28: 176Hf/177Hf | C28: 176Hf/177Hf | D28: 176Lu/177Hf | E28: Plus One | F28: Life | G28: Constant | H28: Constant | I28: Years | J28: Million Years | K28: Billion Years | L28: Million Years | M28: % Difference | N28: Difference
B29: 0.2828 | C29: 0.283418 | D29: 0.119 | E29: =1+((C29-B29)/D29) -> 1.005193277 | F29: 37300000000 | G29: =(0.693/F29) -> 1.857908847e-11 | H29: =(2.303/G29) -> 1.239565657e+11 | I29: =(LOG(E29))*(H29) -> 278849639.2 | J29: =(I29/1000000) -> 278.8496392 | K29: =(J29/1000) -> 0.2788496392
B30: 0.2828 | C30: 0.283206 | D30: 0.073 | E30: =1+((C30-B30)/D30) -> 1.005561644 | F30: 37300000000 | G30: 1.857908847e-11 | H30: =(2.303/G30) -> 1.239565657e+11 | I30: =(LOG(E30))*(H30) -> 298574087.5 | J30: =(I30/1000000) -> 298.5740875 | K30: =(J30/1000) -> 0.2985740875
B31: 0.2828 | C31: 0.283319 | D31: 0.029 | E31: 1.017896552 | F31: 37300000000 | G31: 1.857908847e-11 | H31: 1.239565657e+11 | I31: 954917145.5 | J31: 954.9171455 | K31: 0.9549171455
B32: 0.2828 | C32: 0.283335 | D32: 0.103 | E32: 1.005194175 | F32: 37300000000 | G32: 1.857908847e-11 | H32: 1.239565657e+11 | I32: 278897702.4 | J32: 278.8977024 | K32: 0.2788977024
B33: 0.2828 | C33: 0.283389 | D33: 0.078 | E33: 1.007551282 | F33: 37300000000 | G33: 1.857908847e-11 | H33: 1.239565657e+11 | I33: 404985929.3 | J33: 404.9859293 | K33: 0.4049859293
B34: 0.2828 | C34: 0.283344 | D34: 0.054 | E34: 1.010074074 | F34: 37300000000 | G34: 1.857908847e-11 | H34: 1.239565657e+11 | I34: 539610704.2 | J34: 539.6107042 | K34: 0.5396107042
B35: 0.2828 | C35: 0.28336 | D35: 0.062 | E35: 1.009032258 | F35: 37300000000 | G35: 1.857908847e-11 | H35: 1.239565657e+11 | I35: 484056655.3 | J35: 484.0566553 | K35: 0.4840566553
B36: 0.2828 | C36: 0.28308 | D36: 0.032 | E36: 1.00875 | F36: 37300000000 | G36: 1.857908847e-11 | H36: 1.239565657e+11 | I36: 468995582.6 | J36: 468.9955826 | K36: 0.4689955826
B37: 0.2828 | C37: 0.282966 | D37: 0.034 | E37: 1.004882353 | F37: 37300000000 | G37: 1.857908847e-11 | H37: 1.239565657e+11 | I37: 262195345.9 | J37: 262.1953459 | K37: 0.2621953459
B38: 0.2828 | C38: 0.283028 | D38: 0.037 | E38: 1.006162162 | F38: 37300000000 | G38: 1.857908847e-11 | H38: 1.239565657e+11 | I38: 330713783.5 | J38: 330.7137835 | K38: 0.3307137835
B39: 0.2828 | C39: 0.28309 | D39: 0.043 | E39: 1.006744186 | F39: 37300000000 | G39: 1.857908847e-11 | H39: 1.239565657e+11 | I39: 361845358.5 | J39: 361.8453585 | K39: 0.3618453585
B40: 0.2828 | C40: 0.283118 | D40: 0.049 | E40: 1.006489796 | F40: 37300000000 | G40: 1.857908847e-11 | H40: 1.239565657e+11 | I40: 348240631 | J40: 348.240631 | K40: 0.348240631
B41: 0.2828 | C41: 0.282958 | D41: 0.013 | E41: 1.012153846 | F41: 37300000000 | G41: 1.857908847e-11 | H41: 1.239565657e+11 | I41: 650341810 | J41: 650.34181 | K41: 0.65034181
B42: 0.2828 | C42: 0.282883 | D42: 0.009 | E42: 1.009222222 | F42: 37300000000 | G42: 1.857908847e-11 | H42: 1.239565657e+11 | I42: 494190624.6 | J42: 494.1906246 | K42: 0.4941906246
I43: Average | J43: =AVERAGE(J26:J42) -> 439.7439285
I44: Maximum | J44: =MAX(J26:J43) -> 954.9171455
I45: Minimum | J45: =MIN(J26:J44) -> 262.1953459
I46: Difference | J46: =(J44-J45) -> 692.7217996

Sheet Rb-Sr _11
A1: Rubidium | K1: Rubidium_050.pdf
A2: Strontium | B2: Initial | C2: Today | D2: Today | E2: The Ratio | F2: Half | G2: Decay | H2: 2.303/Delta | I2: Age | J2: Age | K2: Age | L2: Model Age | M2: Model Age | N2: Model Age
A3: Dating | B3: 87Sr/86Sr | C3: 87Sr/86Sr | D3: 87Rb/86Sr | E3: Plus One | F3: Life | G3: Constant | H3: Constant | I3: Years | J3: Million Years | K3: Billion Years | L3: Million Years | M3: % Difference | N3: Difference
A4: TABLE 3 | B4: 0.699066 | C4: 0.699213 | D4: 0.00211 | E4: =1+((C4-B4)/D4) -> 1.069668246 | F4: 48800000000 | G4: =(0.693/F4) -> 1.420081967e-11 | H4: =(2.303/G4) -> 1.621737374e+11 | I4: =(LOG(E4))*(H4) -> 4743436475 | J4: =(I4/1000000) -> 4743.436475 | K4: =(J4/1000) -> 4.743436475
B5: 0.699066 | C5: 0.699429 | D5: 0.00532 | E5: 1.068233083 | F5: 48800000000 | G5: 1.420081967e-11 | H5: 1.621737374e+11 | I5: 4648876207 | J5: 4648.876207 | K5: 4.648876207
B6: 0.699066 | C6: 0.699135 | D6: 0.00121 | E6: 1.057024793 | F6: 48800000000 | G6: 1.420081967e-11 | H6: 1.621737374e+11 | I6: 3905982709 | J6: 3905.982709 | K6: 3.905982709
B7: 0.699066 | C7: 0.69912 | D7: 0.00109 | E7: 1.049541284 | F7: 48800000000 | G7: 1.420081967e-11 | H7: 1.621737374e+11 | I7: 3405571698 | J7: 3405.571698 | K7: 3.405571698
B8: 0.699066 | C8: 0.699149 | D8: 0.00143 | E8: 1.058041958 | F8: 48800000000 | G8: 1.420081967e-11 | H8: 1.621737374e+11 | I8: 3973725338 | J8: 3973.725338 | K8: 3.973725338
B9: 0.699066 | C9: 0.699257 | D9: 0.00513 | E9: 1.037231969 | F9: 48800000000 | G9: 1.420081967e-11 | H9: 1.621737374e+11 | I9: 2574653034 | J9: 2574.653034 | K9: 2.574653034
B10: 0.699066 | C10: 0.699475 | D10: 0.00711 | E10: 1.057524613 | F10: 48800000000 | G10: 1.420081967e-11 | H10: 1.621737374e+11 | I10: 3939278588 | J10: 3939.278588 | K10: 3.939278588
B11: 0.699066 | C11: 0.69946 | D11: 0.00576 | E11: 1.068402778 | F11: 48800000000 | G11: 1.420081967e-11 | H11: 1.621737374e+11 | I11: 4660063720 | J11: 4660.06372 | K11: 4.66006372
B12: 0.699066 | C12: 0.69938 | D12: 0.00471 | E12: =1+((C12-B12)/D12) -> 1.066666667 | F12: 48800000000 | G12: =(0.693/F12) -> 1.420081967e-11 | H12: =(2.303/G12) -> 1.621737374e+11 | I12: =(LOG(E12))*(H12) -> 4545522860 | J12: 4545.52286 | K12: =(J12/1000) -> 4.54552286
B13: 0.699066 | C13: 0.699534 | D13: 0.00646 | E13: 1.07244582 | F13: 48800000000 | G13: 1.420081967e-11 | H13: 1.621737374e+11 | I13: 4926085820 | J13: 4926.08582 | K13: 4.92608582
B14: 0.699066 | C14: 0.699883 | D14: 0.0105 | E14: 1.077809524 | F14: 48800000000 | G14: 1.420081967e-11 | H14: 1.621737374e+11 | I14: 5277460489 | J14: 5277.460489 | K14: 5.277460489
B15: 0.699066 | C15: 0.699148 | D15: 0.00161 | E15: =1+((C15-B15)/D15) -> 1.050931677 | F15: 48800000000 | G15: =(0.693/F15) -> 1.420081967e-11 | H15: =(2.303/G15) -> 1.621737374e+11 | I15: =(LOG(E15))*(H15) -> 3498814487 | J15: 3498.814487 | K15: =(J15/1000) -> 3.498814487
B16: 0.699066 | C16: 0.699252 | D16: 0.00282 | E16: 1.065957447 | F16: 48800000000 | G16: 1.420081967e-11 | H16: 1.621737374e+11 | I16: 4498678057 | J16: 4498.678057 | K16: 4.498678057
B17: 0.699066 | C17: 0.699396 | D17: 0.00534 | E17: 1.061797753 | F17: 48800000000 | G17: 1.420081967e-11 | H17: 1.621737374e+11 | I17: 4223296336 | J17: 4223.296336 | K17: 4.223296336 | M17: Dating | N17: Age | O17: Age
B18: 0.699066 | C18: 0.699475 | D18: 0.00639 | E18: 1.06400626 | F18: 48800000000 | G18: 1.420081967e-11 | H18: 1.621737374e+11 | I18: 4369638860 | J18: =(I18/1000000) -> 4369.63886 | K18: 4.36963886 | M18: Summary | N18: 87Rb/86Sr | O18: 147Sm/144Nd
I19: Average | J19: =AVERAGE(J4:J18) -> 4212.738979 | K19: =AVERAGE(K4:K18) -> 4.212738979 | M19: Average | N19: 4212.738979 | O19: 294470.4112
I20: Maximum | J20: =MAX(J4:J19) -> 5277.460489 | K20: =MAX(K4:K19) -> 5.277460489 | M20: Maximum | N20: 5277.460489 | O20: 315266.1919
I21: Minimum | J21: =MIN(J4:J20) -> 2574.653034 | K21: =MIN(K4:K20) -> 2.574653034 | M21: Minimum | N21: 2574.653034 | O21: 251680.0563
I22: Difference | J22: =(J20-ABS(J21)) -> 2702.807455 | K22: =(K20+ABS(K21)) -> 7.852113523 | M22: Difference | N22: 2702.807455 | O22: 63586.13561
A25: Neodymium | K25: Rubidium_050.pdf
A26: Samarium | B26: Initial | C26: Today | D26: Today | E26: The Ratio | F26: Half | G26: Decay | H26: 2.303/Delta | I26: Age | J26: Age | K26: Age | L26: Model Age | M26: Model Age | N26: Model Age
A27: Dating | B27: 143Nd/144Nd | C27: 143Nd/144Nd | D27: 147Sm/144Nd | E27: Plus One | F27: Life | G27: Constant | H27: Constant | I27: Years | J27: Million Years | K27: Billion Years | L27: Million Years | M27: % Difference | N27: Difference
B28: -0.64 | C28: 0.511094 | D28: 0.1725 | E28: =1+((C28-B28)/D28) -> 7.673008696 | F28: 106000000000 | G28: =(0.693/F28) -> 6.537735849e-12 | H28: =(2.303/G28) -> 3.522626263e+11 | I28: =(LOG(E28))*(H28) -> 3.117403382e+11 | J28: =(I28/1000000) -> 311740.3382 | K28: =(J28/1000) -> 311.7403382
B29: -0.64 | C29: 0.511188 | D29: 0.16801 | E29: =1+((C29-B29)/D29) -> 7.851901673 | F29: 106000000000 | G29: 6.537735849e-12 | H29: =(2.303/G29) -> 3.522626263e+11 | I29: =(LOG(E29))*(H29) -> 3.152661919e+11 | J29: =(I29/1000000) -> 315266.1919 | K29: =(J29/1000) -> 315.2661919
B30: -0.64 | C30: 0.5112 | D30: 0.17464 | E30: 7.591846083 | F30: 106000000000 | G30: 6.537735849e-12 | H30: 3.522626263e+11 | I30: 3.101134853e+11 | J30: 310113.4853 | K30: 310.1134853
B31: -0.64 | C31: 0.512217 | D31: 0.20903 | E31: =1+((C31-B31)/D31) -> 6.512208774 | F31: 106000000000 | G31: =(0.693/F31) -> 6.537735849e-12 | H31: =(2.303/G31) -> 3.522626263e+11 | I31: =(LOG(E31))*(H31) -> 2.866460733e+11 | J31: =(I31/1000000) -> 286646.0733 | K31: =(J31/1000) -> 286.6460733
B32: -0.64 | C32: 0.514174 | D32: 0.27601 | E32: 5.181638346 | F32: 106000000000 | G32: 6.537735849e-12 | H32: 3.522626263e+11 | I32: 2.516800563e+11 | J32: 251680.0563 | K32: 251.6800563 | AA32: 0.32 | AB32: ÿ1.81 | AC32: 0.32
B33: -0.64 | C33: 0.511376 | D33: 0.18236 | E33: 7.313753016 | F33: 106000000000 | G33: 6.537735849e-12 | H33: 3.522626263e+11 | I33: 3.044043281e+11 | J33: 304404.3281 | K33: 304.4043281
B34: -0.64 | C34: 0.511592 | D34: 0.1875 | E34: 7.141824 | F34: 106000000000 | G34: 6.537735849e-12 | H34: 3.522626263e+11 | I34: 3.007650512e+11 | J34: 300765.0512 | K34: 300.7650512 | AA34: 0.23 | AB34: ÿ1.77 | AC34: 0.23
B35: -0.64 | C35: 0.511227 | D35: 0.17527 | E35: 7.568306042 | F35: 106000000000 | G35: 6.537735849e-12 | H35: 3.522626263e+11 | I35: 3.096383854e+11 | J35: 309638.3854 | K35: 309.6383854
B36: -0.64 | C36: 0.512078 | D36: 0.20412 | E36: 6.644121105 | F36: 106000000000 | G36: 6.537735849e-12 | H36: 3.522626263e+11 | I36: 2.897140078e+11 | J36: 289714.0078 | K36: 289.7140078 | M36: Dating | N36: 143Nd/144Nd | O36: 143Nd/144Nd | P36: 143Nd/144Nd
B37: -0.64 | C37: 0.513388 | D37: 0.2484 | E37: 5.643268921 | F37: 106000000000 | G37: 6.537735849e-12 | H37: 3.522626263e+11 | I37: 2.647361944e+11 | J37: 264736.1944 | K37: 264.7361944 | M37: Summary | N37: Initial = -0.64 | O37: Initial = -0.51 | P37: Initial = -0.77 | AA37: 0.22 | AB37: ÿ3.0 | AC37: 0.22
I38: Average | J38: =AVERAGE(J23:J37) -> 294470.4112 | M38: Average | N38: 294470.4112 | O38: 278989.6901 | P38: 308526.741 | AA38: 0.22 | AB38: ÿ1.29 | AC38: 0.22
I39: Maximum | J39: =MAX(J23:J38) -> 315266.1919 | M39: Maximum | N39: 315266.1919 | O39: 299394.7125 | P39: 329644.7569
I40: Minimum | J40: =MIN(J23:J39) -> 251680.0563 | M40: Minimum | N40: 251680.0563 | O40: 237100.9286 | P40: 264989.9138
I41: Difference | J41: =(J39-ABS(J40)) -> 63586.13561 | M41: Difference | N41: 63586.13561 | O41: 62293.78398 | P41: 64654.84304
A46: Neodymium | K46: Rubidium_050.pdf
A47: Samarium | B47: Initial | C47: Today | D47: Today | E47: The Ratio | F47: Half | G47: Decay | H47: 2.303/Delta | I47: Age | J47: Age | K47: Age | L47: Model Age | M47: Model Age | N47: Model Age
A48: Dating | B48: 143Nd/144Nd | C48: 143Nd/144Nd | D48: 147Sm/144Nd | E48: Plus One | F48: Life | G48: Constant | H48: Constant | I48: Years | J48: Million Years | K48: Billion Years | L48: Million Years | M48: % Difference | N48: Difference
B49: -0.51 | C49: 0.511094 | D49: 0.1725 | E49: =1+((C49-B49)/D49) -> 6.919385507 | F49: 106000000000 | G49: =(0.693/F49) -> 6.537735849e-12 | H49: =(2.303/G49) -> 3.522626263e+11 | I49: =(LOG(E49))*(H49) -> 2.959243935e+11 | J49: =(I49/1000000) -> 295924.3935 | K49: =(J49/1000) -> 295.9243935
B50: -0.51 | C50: 0.511188 | D50: 0.16801 | E50: =1+((C50-B50)/D50) -> 7.078138206 | F50: 106000000000 | G50: 6.537735849e-12 | H50: =(2.303/G50) -> 3.522626263e+11 | I50: =(LOG(E50))*(H50) -> 2.993947125e+11 | J50: =(I50/1000000) -> 299394.7125 | K50: =(J50/1000) -> 299.3947125
B51: -0.51 | C51: 0.5112 | D51: 0.17464 | E51: 6.847457627 | F51: 106000000000 | G51: 6.537735849e-12 | H51: 3.522626263e+11 | I51: 2.943257644e+11 | J51: 294325.7644 | K51: 294.3257644
B52: -0.51 | C52: 0.512217 | D52: 0.20903 | E52: 5.890288475 | F52: 106000000000 | G52: 6.537735849e-12 | H52: 3.522626263e+11 | I52: 2.712903289e+11 | J52: 271290.3289 | K52: 271.2903289
B53: -0.51 | C53: 0.514174 | D53: 0.27601 | E53: 4.710640919 | F53: 106000000000 | G53: 6.537735849e-12 | H53: 3.522626263e+11 | I53: 2.371009286e+11 | J53: 237100.9286 | K53: 237.1009286
B54: -0.51 | C54: 0.511376 | D54: 0.18236 | E54: 6.600877385 | F54: 106000000000 | G54: 6.537735849e-12 | H54: 3.522626263e+11 | I54: 2.887150352e+11 | J54: 288715.0352 | K54: 288.7150352
B55: -0.51 | C55: 0.511592 | D55: 0.1875 | E55: 6.448490667 | F55: 106000000000 | G55: 6.537735849e-12 | H55: 3.522626263e+11 | I55: 2.851418276e+11 | J55: 285141.8276 | K55: 285.1418276
B56: -0.51 | C56: 0.511227 | D56: 0.17527 | E56: 6.826593256 | F56: 106000000000 | G56: 6.537735849e-12 | H56: 3.522626263e+11 | I56: 2.938589015e+11 | J56: 293858.9015 | K56: 293.8589015
B57: -0.51 | C57: 0.512078 | D57: 0.20412 | E57: 6.007240839 | F57: 106000000000 | G57: 6.537735849e-12 | H57: 3.522626263e+11 | I57: 2.742981159e+11 | J57: 274298.1159 | K57: 274.2981159
B58: -0.51 | C58: 0.513388 | D58: 0.2484 | E58: 5.119919485 | F58: 106000000000 | G58: 6.537735849e-12 | H58: 3.522626263e+11 | I58: 2.498468934e+11 | J58: 249846.8934 | K58: 249.8468934
I59: Average | J59: =AVERAGE(J44:J58) -> 278989.6901
I60: Maximum | J60: =MAX(J44:J59) -> 299394.7125
I61: Minimum | J61: =MIN(J44:J60) -> 237100.9286
I62: Difference | J62: =(J60-ABS(J61)) -> 62293.78398
A65: Neodymium | K65: Rubidium_050.pdf
A66: Samarium | B66: Initial | C66: Today | D66: Today | E66: The Ratio | F66: Half | G66: Decay | H66: 2.303/Delta | I66: Age | J66: Age | K66: Age | L66: Model Age | M66: Model Age | N66: Model Age
A67: Dating | B67: 143Nd/144Nd | C67: 143Nd/144Nd | D67: 147Sm/144Nd | E67: Plus One | F67: Life | G67: Constant | H67: Constant | I67: Years | J67: Million Years | K67: Billion Years | L67: Million Years | M67: % Difference | N67: Difference
B68: -0.77 | C68: 0.511094 | D68: 0.1725 | E68: =1+((C68-B68)/D68) -> 8.426631884 | F68: 106000000000 | G68: =(0.693/F68) -> 6.537735849e-12 | H68: =(2.303/G68) -> 3.522626263e+11 | I68: =(LOG(E68))*(H68) -> 3.260733169e+11 | J68: =(I68/1000000) -> 326073.3169 | K68: =(J68/1000) -> 326.0733169
B69: -0.77 | C69: 0.511188 | D69: 0.16801 | E69: =1+((C69-B69)/D69) -> 8.625665139 | F69: 106000000000 | G69: 6.537735849e-12 | H69: =(2.303/G69) -> 3.522626263e+11 | I69: =(LOG(E69))*(H69) -> 3.296447569e+11 | J69: =(I69/1000000) -> 329644.7569 | K69: =(J69/1000) -> 329.6447569
B70: -0.77 | C70: 0.5112 | D70: 0.17464 | E70: 8.33623454 | F70: 106000000000 | G70: 6.537735849e-12 | H70: 3.522626263e+11 | I70: 3.244232845e+11 | J70: 324423.2845 | K70: 324.4232845
B71: -0.77 | C71: 0.512217 | D71: 0.20903 | E71: 7.134129072 | F71: 106000000000 | G71: 6.537735849e-12 | H71: 3.522626263e+11 | I71: 3.006001285e+11 | J71: 300600.1285 | K71: 300.6001285
B72: -0.77 | C72: 0.514174 | D72: 0.27601 | E72: 5.652635774 | F72: 106000000000 | G72: 6.537735849e-12 | H72: 3.522626263e+11 | I72: 2.649899138e+11 | J72: 264989.9138 | K72: 264.9899138
B73: -0.77 | C73: 0.511376 | D73: 0.18236 | E73: 8.026628647 | F73: 106000000000 | G73: 6.537735849e-12 | H73: 3.522626263e+11 | I73: 3.186332303e+11 | J73: 318633.2303 | K73: 318.6332303
B74: -0.77 | C74: 0.511592 | D74: 0.1875 | E74: 7.835157333 | F74: 106000000000 | G74: 6.537735849e-12 | H74: 3.522626263e+11 | I74: 3.149395985e+11 | J74: 314939.5985 | K74: 314.9395985
B75: -0.77 | C75: 0.511227 | D75: 0.17527 | E75: 8.310018828 | F75: 106000000000 | G75: 6.537735849e-12 | H75: 3.522626263e+11 | I75: 3.239414184e+11 | J75: 323941.4184 | K75: 323.9414184
B76: -0.77 | C76: 0.512078 | D76: 0.20412 | E76: 7.281001372 | F76: 106000000000 | G76: 6.537735849e-12 | H76: 3.522626263e+11 | I76: 3.037177058e+11 | J76: 303717.7058 | K76: 303.7177058
B77: -0.77 | C77: 0.513388 | D77: 0.2484 | E77: 6.166618357 | F77: 106000000000 | G77: 6.537735849e-12 | H77: 3.522626263e+11 | I77: 2.783040563e+11 | J77: 278304.0563 | K77: 278.3040563
I78: Average | J78: =AVERAGE(J63:J77) -> 308526.741
I79: Maximum | J79: =MAX(J63:J78) -> 329644.7569
I80: Minimum | J80: =MIN(J63:J79) -> 264989.9138
I81: Difference | J81: =(J79-ABS(J80)) -> 64654.84304

Sheet Rb-Sr _12
A1: Rubidium | B1: TABLE 1. | K1: Rubidium_051.pdf
A2: Strontium | B2: Initial | C2: Today | D2: Today | E2: The Ratio | F2: Half | G2: Decay | H2: 2.303/Delta | I2: Age | J2: Age | K2: Age | L2: Model Age | M2: Model Age | N2: Model Age
A3: Dating | B3: 87Sr/86Sr | C3: 87Sr/86Sr | D3: 87Rb/86Sr | E3: Plus One | F3: Life | G3: Constant | H3: Constant | I3: Years | J3: Million Years | K3: Billion Years | L3: Million Years | M3: % Difference | N3: Difference
A4: TABLE 1 | B4: 0.70306 | C4: 0.70308 | D4: 0.0152 | E4: =1+((C4-B4)/D4) -> 1.001315789 | F4: 48800000000 | G4: =(0.693/F4) -> 1.420081967e-11 | H4: =(2.303/G4) -> 1.621737374e+11 | I4: =(LOG(E4))*(H4) -> 92611662.59 | J4: =(I4/1000000) -> 92.61166259 | K4: =(J4/1000) -> 0.09261166259
B5: 0.7034 | C5: 0.70341 | D5: 0.0024 | E5: 1.004166667 | F5: 48800000000 | G5: 1.420081967e-11 | H5: 1.621737374e+11 | I5: 292853474.9 | J5: 292.8534749 | K5: 0.2928534749
B6: 0.70294 | C6: 0.70294 | D6: 0.0022 | E6: 1 | F6: 48800000000 | G6: 1.420081967e-11 | H6: 1.621737374e+11 | I6: 0 | J6: 0 | K6: 0
B7: 0.69396 | C7: 0.70869 | D7: 10.2 | E7: 1.001444118 | F7: 48800000000 | G7: 1.420081967e-11 | H7: 1.621737374e+11 | I7: 101637509.4 | J7: 101.6375094 | K7: 0.1016375094
B8: 0.69528 | C8: 0.70928 | D8: 9.7 | E8: 1.001443299 | F8: 48800000000 | G8: 1.420081967e-11 | H8: 1.621737374e+11 | I8: 101579932.1 | J8: 101.5799321 | K8: 0.1015799321
B9: 0.70231 | C9: 0.70371 | D9: 0.951 | E9: 1.001472135 | F9: 48800000000 | G9: 1.420081967e-11 | H9: 1.621737374e+11 | I9: 103607902.4 | J9: 103.6079024 | K9: 0.1036079024
B10: 0.70309 | C10: 0.70321 | D10: 0.0935 | E10: 1.001283422 | F10: 48800000000 | G10: 1.420081967e-11 | H10: 1.621737374e+11 | I10: 90334975.08 | J10: 90.33497508 | K10: 0.09033497508
B11: 0.70305 | C11: 0.70309 | D11: 0.0294 | E11: 1.001360544 | F11: 48800000000 | G11: 1.420081967e-11 | H11: 1.621737374e+11 | I11: 95759578.66 | J11: 95.75957866 | K11: 0.09575957866
B12: 0.7028 | C12: 0.7036 | D12: 0.6596 | E12: 1.001212856 | F12: 48800000000 | G12: 1.420081967e-11 | H12: 1.621737374e+11 | I12: 85371112.58 | J12: 85.37111258 | K12: 0.08537111258
B13: 0.70243 | C13: 0.70401 | D13: 1.26 | E13: 1.001253968 | F13: 48800000000 | G13: 1.420081967e-11 | H13: 1.621737374e+11 | I13: 88263109.78 | J13: 88.26310978 | K13: 0.08826310978
I14: Average | J14: =AVERAGE(J4:J13) -> 105.2019257 | K14: =AVERAGE(K4:K13) -> 0.1052019257
I15: Maximum | J15: =MAX(J4:J14) -> 292.8534749 | K15: =MAX(K4:K14) -> 0.2928534749
I16: Minimum | J16: =MIN(J4:J15) -> 0 | K16: =MIN(K4:K15) -> 0
I17: Difference | J17: =(J15+ABS(J16)) -> 292.8534749 | K17: =(K15+ABS(K16)) -> 0.2928534749
A20: Sample | B20: Table 4 | E20: Age | I20: Sample | M20: Age
A21: -1 | B21: 206Pb/204Pb | C21: 238U/204Pb | D21: 206Pb/238U | E21: 206Pb/238U | I21: Number | J21: 206Pb/204Pb | K21: 207Pb/204Pb | L21: 207Pb/206Pb | M21: 207Pb/206Pb
A22: -2 | B22: 49.29 | C22: 2467 | D22: =(B22/C22) -> 0.01997973247 | E22: =[1]!AgePb6U8(D22) -> 127.5278451 | I22: TMD3b-2 | J22: 19.139 | K22: 15.544 | L22: =(K22/J22) -> 0.8121636449 | M22: =[1]!AgePb76($L$22) -> 4943.218273
A23: -3 | B23: 64.66 | C23: 3418 | D23: =(B23/C23) -> 0.01891749561 | E23: =[1]!AgePb6U8(D23) -> 120.8108617 | I23: TMD10c-1 | J23: 19.496 | K23: 15.611 | L23: =(K23/J23) -> 0.8007283545 | M23: =[1]!AgePb76($L$23) -> 4923.032624
A24: -4 | B24: 61.59 | C24: 3360 | D24: 0.01833035714 | E24: =[1]!AgePb6U8(D24) -> 117.0951255 | I24: TMD10c-2 | J24: 19.343 | K24: 15.642 | L24: 0.8086646332 | M24: =[1]!AgePb76($L$24) -> 4937.074064
A25: -5 | B25: 74.94 | C25: 4344 | D25: 0.01725138122 | E25: =[1]!AgePb6U8(D25) -> 110.2611809 | I25: TMD4-3 | J25: 19.471 | K25: 15.714 | L25: 0.8070463767 | M25: =[1]!AgePb76($L$25) -> 4934.222861
A26: -7 | B26: 181.85 | C26: 12761 | D26: 0.01425045059 | E26: =[1]!AgePb6U8(D26) -> 91.21590566 | I26: TMD4-8 | J26: 19.62 | K26: 15.828 | L26: 0.8067278287 | M26: =[1]!AgePb76($L$26) -> 4933.660896
A27: -8 | B27: 38.64 | C27: 1443 | D27: 0.02677754678 | E27: =[1]!AgePb6U8(D27) -> 170.3484454 | I27: TMD14-9 | J27: 19.363 | K27: 15.636 | L27: 0.8075194959 | M27: =[1]!AgePb76($L$27) -> 4935.057078
A28: -9 | B28: 109.01 | C28: 6411 | D28: 0.01700358758 | E28: =[1]!AgePb6U8(D28) -> 108.6906989 | I28: TMD15-5 | J28: 19.44 | K28: 15.661 | L28: 0.8056069959 | M28: =[1]!AgePb76($L$28) -> 4931.681704
A29: -10 | B29: 134.09 | C29: 8425 | D29: 0.015915727 | E29: =[1]!AgePb6U8(D29) -> 101.7914576 | I29: TMD16-1 | J29: 19.497 | K29: 15.652 | L29: 0.8027901728 | M29: =[1]!AgePb76($L$29) -> 4926.694733
A30: -11 | B30: 72.72 | C30: 3743 | D30: 0.0194282661 | E30: =[1]!AgePb6U8(D30) -> 124.0415582 | I30: TMD16-2 | J30: 19.496 | K30: 15.669 | L30: 0.8037033238 | M30: =[1]!AgePb76($L$30) -> 4928.313434
A31: -12 | B31: 90.84 | C31: 5287 | D31: 0.0171817666 | E31: =[1]!AgePb6U8(D31) -> 109.8200117 | L31: Average | M31: =AVERAGE(M21:M30) -> 4932.55063
A32: -14 | B32: 91.67 | C32: 5168 | D32: 0.0177380031 | E32: =[1]!AgePb6U8(D32) -> 113.3442105 | L32: Maximum | M32: =MAX(M21:M31) -> 4943.218273
A33: -15 | B33: 35.22 | C33: 1101 | D33: 0.03198910082 | E33: =[1]!AgePb6U8(D33) -> 202.9853717 | L33: Minimum | M33: =MIN(M21:M32) -> 4923.032624
A34: -16 | B34: 48.21 | C34: 2072 | D34: 0.02326737452 | E34: =[1]!AgePb6U8(D34) -> 148.2727864 | L34: Difference | M34: =(M32-ABS(M33)) -> 20.18564879
A35: -18 | B35: 29.17 | C35: 737.1 | D35: 0.03957400624 | E35: =[1]!AgePb6U8(D35) -> 250.1919088
A36: -19 | B36: 31.21 | C36: 722.3 | D36: 0.04320919286 | E36: =[1]!AgePb6U8(D36) -> 272.6944356
A37: -20 | B37: 35.43 | C37: 989.8 | D37: 0.03579511012 | E37: =[1]!AgePb6U8(D37) -> 226.7162232
A38: -21 | B38: 36.19 | C38: 1045 | D38: 0.03463157895 | E38: =[1]!AgePb6U8(D38) -> 219.4707557 | H38: Dating | I38: Age | J38: Age | K38: Age
A39: -22 | B39: 36.23 | C39: 1053 | D39: 0.03440645774 | E39: =[1]!AgePb6U8(D39) -> 218.0679545 | H39: Summary | I39: 207Pb/206Pb | J39: 206Pb/238U | K39: 87Rb/86Sr
A40: -23 | B40: 37.05 | C40: 1072 | D40: 0.03456156716 | E40: =[1]!AgePb6U8(D40) -> 219.0345229 | H40: Average | I40: 4932.55063 | J40: 211.5824856 | K40: 105.2019257
A41: -24 | B41: 34.63 | C41: 942.6 | D41: 0.03673880755 | E41: =[1]!AgePb6U8(D41) -> 232.5867809 | H41: Maximum | I41: 4943.218273 | J41: 702.1446036 | K41: 292.8534749
A42: -25 | B42: 23.27 | C42: 223.3 | D42: 0.1042095835 | E42: =[1]!AgePb6U8(D42) -> 639.0315551 | H42: Minimum | I42: 4923.032624 | J42: 91.21590566 | K42: 0
A43: -26 | B43: 22.98 | C43: 215.3 | D43: 0.1067347887 | E43: =[1]!AgePb6U8(D43) -> 653.7569598 | H43: Difference | I43: 20.18564879 | J43: 610.9286979 | K43: 292.8534749
A44: -27 | B44: 22.75 | C44: 197.7 | D44: 0.1150733434 | E44: =[1]!AgePb6U8(D44) -> 702.1446036
A45: -28 | B45: 25.19 | C45: 340.6 | D45: 0.07395772167 | E45: =[1]!AgePb6U8(D45) -> 459.9557132
A46: -29 | B46: 30 | C46: 640.2 | D46: 0.04686035614 | E46: =[1]!AgePb6U8(D46) -> 295.2170686
A47: -31 | B47: 26.93 | C47: 429.9 | D47: 0.06264247499 | E47: =[1]!AgePb6U8(D47) -> 391.6757901
A48: -32 | B48: 38.2 | C48: 1291 | D48: 0.02958946553 | E48: =[1]!AgePb6U8(D48) -> 187.9783764
A49: -33 | B49: 39.35 | C49: 1374 | D49: 0.02863901019 | E49: =[1]!AgePb6U8(D49) -> 182.0246843
A50: -34 | B50: 33.54 | C50: 974.9 | D50: 0.03440352857 | E50: =[1]!AgePb6U8(D50) -> 218.0496999
A51: -35 | B51: 36.56 | C51: 1172 | D51: 0.03119453925 | E51: =[1]!AgePb6U8(D51) -> 198.0201586
A52: -36 | B52: 34.59 | C52: 1027 | D52: 0.03368062317 | E52: =[1]!AgePb6U8(D52) -> 213.5429705
A53: -37 | B53: 38.66 | C53: 1305 | D53: 0.02962452107 | E53: =[1]!AgePb6U8(D53) -> 188.1978606
A54: -39 | B54: 35.32 | C54: 1066 | D54: 0.03313320826 | E54: =[1]!AgePb6U8(D54) -> 210.1281846
A55: -40 | B55: 32.63 | C55: 941.3 | D55: 0.03466482524 | E55: =[1]!AgePb6U8(D55) -> 219.677898
A56: -41 | B56: 60.5 | C56: 2775 | D56: 0.0218018018 | E56: =[1]!AgePb6U8(D56) -> 139.0333039
A57: -42 | B57: 50.01 | C57: 2145 | D57: 0.02331468531 | E57: =[1]!AgePb6U8(D57) -> 148.5708296
A58: -43 | B58: 48.27 | C58: 1958 | D58: 0.02465270684 | E58: =[1]!AgePb6U8(D58) -> 156.9942471
A59: -45 | B59: 64.24 | C59: 3110 | D59: 0.02065594855 | E59: =[1]!AgePb6U8(D59) -> 131.800209
A60: -46 | B60: 56.61 | C60: 2730 | D60: 0.02073626374 | E60: =[1]!AgePb6U8(D60) -> 132.3074559
A61: -47 | B61: 47.97 | C61: 2084 | D61: 0.02301823417 | E61: =[1]!AgePb6U8(D61) -> 146.7030525
A62: -48 | B62: 58.44 | C62: 2914 | D62: 0.02005490734 | E62: =[1]!AgePb6U8(D62) -> 128.0029433
A63: -49 | B63: 52.45 | C63: 2465 | D63: 0.02127789047 | E63: =[1]!AgePb6U8(D63) -> 135.7271681
A64: -50 | B64: 36.81 | C64: 1234 | D64: 0.02982982172 | E64: =[1]!AgePb6U8(D64) -> 189.4831069
A65: -51 | B65: 34.85 | C65: 1069 | D65: 0.03260056127 | E65: =[1]!AgePb6U8(D65) -> 206.8037841
A66: -52 | B66: 32.71 | C66: 928.7 | D66: 0.03522127705 | E66: =[1]!AgePb6U8(D66) -> 223.1439041
A67: -53 | B67: 34.53 | C67: 1095 | D67: 0.03153424658 | E67: =[1]!AgePb6U8(D67) -> 200.1434568
A68: -54 | B68: 46.96 | C68: 2028 | D68: 0.02315581854 | E68: =[1]!AgePb6U8(D68) -> 147.569964
A69: -55 | B69: 39.45 | C69: 1517 | D69: 0.02600527357 | E69: =[1]!AgePb6U8(D69) -> 165.4980607
A70: -56 | B70: 53.93 | C70: 2523 | D70: 0.02137534681 | E70: =[1]!AgePb6U8(D70) -> 136.3422935
B71: 47.44 | C71: 2062 | D71: 0.02300678952 | E71: =[1]!AgePb6U8(D71) -> 146.6309352
D72: Average | E72: =AVERAGE(E22:E71) -> 211.5824856
D73: Maximum | E73: =MAX(E22:E72) -> 702.1446036
D74: Minimum | E74: =MIN(E22:E73) -> 91.21590566
D75: Difference | E75: =(E73-ABS(E74)) -> 610.9286979
D81: Age
A82: Pb-206 | B82: Pb-207 | C82: Pb-207/206 | D82: Pb-207/206 | E82: Age Sorted
A83: 37.8 | B83: 1.6 | C83: =(B83/A83) -> 0.04232804233 | D83: =[1]!AgePb76($C$83) -> -206.9784777 | E83: Pb-207/206
A84: 35.8 | B84: 2.1 | C84: =(B84/A84) -> 0.05865921788 | D84: =[1]!AgePb76($C$84) -> 554.4712428 | E84: 2102.268961
A85: 36.6 | B85: 1.9 | C85: 0.05191256831 | D85: =[1]!AgePb76($C$85) -> 281.5606767 | E85: 1223.410344
A86: 36.3 | B86: 2.1 | C86: 0.05785123967 | D86: =[1]!AgePb76($C$86) -> 524.1326074 | E86: 1178.842355
A87: 37.6 | B87: 4.9 | C87: 0.1303191489 | D87: =[1]!AgePb76($C$87) -> 2102.268961 | E87: 1170.81565
A88: 62.7 | B88: 3 | C88: 0.04784688995 | D88: =[1]!AgePb76($C$88) -> 91.70523429 | E88: 1049.719862
A89: 68.6 | B89: 3.5 | C89: 0.05102040816 | D89: =[1]!AgePb76($C$89) -> 241.7520154 | E89: 1024.178286
A90: 54.7 | B90: 2.9 | C90: 0.05301645338 | D90: =[1]!AgePb76($C$90) -> 329.5010101 | E90: 988.5677592
A91: 71 | B91: 3.8 | C91: 0.05352112676 | D91: =[1]!AgePb76($C$91) -> 350.9537915 | E91: 930.7232737
A92: 37 | B92: 2 | C92: 0.05405405405 | D92: =[1]!AgePb76($C$92) -> 373.302286 | E92: 887.5624853
A93: 34.6 | B93: 2.1 | C93: 0.06069364162 | D93: =[1]!AgePb76($C$93) -> 628.3944028 | E93: 863.3474158
A94: 33.8 | B94: 2 | C94: 0.05917159763 | D94: =[1]!AgePb76($C$94) -> 573.4154456 | E94: 781.3573404
A95: 32.2 | B95: 2.1 | C95: 0.0652173913 | D95: =[1]!AgePb76($C$95) -> 781.3573404 | E95: 703.980225
A96: 34.2 | B96: 1.4 | C96: 0.04093567251 | D96: =[1]!AgePb76($C$96) -> -291.6067643 | E96: 703.4010422
A97: 32.4 | B97: 1.7 | C97: 0.0524691358 | D97: =[1]!AgePb76($C$97) -> 305.9091131 | E97: 668.1632145
A98: 43 | B98: 3.1 | C98: 0.07209302326 | D98: =[1]!AgePb76($C$98) -> 988.5677592 | E98: 663.3208655
A99: 34.2 | B99: 2.7 | C99: 0.07894736842 | D99: =[1]!AgePb76($C$99) -> 1170.81565 | E99: 633.8142905
A100: 32.8 | B100: 2.6 | C100: 0.07926829268 | D100: =[1]!AgePb76($C$100) -> 1178.842355 | E100: 628.3944028
A101: 45.2 | B101: 2.1 | C101: 0.04646017699 | D101: =[1]!AgePb76($C$101) -> 21.56754445 | E101: 608.3864153
A102: 28.9 | B102: 1.5 | C102: 0.05190311419 | D102: =[1]!AgePb76($C$102) -> 281.1439066 | E102: 573.4154456
A103: 30.5 | B103: 1.2 | C103: 0.0393442623 | D103: =[1]!AgePb76($C$103) -> -393.8276372 | E103: 572.8027127
A104: 31.1 | B104: 1.3 | C104: 0.04180064309 | D104: =[1]!AgePb76($C$104) -> -238.5352045 | E104: 554.4712428
A105: 30.6 | B105: 1.4 | C105: 0.04575163399 | D105: =[1]!AgePb76($C$105) -> -15.45462802 | E105: 524.1326074
A106: 30.8 | B106: 1.9 | C106: 0.06168831169 | D106: =[1]!AgePb76($C$106) -> 663.3208655 | E106: 452.3684523
A107: 30.6 | B107: 1.1 | C107: 0.03594771242 | D107: =[1]!AgePb76($C$107) -> -634.9049173 | E107: 429.0302575
A108: 53.7 | B108: 2.7 | C108: 0.05027932961 | D108: =[1]!AgePb76($C$108) -> 207.9270511 | E108: 427.7826277
A109: 56.3 | B109: 2.7 | C109: 0.04795737123 | D109: =[1]!AgePb76($C$109) -> 97.16668181 | E109: 422.2981207
A110: 53 | B110: 2.8 | C110: 0.05283018868 | D110: =[1]!AgePb76($C$110) -> 321.5107114 | E110: 411.1585836
A111: 33.3 | B111: 1.7 | C111: 0.05105105105 | D111: =[1]!AgePb76($C$111) -> 243.1356194 | E111: 401.0609835
A112: 27.5 | B112: 1.4 | C112: 0.05090909091 | D112: =[1]!AgePb76($C$112) -> 236.7158293 | E112: 373.302286
A113: 27 | B113: 0.1 | C113: 0.003703703704 | E113: 350.9537915
A114: 26.8 | B114: 1.4 | C114: 0.05223880597 | D114: =[1]!AgePb76($C$114) -> 295.8771007 | E114: 334.1392444
A115: 27.1 | B115: 1 | C115: 0.036900369 | D115: =[1]!AgePb76($C$115) -> -563.8091756 | E115: 329.5010101
A116: 27.3 | B116: 1.3 | C116: 0.04761904762 | D116: =[1]!AgePb76($C$116) -> 80.38459466 | E116: 327.062105
A117: 26.8 | B117: 1.2 | C117: 0.0447761194 | D117: =[1]!AgePb76($C$117) -> -67.81995727 | E117: 321.5107114
A118: 35 | B118: 2.2 | C118: 0.06285714286 | D118: =[1]!AgePb76($C$118) -> 703.4010422 | E118: 305.9091131
A119: 32.3 | B119: 2.4 | C119: 0.07430340557 | D119: =[1]!AgePb76($C$119) -> 1049.719862 | E119: 295.8771007
A120: 40.2 | B120: 2.2 | C120: 0.05472636816 | D120: =[1]!AgePb76($C$120) -> 401.0609835 | E120: 281.5606767
A121: 29.3 | B121: 1.4 | C121: 0.04778156997 | D121: =[1]!AgePb76($C$121) -> 88.46769327 | E121: 281.1439066
A122: 32 | B122: 1.7 | C122: 0.053125 | D122: =[1]!AgePb76($C$122) -> 334.1392444 | E122: 243.1356194
A123: 33.4 | B123: 2.1 | C123: 0.0628742515 | D123: =[1]!AgePb76($C$123) -> 703.980225 | E123: 241.7520154
A124: 32.5 | B124: 1.8 | C124: 0.05538461538 | D124: =[1]!AgePb76($C$124) -> 427.7826277 | E124: 236.7158293
A125: 69.2 | B125: 3.3 | C125: 0.04768786127 | D125: =[1]!AgePb76($C$125) -> 83.81191648 | E125: 224.1532444
A126: 64.2 | B126: 3.1 | C126: 0.04828660436 | D126: =[1]!AgePb76($C$126) -> 113.3348227 | E126: 207.9270511
A127: 64.2 | B127: 3.4 | C127: 0.05295950156 | D127: =[1]!AgePb76($C$127) -> 327.062105
A128: 37 | B128: 3 | C128: 0.08108108108 | D128: =[1]!AgePb76($C$128) -> 1223.410344 | E128: 122.9939813
A129: 44.9 | B129: 2.7 | C129: 0.06013363029 | D129: =[1]!AgePb76($C$129) -> 608.3864153 | E129: 113.3348227
A130: 36.2 | B130: 2 | C130: 0.05524861878 | D130: =[1]!AgePb76($C$130) -> 422.2981207 | E130: 108.74302
A131: 36.8 | B131: 2.7 | C131: 0.07336956522 | D131: =[1]!AgePb76($C$131) -> 1024.178286 | E131: 97.16668181
A132: 33 | B132: 1.6 | C132: 0.04848484848 | D132: =[1]!AgePb76($C$132) -> 122.9939813 | E132: 91.70523429
A133: 38.2 | B133: 2.1 | C133: 0.05497382199 | D133: =[1]!AgePb76($C$133) -> 411.1585836 | E133: 88.46769327
A134: 37.2 | B134: 2.3 | C134: 0.06182795699 | D134: =[1]!AgePb76($C$134) -> 668.1632145 | E134: 83.81191648
A135: 35.5 | B135: 2.1 | C135: 0.05915492958 | D135: =[1]!AgePb76($C$135) -> 572.8027127 | E135: 80.38459466
A136: 39.5 | B136: 2 | C136: 0.05063291139 | D136: =[1]!AgePb76($C$136) -> 224.1532444 | E136: 68.5004546
A137: 36 | B137: 1.8 | C137: 0.05 | D137: =[1]!AgePb76($C$137) -> 194.9931303 | E137: 21.56754445
A138: 39.7 | B138: 2.2 | C138: 0.05541561713 | D138: =[1]!AgePb76($C$138) -> 429.0302575 | E138: -15.45462802
A139: 40.1 | B139: 1.9 | C139: 0.04738154613 | D139: =[1]!AgePb76($C$139) -> 68.5004546 | E139: -24.33384063
A140: 37.1 | B140: 2.6 | C140: 0.07008086253 | D140: =[1]!AgePb76($C$140) -> 930.7232737 | E140: -67.81995727
A141: 35.1 | B141: 1.6 | C141: 0.04558404558 | D141: =[1]!AgePb76($C$141) -> -24.33384063 | E141: -206.9784777
A142: 41.5 | B142: 2 | C142: =(B142/A142) -> 0.04819277108 | D142: =[1]!AgePb76($C$142) -> 108.74302 | E142: -238.5352045
A143: 51.6 | B143: 3.5 | C143: 0.06782945736 | D143: =[1]!AgePb76($C$143) -> 863.3474158 | E143: -291.6067643
A144: 37.5 | B144: 2.1 | C144: 0.056 | D144: =[1]!AgePb76($C$144) -> 452.3684523 | E144: -393.8276372
A145: 40.8 | B145: 2.8 | C145: 0.06862745098 | D145: =[1]!AgePb76($C$145) -> 887.5624853 | E145: -563.8091756
A146: 37.8 | B146: 2.3 | C146: 0.06084656085 | D146: =[1]!AgePb76($C$146) -> 633.8142905 | E146: -634.9049173
C147: Average | D147: =AVERAGE(D83:D146) -> 389.9653555
C148: Maximum | D148: =MAX(D83:D147) -> 2102.268961
C149: Minimum | D149: =MIN(D83:D148) -> -634.9049173
C150: Difference | D150: =(D148+ABS(D149)) -> 2737.173879

Sheet Rb-Sr _13
A1: Rubidium | B1: TABLE 1. | K1: Rubidium_052.pdf
A2: Strontium | B2: Initial | C2: Today | D2: Today | E2: The Ratio | F2: Half | G2: Decay | H2: 2.303/Delta | I2: Age | J2: Age | K2: Age | L2: Model Age | M2: Model Age | N2: Model Age
A3: Dating | B3: 87Sr/86Sr | C3: 87Sr/86Sr | D3: 87Rb/86Sr | E3: Plus One | F3: Life | G3: Constant | H3: Constant | I3: Years | J3: Million Years | K3: Billion Years | L3: Million Years | M3: % Difference | N3: Difference
A4: TABLE 1 | B4: 0.701 | C4: 0.723763 | D4: 0.265 | E4: =1+((C4-B4)/D4) -> 1.085898113 | F4: 48800000000 | G4: =(0.693/F4) -> 1.420081967e-11 | H4: =(2.303/G4) -> 1.621737374e+11 | I4: =(LOG(E4))*(H4) -> 5804048621 | J4: =(I4/1000000) -> 5804.048621 | K4: =(J4/1000) -> 5.804048621 | L4: 65
B5: 0.701 | C5: 0.722292 | D5: 0.268 | E5: 1.079447761 | F5: 48800000000 | G5: 1.420081967e-11 | H5: 1.621737374e+11 | I5: 5384432412 | J5: 5384.432412 | K5: 5.384432412
B6: 0.701 | C6: 0.722132 | D6: 0.225 | E6: 1.09392 | F6: 48800000000 | G6: 1.420081967e-11 | H6: 1.621737374e+11 | I6: 6322434383 | J6: 6322.434383 | K6: 6.322434383
B7: 0.701 | C7: 0.72334 | D7: 0.216 | E7: 1.103425926 | F7: 48800000000 | G7: 1.420081967e-11 | H7: 1.621737374e+11 | I7: 6931821874 | J7: 6931.821874 | K7: 6.931821874
B8: 0.701 | C8: 0.72357 | D8: 0.224 | E8: 1.100758929 | F8: 48800000000 | G8: 1.420081967e-11 | H8: 1.621737374e+11 | I8: 6761382623 | J8: 6761.382623 | K8: 6.761382623
B9: 0.701 | C9: 0.72571 | D9: 0.271 | E9: 1.091180812 | F9: 48800000000 | G9: 1.420081967e-11 | H9: 1.621737374e+11 | I9: 6145852781 | J9: 6145.852781 | K9: 6.145852781
B10: 0.701 | C10: 0.755285 | D10: 0.633 | E10: 1.085758294 | F10: 48800000000 | G10: 1.420081967e-11 | H10: 1.621737374e+11 | I10: 5794979378 | J10: 5794.979378 | K10: 5.794979378
B11: 0.701 | C11: 0.742688 | D11: 0.621 | E11: 1.067130435 | F11: 48800000000 | G11: 1.420081967e-11 | H11: 1.621737374e+11 | I11: 4576138448 | J11: 4576.138448 | K11: 4.576138448
B12: 0.701 | C12: 0.750069 | D12: 0.652 | E12: 1.075259202 | F12: 48800000000 | G12: 1.420081967e-11 | H12: 1.621737374e+11 | I12: 5110608246 | J12: 5110.608246 | K12: 5.110608246
B13: 0.701 | C13: 0.722356 | D13: 0.241 | E13: =1+((C13-B13)/D13) -> 1.088614108 | F13: 48800000000 | G13: =(0.693/F13) -> 1.420081967e-11 | H13: =(2.303/G13) -> 1.621737374e+11 | I13: =(LOG(E13))*(H13) -> 5979987622 | J13: =(I13/1000000) -> 5979.987622 | K13: =(J13/1000) -> 5.979987622
B14: 0.701 | C14: 0.714 | D14: 0.157 | E14: 1.082802548 | F14: 48800000000 | G14: 1.420081967e-11 | H14: 1.621737374e+11 | I14: 5602984072 | J14: 5602.984072 | K14: 5.602984072
B15: 0.701 | C15: 0.7298 | D15: 0.275 | E15: 1.104727273 | F15: 48800000000 | G15: 1.420081967e-11 | H15: 1.621737374e+11 | I15: 7014837286 | J15: 7014.837286 | K15: 7.014837286
B16: 0.701 | C16: 0.706011 | D16: 0.0973 | E16: 1.051500514 | F16: 48800000000 | G16: 1.420081967e-11 | H16: 1.621737374e+11 | I16: 3536926384 | J16: 3536.926384 | K16: 3.536926384
B17: 0.701 | C17: 0.711833 | D17: 0.165 | E17: 1.065654545 | F17: 48800000000 | G17: =(0.693/F17) -> 1.420081967e-11 | H17: =(2.303/G17) -> 1.621737374e+11 | I17: =(LOG(E17))*(H17) -> 4478661568 | J17: =(I17/1000000) -> 4478.661568 | K17: =(J17/1000) -> 4.478661568
B18: 0.701 | C18: 0.720106 | D18: 0.238 | E18: =1+((C18-B18)/D18) -> 1.080277311 | F18: 48800000000 | G18: =(0.693/F18) -> 1.420081967e-11 | H18: =(2.303/G18) -> 1.621737374e+11 | I18: =(LOG(E18))*(H18) -> 5438537588 | J18: =(I18/1000000) -> 5438.537588 | K18: =(J18/1000) -> 5.438537588
B19: 0.701 | C19: 0.703523 | D19: 0.0284 | E19: 1.088838028 | F19: 48800000000 | G19: 1.420081967e-11 | H19: 1.621737374e+11 | I19: 5994473327 | J19: 5994.473327 | K19: 5.994473327
B20: 0.701 | C20: 0.70285 | D20: 0.022 | E20: 1.084090909 | F20: 48800000000 | G20: 1.420081967e-11 | H20: 1.621737374e+11 | I20: 5686736037 | J20: 5686.736037 | K20: 5.686736037
B21: 0.701 | C21: 0.709259 | D21: 0.114 | E21: 1.072447368 | F21: 48800000000 | G21: 1.420081967e-11 | H21: 1.621737374e+11 | I21: 4926187481 | J21: 4926.187481 | K21: 4.926187481
I22: Average | J22: =AVERAGE(J2:J21) -> 5638.390563 | K22: =AVERAGE(K2:K21) -> 5.638390563
I23: Maximum | J23: =MAX(J2:J22) -> 7014.837286 | K23: =MAX(K2:K22) -> 7.014837286
I24: Minimum | J24: =MIN(J2:J23) -> 3536.926384 | K24: =MIN(K2:K23) -> 3.536926384
I25: Difference | J25: =(J23-ABS(J24)) -> 3477.910902 | K25: =(K23+ABS(K24)) -> 10.55176367
G29: 87Rb/86Sr | H29: 87Rb/86Sr | I29: 87Rb/86Sr
G30: Maximum Age | H30: Maximum Age | I30: Maximum Age
G31: 7014.837286 | H31: 5979.987622 | I31: 5384.432412
G32: 6931.821874 | H32: 5804.048621 | I32: 5110.608246
G33: 6761.382623 | H33: 5794.979378 | I33: 4926.187481
G34: 6322.434383 | H34: 5686.736037 | I34: 4576.138448
G35: 6145.852781 | H35: 5602.984072 | I35: 4478.661568
G36: 5994.473327 | H36: 5438.537588 | I36: 3536.926384

Sheet Rb-Sr _14
A1: Rubidium_053.pdf | B1: TABLE 7 | J1: Age | K1: Age | L1: Age | N1: 208Pb/232Th | O1: 206Pb/238U | P1: 207Pb/206Pb
B2: 238U/204Pb | C2: 232Th/204Pb | D2: 206Pb/204Pb | E2: 207Pb/204Pb | F2: 208Pb/204Pb | G2: 208Pb/232Th | H2: 206Pb/238U | I2: 207Pb/206Pb | J2: 208Pb/232Th | K2: 206Pb/238U | L2: 207Pb/206Pb | N2: 64609.83903 | O2: 25894.12402 | P2: 6497.647296
B3: 1.597 | C3: 5.2 | D3: 13.734 | E3: 14.504 | F3: 33.835 | G3: =(F3/C3) -> 6.506730769 | H3: =(D3/B3) -> 8.599874765 | I3: =(E3/D3) -> 1.05606524 | J3: =[1]!AgePb8Th2(G3) -> 40743.8111 | K3: =[1]!AgePb6U8(H3) -> 14580.17762 | L3: =[1]!AgePb76(I3) -> 5313.905975 | N3: 50396.57864 | O3: 22873.88268 | P3: 5381.436108
B4: 1.711 | C4: 3 | D4: 13.822 | E4: 14.547 | F4: 33.306 | G4: =(F4/C4) -> 11.102 | H4: =(D4/B4) -> 8.078316774 | I4: =(E4/D4) -> 1.052452612 | J4: =[1]!AgePb8Th2(G4) -> 50396.57864 | K4: =[1]!AgePb6U8(H4) -> 14220.07283 | L4: =[1]!AgePb76(I4) -> 5309.10519 | N4: 40743.8111 | O4: 20347.43575 | P4: 5361.199679
B5: 8.682 | C5: 63.2 | D5: 18.05 | E5: 15.647 | F5: 44.852 | G5: 0.7096835443 | H5: 2.079014052 | I5: 0.8668698061 | J5: =[1]!AgePb8Th2(G5) -> 10839.98568 | K5: =[1]!AgePb6U8(H5) -> 7249.698197 | L5: =[1]!AgePb76(I5) -> 5035.781495 | N5: 33172.23889 | O5: 19155.58521 | P5: 5350.498205
B6: 2.674 | C6: 32.3 | D6: 14.991 | E6: 14.874 | F6: 38.981 | G6: 1.206842105 | H6: 5.606207928 | I6: 0.9921953172 | J6: =[1]!AgePb8Th2(G6) -> 15999.2437 | K6: =[1]!AgePb6U8(H6) -> 12170.89316 | L6: =[1]!AgePb76(I6) -> 5226.360084 | N6: 28598.28161 | O6: 18932.95159 | P6: 5347.108042
B7: 22.6 | C7: 14.509 | D7: 14.786 | E7: 37.002 | H7: 0.6542477876 | I7: 2.502502367 | K7: =[1]!AgePb6U8(H7) -> 3244.779349 | L7: =[1]!AgePb76(I7) -> 6497.647296 | N7: 26292.50787 | O7: 18340.91954 | P7: 5337.305051
B8: 11.35 | C8: 39.2 | D8: 20.852 | E8: 16.07 | F8: 38.171 | G8: 0.97375 | H8: 1.837180617 | I8: 0.7706694801 | J8: =[1]!AgePb8Th2(G8) -> 13743.00731 | K8: =[1]!AgePb6U8(H8) -> 6722.39045 | L8: =[1]!AgePb76(I8) -> 4868.473689 | N8: 18726.27632 | O8: 16498.03693 | P8: 5330.593308
B9: 0.383 | C9: 10.7 | D9: 12.928 | E9: 14.328 | F9: 33.342 | G9: 3.116074766 | H9: 33.75456919 | I9: 1.108292079 | J9: =[1]!AgePb8Th2(G9) -> 28598.28161 | K9: =[1]!AgePb6U8(H9) -> 22873.88268 | L9: =[1]!AgePb76(I9) -> 5381.436108 | N9: 18318.98618 | O9: 16394.44311 | P9: 5328.5222
B10: 0.736 | C10: 53.8 | D10: 13.144 | E10: 14.358 | F10: 40.087 | G10: 0.7451115242 | H10: 17.85869565 | I10: 1.092361534 | J10: =[1]!AgePb8Th2(G10) -> 11254.54198 | K10: =[1]!AgePb6U8(H10) -> 18932.95159 | L10: =[1]!AgePb76(I10) -> 5361.199679 | N10: 15999.2437 | O10: 16373.09918 | P10: 5317.406362
B11: 1.244 | C11: 36.1 | D11: 13.523 | E11: 14.431 | F11: 37.309 | G11: 1.033490305 | H11: 10.87057878 | I11: 1.067144864 | J11: =[1]!AgePb8Th2(G11) -> 14345.70346 | K11: =[1]!AgePb6U8(H11) -> 15948.8346 | L11: =[1]!AgePb76(I11) -> 5328.5222 | N11: 14950.99586 | O11: 16119.88729 | P11: 5313.905975
B12: 0.824 | C12: 1.4 | D12: 13.352 | E12: 14.439 | F12: 32.828 | G12: 23.44857143 | H12: 16.2038835 | I12: 1.081411025 | J12: =[1]!AgePb8Th2(G12) -> 64609.83903 | K12: =[1]!AgePb6U8(H12) -> 18340.91954 | L12: =[1]!AgePb76(I12) -> 5347.108042 | N12: 14879.64143 | O12: 15948.8346 | P12: 5311.577255
B13: 3.901 | C13: 38.2 | D13: 15.008 | E13: 14.857 | F13: 38.155 | G13: 0.9988219895 | H13: 3.847218662 | I13: 0.9899386994 | J13: =[1]!AgePb8Th2(G13) -> 13998.14051 | K13: =[1]!AgePb6U8(H13) -> 10175.05282 | L13: =[1]!AgePb76(I13) -> 5223.158948 | N13: 14345.70346 | O13: 15793.50514 | P13: 5309.10519
B14: 1.843 | C14: 66.1 | D14: 13.695 | E14: 14.499 | F14: 42.405 | G14: 0.6415279879 | H14: 7.430819316 | I14: 1.058707558 | J14: =[1]!AgePb8Th2(G14) -> 10017.73639 | K14: =[1]!AgePb6U8(H14) -> 13743.07144 | L14: =[1]!AgePb76(I14) -> 5317.406362 | N14: 14001.75934 | O14: 14622.61804 | P14: 5295.169344
B15: 1.33 | C15: 13.4 | D15: 14.082 | E15: 14.674 | F15: 35.809 | G15: 2.672313433 | H15: 10.58796992 | I15: 1.042039483 | J15: =[1]!AgePb8Th2(G15) -> 26292.50787 | K15: =[1]!AgePb6U8(H15) -> 15793.50514 | L15: =[1]!AgePb76(I15) -> 5295.169344 | N15: 13998.14051 | O15: 14580.17762 | P15: 5238.982638
B16: 0.669 | C16: 24.6 | D16: 15.043 | E16: 14.873 | F16: 37.53 | G16: 1.525609756 | H16: 22.4857997 | I16: 0.9886990627 | J16: =[1]!AgePb8Th2(G16) -> 18726.27632 | K16: =[1]!AgePb6U8(H16) -> 20347.43575 | L16: =[1]!AgePb76(I16) -> 5221.39717 | N16: 13743.00731 | O16: 14220.07283 | P16: 5232.109426
B17: 1.165 | C17: 49.8 | D17: 13.605 | E17: 14.54 | F17: 39.935 | G17: 0.8019076305 | H17: 11.67811159 | I17: 1.068724734 | J17: =[1]!AgePb8Th2(G17) -> 11901.88779 | K17: =[1]!AgePb6U8(H17) -> 16373.09918 | L17: =[1]!AgePb76(I17) -> 5330.593308 | N17: 13502.1302 | O17: 13743.07144 | P17: 5226.360084
B18: 0.842 | D18: 15.595 | E18: 15.052 | F18: 38.41 | H18: 18.52137767 | I18: 0.9651811478 | K18: =[1]!AgePb6U8(H18) -> 19155.58521 | L18: =[1]!AgePb76(I18) -> 5187.523569 | N18: 12100.88551 | O18: 12170.89316 | P18: 5223.158948
B19: 1.265 | C19: 8.2 | D19: 14.826 | E19: 14.843 | F19: 34.123 | G19: 4.161341463 | H19: 11.7201581 | I19: 1.001146634 | J19: =[1]!AgePb8Th2(G19) -> 33172.23889 | K19: =[1]!AgePb6U8(H19) -> 16394.44311 | L19: =[1]!AgePb76(I19) -> 5238.982638 | N19: 11901.88779 | O19: 10836.61826 | P19: 5221.39717
B20: 0.244 | D20: 13.304 | E20: 14.422 | F20: 33.05 | H20: 54.52459016 | I20: 1.084034877 | K20: =[1]!AgePb6U8(H20) -> 25894.12402 | L20: =[1]!AgePb76(I20) -> 5350.498205 | N20: 11814.99949 | O20: 10737.13788 | P20: 5219.91528
I21: Average | J21: =AVERAGE(J3:J20) -> 24309.31868 | K21: =AVERAGE(K3:K20) -> 15120.05093 | L21: =AVERAGE(L3:L20) -> 5324.126072 | N21: 11594.11159 | O21: 10175.05282 | P21: 5187.523569
I22: Maximum | J22: =MAX(J3:J21) -> 64609.83903 | K22: =MAX(K3:K21) -> 25894.12402 | L22: =MAX(L3:L21) -> 6497.647296 | N22: 11415.63155 | O22: 9656.690825 | P22: 5175.884404
I23: Minimum | J23: =MIN(J3:J22) -> 10017.73639 | K23: =MIN(K3:K22) -> 3244.779349 | L23: =MIN(L3:L22) -> 4868.473689 | N23: 11254.54198 | O23: 9495.680311 | P23: 5117.530931
I24: Difference | J24: =(J22-J23) -> 54592.10264 | K24: =(K22-K23) -> 22649.34467 | L24: =(L22-L23) -> 1629.173607 | N24: 11129.75438 | O24: 7901.565125 | P24: 5100.836064
N25: 10839.98568 | O25: 7249.698197 | P25: 5035.781495
N26: 10380.98784 | O26: 6722.39045 | P26: 4868.473689
I27: Dating | J27: Age | K27: Age | L27: Age | N27: 10017.73639 | O27: 5324.431683 | P27: 25
B28: TABLE 4 | C28: Age | E28: Age | I28: Summary | J28: 208Pb/232Th | K28: 206Pb/238U | L28: 207Pb/206Pb | N28: 8136.571386 | O28: =COUNT(O2:O27) -> 26
B29: 207Pb/235U | C29: 207Pb/235U | D29: 206Pb/238U | E29: 206Pb/238U | I29: Average | J29: 24309.31868 | K29: 15120.05093 | L29: 5324.126072 | N29: 5652.164654
B30: 22.52 | C30: =[1]!AgePb7U5(B30) -> 3206.428515 | D30: 0.6231 | E30: =[1]!AgePb6U8(D30) -> 3122.242713 | I30: Maximum | J30: 64609.83903 | K30: 25894.12402 | L30: 6497.647296 | N30: =COUNT(N2:N29) -> 28
B31: 18.8 | C31: =[1]!AgePb7U5(B31) -> 3031.610842 | D31: 0.5655 | E31: =[1]!AgePb6U8(D31) -> 2889.316756 | I31: Minimum | J31: 10017.73639 | K31: 3244.779349 | L31: 4868.473689
B32: 16.94 | C32: =[1]!AgePb7U5(B32) -> 2931.444237 | D32: 0.5999 | E32: =[1]!AgePb6U8(D32) -> 3029.435148 | I32: Difference | J32: 54592.10264 | K32: 22649.34467 | L32: 1629.173607
B33: 19.97 | C33: =[1]!AgePb7U5(B33) -> 3089.904904 | D33: 0.613 | E33: =[1]!AgePb6U8(D33) -> 3082.00354
B34: 30.87 | C34: =[1]!AgePb7U5(B34) -> 3514.916107 | D34: 0.8536 | E34: =[1]!AgePb6U8(D34) -> 3978.273612
B35: 20.15 | C35: =[1]!AgePb7U5(B35) -> 3098.583445 | D35: 0.6306 | E35: =[1]!AgePb6U8(D35) -> 3151.961613 | N35: 79 | O35: 46 | P35: 32
B36: 20.8 | C36: =[1]!AgePb7U5(B36) -> 3129.319155 | D36: 0.6514 | E36: =[1]!AgePb6U8(D36) -> 3233.672284 | I36: Dating | J36: Age | K36: Age
B37: 22.31 | C37: =[1]!AgePb7U5(B37) -> 3197.32188 | D37: 0.6788 | E37: =[1]!AgePb6U8(D37) -> 3339.753441 | I37: Summary | J37: 207Pb/235U | K37: 206Pb/238U
B38: 22.55 | C38: =[1]!AgePb7U5(B38) -> 3207.722821 | D38: 0.6857 | E38: =[1]!AgePb6U8(D38) -> 3366.19441 | I38: Average | J38: 3220.347578 | K38: 3446.397644
B39: 19.67 | C39: =[1]!AgePb7U5(B39) -> 3075.273771 | D39: 0.5993 | E39: =[1]!AgePb6U8(D39) -> 3027.017138 | I39: Maximum | J39: 3659.580876 | K39: 4798.472019
B40: 20.98 | C40: =[1]!AgePb7U5(B40) -> 3137.668629 | D40: 0.6646 | E40: =[1]!AgePb6U8(D40) -> 3284.995032 | I40: Minimum | J40: 2931.444237 | K40: 2889.316756
B41: 35.75 | C41: =[1]!AgePb7U5(B41) -> 3659.580876 | D41: 1.1051 | E41: =[1]!AgePb6U8(D41) -> 4798.472019 | I41: Difference | J41: 728.1366391 | K41: 1909.155263
B42: 33.61 | C42: =[1]!AgePb7U5(B42) -> 3598.662393 | D42: 0.9981 | E42: =[1]!AgePb6U8(D42) -> 4462.186811
B43: 22.52 | C43: =[1]!AgePb7U5(B43) -> 3206.428515 | D43: 0.7168 | E43: =[1]!AgePb6U8(D43) -> 3484.042501
B44: Average | C44: =AVERAGE(C30:C43) -> 3220.347578 | D44: Average | E44: =AVERAGE(E30:E43) -> 3446.397644 | I44: Age | J44: Age | K44: Age
B45: Maximum | C45: =MAX(C30:C44) -> 3659.580876 | D45: Maximum | E45: =MAX(E30:E44) -> 4798.472019 | I45: 208Pb/232Th | J45: 206Pb/238U | K45: 207Pb/206Pb
B46: Minimum | C46: =MIN(C30:C45) -> 2931.444237 | D46: Minimum | E46: =MIN(E30:E45) -> 2889.316756 | I46: 64609.83903 | J46: 25894.12402 | K46: 6497.647296
B47: Difference | C47: =(C45-C46) -> 728.1366391 | D47: Difference | E47: =(E45-E46) -> 1909.155263 | I47: 50396.57864 | J47: 22873.88268 | K47: 5381.436108
I48: 40743.8111 | J48: 20347.43575 | K48: 5361.199679
I49: 33172.23889 | J49: 19155.58521 | K49: 5350.498205
I50: 28598.28161 | J50: 18932.95159 | K50: 5347.108042
I51: 26292.50787 | J51: 18340.91954 | K51: 5330.593308
I52: 18726.27632 | J52: 16394.44311 | K52: 5328.5222
I53: 15999.2437 | J53: 16373.09918 | K53: 5317.406362
I54: 14345.70346 | J54: 15948.8346 | K54: 5313.905975
I55: 13998.14051 | J55: 15793.50514 | K55: 5309.10519
I56: 13743.00731 | J56: 14580.17762 | K56: 5295.169344
I57: 11901.88779 | J57: 14220.07283 | K57: 5238.982638
I58: 11254.54198 | J58: 13743.07144 | K58: 5226.360084
I59: 10839.98568 | J59: 12170.89316 | K59: 5223.158948
I60: 10017.73639 | J60: 10175.05282 | K60: 5221.39717
J61: 7249.698197 | K61: 5187.523569
J62: 6722.39045 | K62: 5035.781495
J63: 3244.779349 | K63: 4868.473689
A66: Rubidium | K66: Rubidium_053.pdf
A67: Strontium | B67: Initial | C67: Today | D67: Today | E67: The Ratio | F67: Half | G67: Decay | H67: 2.303/Delta | I67: Age | J67: Age | K67: Age | L67: Model Age
A68: Dating | B68: 87Sr/86Sr | C68: 87Sr/86Sr | D68: 87Rb/86Sr | E68: Plus One | F68: Life | G68: Constant | H68: Constant | I68: Years | J68: Million Years | K68: Billion Years | L68: Million Years
A69: TABLE 2. | B69: 0.7019 | C69: 0.73396 | D69: 0.7385 | E69: =1+((C69-B69)/D69) -> 1.043412322 | F69: 48800000000 | G69: =(0.693/F69) -> 1.420081967e-11 | H69: =(2.303/G69) -> 1.621737374e+11 | I69: =(LOG(E69))*(H69) -> 2993072214 | J69: =(I69/1000000) -> 2993.072214 | K69: =(J69/1000) -> 2.993072214 | L69: 65
B70: 0.7019 | C70: 0.76197 | D70: 1.367 | E70: 1.043942941 | F70: 48800000000 | G70: 1.420081967e-11 | H70: 1.621737374e+11 | I70: 3028880277 | J70: 3028.880277 | K70: 3.028880277
B71: 0.7019 | C71: 0.7114 | D71: 0.2205 | E71: 1.0430839 | F71: 48800000000 | G71: 1.420081967e-11 | H71: 1.621737374e+11 | I71: 2970899976 | J71: 2970.899976 | K71: 2.970899976
B72: 0.7019 | C72: 0.72427 | D72: 0.5136 | E72: 1.043555296 | F72: 48800000000 | G72: 1.420081967e-11 | H72: 1.621737374e+11 | I72: 3002722389 | J72: 3002.722389 | K72: 3.002722389
B73: 0.7019 | C73: 1.023 | D73: 7.539 | E73: 1.042591856 | F73: 48800000000 | G73: 1.420081967e-11 | H73: 1.621737374e+11 | I73: 2937668283 | J73: 2937.668283 | K73: 2.937668283
B74: 0.7019 | C74: 0.9064 | D74: 4.889 | E74: 1.041828595 | F74: 48800000000 | G74: 1.420081967e-11 | H74: 1.621737374e+11 | I74: 2886088141 | J74: 2886.088141 | K74: 2.886088141
B75: 0.7019 | C75: 0.9639 | D75: 5.943 | E75: 1.044085479 | F75: 48800000000 | G75: 1.420081967e-11 | H75: 1.621737374e+11 | I75: 3038496156 | J75: 3038.496156 | K75: 3.038496156
B76: 0.7019 | C76: 0.8102 | D76: 2.488 | E76: =1+((C76-B76)/D76) -> 1.043528939 | F76: 48800000000 | G76: =(0.693/F76) -> 1.420081967e-11 | H76: =(2.303/G76) -> 1.621737374e+11 | I76: =(LOG(E76))*(H76) -> 3000943489 | J76: =(I76/1000000) -> 3000.943489 | K76: =(J76/1000) -> 3.000943489
I77: Average | J77: =AVERAGE(J69:J76) -> 2982.346366
I78: Maximum | J78: =MAX(J69:J77) -> 3038.496156
I79: Minimum | J79: =MIN(J69:J78) -> 2886.088141
I80: Difference | J80: =(J78-J79) -> 152.4080154
A85: Rubidium | K85: Rubidium_053.pdf
A86: Strontium | B86: Initial | C86: Today | D86: Today | E86: The Ratio | F86: Half | G86: Decay | H86: 2.303/Delta | I86: Age | J86: Age | K86: Age | L86: Model Age
A87: Dating | B87: 87Sr/86Sr | C87: 87Sr/86Sr | D87: 87Rb/86Sr | E87: Plus One | F87: Life | G87: Constant | H87: Constant | I87: Years | J87: Million Years | K87: Billion Years | L87: Million Years
A88: TABLE 5. | B88: 0.701 | C88: 0.70504 | D88: 0.0965 | E88: =1+((C88-B88)/D88) -> 1.041865285 | F88: 48800000000 | G88: =(0.693/F88) -> 1.420081967e-11 | H88: =(2.303/G88) -> 1.621737374e+11 | I88: =(LOG(E88))*(H88) -> 2888568478 | J88: =(I88/1000000) -> 2888.568478 | K88: =(J88/1000) -> 2.888568478 | L88: 65
B89: 0.701 | C89: 0.74404 | D89: 0.8359 | E89: 1.051489413 | F89: 48800000000 | G89: 1.420081967e-11 | H89: 1.621737374e+11 | I89: 3536182800 | J89: 3536.1828 | K89: 3.5361828
B90: 0.701 | C90: 0.71146 | D90: 0.2211 | E90: 1.04730891 | F90: 48800000000 | G90: 1.420081967e-11 | H90: 1.621737374e+11 | I90: 3255605070 | J90: 3255.60507 | K90: 3.25560507
B91: 0.701 | C91: 0.70482 | D91: 0.0576 | E91: 1.066319444 | F91: 48800000000 | G91: 1.420081967e-11 | H91: 1.621737374e+11 | I91: 4522592318 | J91: 4522.592318 | K91: 4.522592318
B92: 0.701 | C92: 0.70218 | D92: 0.0286 | E92: 1.041258741 | F92: 48800000000 | G92: 1.420081967e-11 | H92: 1.621737374e+11 | I92: 2847553562 | J92: 2847.553562 | K92: 2.847553562
B93: 0.701 | C93: 0.75257 | D93: 1.0032 | E93: 1.051405502 | F93: 48800000000 | G93: 1.420081967e-11 | H93: 1.621737374e+11 | I93: 3530562078 | J93: 3530.562078 | K93: 3.530562078
B94: 0.701 | C94: 0.70874 | D94: 0.1319 | E94: 1.058680819 | F94: 48800000000 | G94: 1.420081967e-11 | H94: 1.621737374e+11 | I94: 4016239838 | J94: 4016.239838 | K94: 4.016239838
I95: Average | J95: =AVERAGE(J88:J94) -> 3513.900592
I96: Maximum | J96: =MAX(J88:J95) -> 4522.592318
I97: Minimum | J97: =MIN(J88:J96) -> 2847.553562
I98: Difference | J98: =(J96-J97) -> 1675.038756
A101: Rubidium | K101: Rubidium_053.pdf
A102: Strontium | B102: Initial | C102: Today | D102: Today | E102: The Ratio | F102: Half | G102: Decay | H102: 2.303/Delta | I102: Age | J102: Age | K102: Age
A103: Dating | B103: 87Sr/86Sr | C103: 87Sr/86Sr | D103: 87Rb/86Sr | E103: Plus One | F103: Life | G103: Constant | H103: Constant | I103: Years | J103: Million Years | K103: Billion Years
A104: TABLE 6. | B104: 0.7044 | C104: 0.7412 | D104: 0.9056 | E104: =1+((C104-B104)/D104) -> 1.040636042 | F104: 48800000000 | G104: =(0.693/F104) -> 1.420081967e-11 | H104: =(2.303/G104) -> 1.621737374e+11 | I104: =(LOG(E104))*(H104) -> 2805421362 | J104: =(I104/1000000) -> 2805.421362 | K104: =(J104/1000) -> 2.805421362
B105: 0.7044 | C105: 0.7298 | D105: 0.6436 | E105: 1.039465507 | F105: 48800000000 | G105: 1.420081967e-11 | H105: 1.621737374e+11 | I105: 2726153879 | J105: 2726.153879 | K105: 2.726153879
B106: 0.7044 | C106: 0.7947 | D106: 2.203 | E106: 1.04098956 | F106: 48800000000 | G106: 1.420081967e-11 | H106: 1.621737374e+11 | I106: 2829343659 | J106: 2829.343659 | K106: 2.829343659
B107: 0.7044 | C107: 0.7455 | D107: 0.9965 | E107: 1.041244355 | F107: 48800000000 | G107: 1.420081967e-11 | H107: 1.621737374e+11 | I107: 2846580479 | J107: 2846.580479 | K107: 2.846580479
B108: 0.7044 | C108: 0.8049 | D108: 2.48 | E108: 1.040524194 | F108: 48800000000 | G108: 1.420081967e-11 | H108: 1.621737374e+11 | I108: 2797850927 | J108: 2797.850927 | K108: 2.797850927
B109: 0.7044 | C109: 0.7739 | D109: 1.708 | E109: 1.040690867 | F109: 48800000000 | G109: 1.420081967e-11 | H109: 1.621737374e+11 | I109: 2809131808 | J109: 2809.131808 | K109: 2.809131808
B110: 0.7044 | C110: 0.7215 | D110: 0.4117 | E110: 1.041535098 | F110: 48800000000 | G110: 1.420081967e-11 | H110: 1.621737374e+11 | I110: 2866243988 | J110: 2866.243988 | K110: 2.866243988
B111: 0.7044 | C111: 0.7373 | D111: 0.8221 | E111: =1+((C111-B111)/D111) -> 1.040019462 | F111: 48800000000 | G111: =(0.693/F111) -> 1.420081967e-11 | H111: =(2.303/G111) -> 1.621737374e+11 | I111: =(LOG(E111))*(H111) -> 2763678316 | J111: =(I111/1000000) -> 2763.678316 | K111: =(J111/1000) -> 2.763678316
B112: 0.7044 | C112: 0.7552 | D112: 1.2579 | E112: 1.040384768 | F112: 48800000000 | G112: 1.420081967e-11 | H112: 1.621737374e+11 | I112: 2788412855 | J112: 2788.412855 | K112: 2.788412855
B113: 0.7044 | C113: 0.7377 | D113: 0.7957 | E113: 1.041849943 | F113: 48800000000 | G113: 1.420081967e-11 | H113: 1.621737374e+11 | I113: 2887531367 | J113: 2887.531367 | K113: 2.887531367
I114: Average | J114: =AVERAGE(J104:J113) -> 2812.034864
I115: Maximum | J115: =MAX(J104:J114) -> 2887.531367
I116: Minimum | J116: =MIN(J104:J115) -> 2726.153879
I117: Difference | J117: =(J115-J116) -> 161.3774884
A123: Rubidium | K123: Rubidium_053.pdf
A124: Strontium | B124: Initial | C124: Today | D124: Today | E124: The Ratio | F124: Half | G124: Decay | H124: 2.303/Delta | I124: Age | J124: Age | K124: Age
A125: Dating | B125: 87Sr/86Sr | C125: 87Sr/86Sr | D125: 87Rb/86Sr | E125: Plus One | F125: Life | G125: Constant | H125: Constant | I125: Years | J125: Million Years | K125: Billion Years
A126: TABLE 8 | B126: 0.701 | C126: 0.74621 | D126: 1.313 | E126: =1+((C126-B126)/D126) -> 1.034432597 | F126: 48800000000 | G126: =(0.693/F126) -> 1.420081967e-11 | H126: =(2.303/G126) -> 1.621737374e+11 | I126: =(LOG(E126))*(H126) -> 2384310333 | J126: =(I126/1000000) -> 2384.310333 | K126: =(J126/1000) -> 2.384310333
B127: 0.701 | C127: 0.7536 | D127: 1.561 | E127: 1.033696348 | F127: 48800000000 | G127: 1.420081967e-11 | H127: 1.621737374e+11 | I127: 2334163706 | J127: 2334.163706 | K127: 2.334163706
B128: 0.701 | C128: 0.74737 | D128: 1.325 | E128: 1.034996226 | F128: 48800000000 | G128: 1.420081967e-11 | H128: 1.621737374e+11 | I128: 2422675573 | J128: 2422.675573 | K128: 2.422675573
B129: 0.701 | C129: 0.77785 | D129: 2.431 | E129: 1.031612505 | F129: 48800000000 | G129: 1.420081967e-11 | H129: 1.621737374e+11 | I129: 2192037212 | J129: 2192.037212 | K129: 2.192037212
I130: Average | J130: =AVERAGE(J126:J129) -> 2333.296706
B131: Rb/Sr Dating | C131: TABLE 2 | D131: TABLE 5 | E131: TABLE 6 | F131: TABLE 8 | I131: Maximum | J131: =MAX(J126:J130) -> 2422.675573
B132: Summary | C132: Age | D132: Age | E132: Age | F132: Age | I132: Minimum | J132: =MIN(J126:J131) -> 2192.037212
B133: Average | C133: 2982.346366 | D133: 3513.900592 | E133: 2812.034864 | F133: 2333.296706 | I133: Difference | J133: =(J131-J132) -> 230.6383605
B134: Maximum | C134: 3038.496156 | D134: 4522.592318 | E134: 2887.531367 | F134: 2422.675573
B135: Minimum | C135: 2886.088141 | D135: 2847.553562 | E135: 2726.153879 | F135: 2192.037212
B136: Difference | C136: 152.4080154 | D136: 1675.038756 | E136: 161.3774884 | F136: 230.6383605
I139: Age | J139: Age | K139: Age
A140: TABLE 3. | B140: 238U/204Pb | C140: 232Th/204Pb | D140: 206Pb/204Pb | E140: 207Pb/204Pb | F140: 208Pb/204Pb | G140: 208Pb/232Th | H140: 206Pb/238U | I140: 208Pb/232Th | J140: 206Pb/238U | K140: 207Pb/206Pb | L140: 207Pb/206Pb
A141: KK4 | B141: 1.125 | C141: 53 | D141: 13.417 | E141: 14.408 | F141: 40.231 | G141: =(F141/C141) -> 0.7590754717 | H141: =(D141/B141) -> 11.92622222 | I141: =[1]!AgePb8Th2(G141) -> 11415.63155 | J141: =[1]!AgePb6U8(H141) -> 16498.03693 | K141: =[1]!AgePb76(L141) -> 5337.305051 | L141: =(E141/D141) -> 1.073861519
A142: KK5 | B142: 1.291 | C142: 34.2 | D142: 14.446 | E142: 14.392 | F142: 37.207 | G142: =(F142/C142) -> 1.087923977 | H142: =(D142/B142) -> 11.18977537 | I142: =[1]!AgePb8Th2(G142) -> 14879.64143 | J142: =[1]!AgePb6U8(H142) -> 16119.88729 | K142: =[1]!AgePb76(L142) -> 5232.109426 | L142: =(E142/D142) -> 0.996261941
A143: KK6 | B143: 1.577 | C143: 24.3 | D143: 13.662 | E143: 14.404 | F143: 35.848 | G143: 1.475226337 | H143: 8.663284718 | I143: =[1]!AgePb8Th2(G143) -> 18318.98618 | J143: =[1]!AgePb6U8(H143) -> 14622.61804 | K143: =[1]!AgePb76(L143) -> 5311.577255 | L143: 1.054311228
A144: KK7 | B144: 4.625 | C144: 50.5 | D144: 15.551 | E144: 14.886 | F144: 40.106 | G144: 0.7941782178 | H144: 3.362378378 | I144: =[1]!AgePb8Th2(G144) -> 11814.99949 | J144: =[1]!AgePb6U8(H144) -> 9495.680311 | K144: =[1]!AgePb76(L144) -> 5175.884404 | L144: 0.9572374767
A145: KK8 | B145: 4.855 | C145: 40.8 | D145: 16.86 | E145: 15.303 | F145: 38.775 | G145: 0.9503676471 | H145: 3.472708548 | I145: =[1]!AgePb8Th2(G145) -> 13502.1302 | J145: =[1]!AgePb6U8(H145) -> 9656.690825 | K145: =[1]!AgePb76(L145) -> 5100.836064 | L145: 0.9076512456
A146: KKI0 | B146: 3.476 | C146: 49.2 | D146: 14.908 | E146: 14.724 | F146: 40.331 | G146: 0.8197357724 | H146: 4.288837745 | I146: =[1]!AgePb8Th2(G146) -> 12100.88551 | J146: =[1]!AgePb6U8(H146) -> 10737.13788 | K146: =[1]!AgePb76(L146) -> 5219.91528 | L146: 0.9876576335
A147: VT158 | B147: 3.77 | C147: 37.8 | D147: 16.479 | E147: 15.135 | F147: 37.769 | G147: 0.9991798942 | H147: 4.371087533 | I147: =[1]!AgePb8Th2(G147) -> 14001.75934 | J147: =[1]!AgePb6U8(H147) -> 10836.61826 | K147: =[1]!AgePb76(L147) -> 5117.530931 | L147: 0.918441653
A148: VT42 | B148: 9.77 | C148: 62.5 | D148: 23.513 | E148: 16.749 | F148: 41.956 | G148: 0.671296 | H148: 2.406653019 | I148: =[1]!AgePb8Th2(G148) -> 10380.98784 | J148: =[1]!AgePb6U8(H148) -> 7901.565125 | K148: =[1]!AgePb76(L148) -> 4755.79263 | L148: 0.7123293497
A149: VT41 | B149: 48.37 | C149: 57.2 | D149: 44.864 | E149: 21.576 | F149: 42.006 | G149: 0.7343706294 | H149: 0.927517056 | I149: =[1]!AgePb8Th2(G149) -> 11129.75438 | J149: =[1]!AgePb6U8(H149) -> 4230.347624 | K149: =[1]!AgePb76(L149) -> 4183.765424 | L149: 0.4809201141
A150: VT40 | B150: 57.29 | C150: 95.5 | D150: 47.052 | E150: 22.387 | F150: 47.334 | G150: 0.4956439791 | H150: 0.821295165 | I150: =[1]!AgePb8Th2(G150) -> 8136.571386 | J150: =[1]!AgePb6U8(H150) -> 3864.933938 | K150: =[1]!AgePb76(L150) -> 4167.906447 | L150: 0.4757927399
A151: VT39 | B151: 35.29 | C151: 34.1 | D151: 36.914 | E151: 19.988 | F151: 37.35 | G151: 1.095307918 | H151: 1.046018702 | I151: =[1]!AgePb8Th2(G151) -> 14950.99586 | J151: =[1]!AgePb6U8(H151) -> 4614.960892 | K151: =[1]!AgePb76(L151) -> 4358.290153 | L151: 0.5414747792
A152: VT38 | B152: 21.01 | C152: 200.4 | D152: 26.978 | E152: 17.615 | F152: 64.66 | G152: 0.3226546906 | H152: 1.284055212 | I152: =[1]!AgePb8Th2(G152) -> 5652.164654 | J152: =[1]!AgePb6U8(H152) -> 5324.431683 | K152: =[1]!AgePb76(L152) -> 4630.469948 | L152: 0.6529394321
A153: VT34 | B153: 37.39 | C153: 49.6 | D153: 37.07 | E153: 19.856 | F153: 38.424 | G153: 0.7746774194 | H153: 0.9914415619 | I153: =[1]!AgePb8Th2(G153) -> 11594.11159 | J153: =[1]!AgePb6U8(H153) -> 4440.669005 | K153: =[1]!AgePb76(L153) -> 4342.403547 | L153: 0.5356352846
H154: Average | I154: =AVERAGE(I141:I153) -> 12144.50919 | J154: =AVERAGE(J141:J153) -> 9103.352139 | K154: =AVERAGE(K141:K153) -> 4841.060505
B155: Dating | C155: Age | D155: Age | E155: Age | H155: Maximum | I155: =MAX(I141:I154) -> 18318.98618 | J155: =MAX(J141:J154) -> 16498.03693 | K155: =MAX(K141:K154) -> 5337.305051
B156: Summary | C156: 208Pb/232Th | D156: 206Pb/238U | E156: 207Pb/206Pb | H156: Minimum | I156: =MIN(I141:I155) -> 5652.164654 | J156: =MIN(J141:J155) -> 3864.933938 | K156: =MIN(K141:K155) -> 4167.906447
B157: Average | C157: 12144.50919 | D157: 9103.352139 | E157: 4841.060505 | H157: Difference | I157: =(I155-I156) -> 12666.82153 | J157: =(J155-J156) -> 12633.10299 | K157: =(K155-K156) -> 1169.398603
B158: Maximum | C158: 18318.98618 | D158: 16498.03693 | E158: 5337.305051
B159: Minimum | C159: 5652.164654 | D159: 3864.933938 | E159: 4167.906447
B160: Difference | C160: 12666.82153 | D160: 12633.10299 | E160: 1169.398603 | I160: Age Sorted | J160: Age Sorted | K160: Age Sorted
I161: 208Pb/232Th | J161: 206Pb/238U | K161: 207Pb/206Pb
I162: 18318.98618 | J162: 16498.03693 | K162: 5337.305051
I163: 14950.99586 | J163: 16119.88729 | K163: 5311.577255
I164: 14879.64143 | J164: 14622.61804 | K164: 5232.109426
I165: 14001.75934 | J165: 10836.61826 | K165: 5219.91528
I166: 13502.1302 | J166: 10737.13788 | K166: 5175.884404
I167: 12100.88551 | J167: 9656.690825 | K167: 5117.530931
I168: 11814.99949 | J168: 9495.680311 | K168: 5100.836064
I169: 11594.11159 | J169: 7901.565125 | K169: 4755.79263
I170: 11415.63155 | J170: 5324.431683 | K170: 4630.469948
I171: 11129.75438 | J171: 4614.960892 | K171: 4358.290153
I172: 10380.98784 | J172: 4440.669005 | K172: 4342.403547
I173: 8136.571386 | J173: 4230.347624 | K173: 4183.765424
I174: 5652.164654 | J174: 3864.933938 | K174: 4167.906447

Sheet Rb-Sr _15
A1: Rubidium | B1: TABLE 1. | K1: Rubidium_054.pdf
A2: Strontium | B2: Initial | C2: Today | D2: Today | E2: The Ratio | F2: Half | G2: Decay | H2: 2.303/Delta | I2: Age | J2: Age | K2: Age | L2: Model Age | M2: Model Age | N2: Model Age
A3: Dating | B3: 87Sr/86Sr | C3: 87Sr/86Sr | D3: 87Rb/86Sr | E3: Plus One | F3: Life | G3: Constant | H3: Constant | I3: Years | J3: Million Years | K3: Billion Years | L3: Million Years | M3: % Difference | N3: Difference
A4: TABLE 1 | B4: 0.700057 | C4: 0.711018 | D4: 0.2618 | E4: =1+((C4-B4)/D4) -> 1.041867838 | F4: 48800000000 | G4: =(0.693/F4) -> 1.420081967e-11 | H4: =(2.303/G4) -> 1.621737374e+11 | I4: =(LOG(E4))*(H4) -> 2888741068 | J4: =(I4/1000000) -> 2888.741068 | K4: =(J4/1000) -> 2.888741068 | L4: 71
B5: 0.700057 | C5: 0.70582 | D5: 0.1362 | E5: 1.042312775 | F5: 48800000000 | G5: 1.420081967e-11 | H5: 1.621737374e+11 | I5: 2918812789 | J5: 2918.812789 | K5: 2.918812789
B6: 0.700057 | C6: 0.707948 | D6: 0.1871 | E6: 1.042175307 | F6: 48800000000 | G6: 1.420081967e-11 | H6: 1.621737374e+11 | I6: 2909523188 | J6: 2909.523188 | K6: 2.909523188
B7: 0.700057 | C7: 0.710641 | D7: 0.2496 | E7: 1.042403846 | F7: 48800000000 | G7: 1.420081967e-11 | H7: 1.621737374e+11 | I7: 2924966358 | J7: 2924.966358 | K7: 2.924966358
B8: 0.700057 | C8: 0.702711 | D8: 0.04919 | E8: 1.053954056 | F8: 48800000000 | G8: 1.420081967e-11 | H8: 1.621737374e+11 | I8: 3701077039 | J8: 3701.077039 | K8: 3.701077039
B9: 0.700057 | C9: 0.702711 | D9: 0.0439 | E9: 1.060455581 | F9: 48800000000 | G9: 1.420081967e-11 | H9: 1.621737374e+11 | I9: 4134211082 | J9: 4134.211082 | K9: 4.134211082
B10: 0.700057 | C10: 0.70026 | D10: 0.00321 | E10: =1+((C10-B10)/D10) -> 1.063239875 | F10: 48800000000 | G10: =(0.693/F10) -> 1.420081967e-11 | H10: =(2.303/G10) -> 1.621737374e+11 | I10: =(LOG(E10))*(H10) -> 4318890296 | J10: =(I10/1000000) -> 4318.890296 | K10: =(J10/1000) -> 4.318890296
B11: 0.700057 | C11: 0.700211 | D11: 0.00366 | E11: 1.042076503 | F11: 48800000000 | G11: 1.420081967e-11 | H11: 1.621737374e+11 | I11: 2902845567 | J11: 2902.845567 | K11: 2.902845567
B12: 0.700057 | C12: 0.70249 | D12: 0.01194 | E12: 1.203768844 | F12: 48800000000 | G12: 1.420081967e-11 | H12: 1.621737374e+11 | I12: 1.306197535e+10 | J12: 13061.97535 | K12: 13.06197535
B13: 0.700057 | C13: 0.701597 | D13: 0.00704 | E13: 1.21875 | F13: 48800000000 | G13: 1.420081967e-11 | H13: 1.621737374e+11 | I13: 1.393309643e+10 | J13: 13933.09643 | K13: 13.93309643
B14: 0.700057 | C14: 0.701249 | D14: 0.00777 | E14: 1.153410553 | F14: 48800000000 | G14: 1.420081967e-11 | H14: 1.621737374e+11 | I14: 1.005216409e+10 | J14: 10052.16409 | K14: 10.05216409
I15: Average | J15: =AVERAGE(J4:J14) -> 5795.118478 | K15: =AVERAGE(K5:K14) -> 6.085756219
I16: Maximum | J16: =MAX(J4:J15) -> 13933.09643 | K16: =MAX(K5:K15) -> 13.93309643
I17: Minimum | J17: =MIN(J4:J16) -> 2888.741068 | K17: =MIN(K5:K16) -> 2.902845567
I18: Difference | J18: =(J16-ABS(J17)) -> 11044.35536 | K18: =(K16+ABS(K17)) -> 16.835942

Sheet Rb-Sr _16
A1: Rubidium | B1: TABLE 1. | K1: Rubidium_055.pdf
A2: Strontium | B2: Initial | C2: Today | D2: Today | E2: The Ratio | F2: Half | G2: Decay | H2: 2.303/Delta | I2: Age | J2: Age | K2: Age | L2: Model Age | M2: Model Age | N2: Model Age
A3: Dating | B3: 87Sr/86Sr | C3: 87Sr/86Sr | D3: 87Rb/86Sr | E3: Plus One | F3: Life | G3: Constant | H3: Constant | I3: Years | J3: Million Years | K3: Billion Years | L3: Million Years | M3: % Difference | N3: Difference
A4: TABLE 1 | B4: 0.70441 | C4: 0.70469 | D4: 0.2707 | E4: =1+((C4-B4)/D4) -> 1.001034355 | F4: 48800000000 | G4: =(0.693/F4) -> 1.420081967e-11 | H4: =(2.303/G4) -> 1.621737374e+11 | I4: =(LOG(E4))*(H4) -> 72813197.26 | J4: =(I4/1000000) -> 72.81319726 | K4: =(J4/1000) -> 0.07281319726 | L4: 3120 | M4: =(L4/J4) * 100 -> 4284.937508 | N4: =(L4-J4) -> 3047.186803
B5: 0.70443 | C5: 0.70471 | D5: 0.2841 | E5: 1.000985568 | F5: 48800000000 | G5: 1.420081967e-11 | H5: 1.621737374e+11 | I5: 69380545.26 | J5: 69.38054526 | K5: 0.06938054526 | L5: 3120 | M5: 4496.937849 | N5: =(L5-J5) -> 3050.619455
B6: 0.7044 | C6: 0.70451 | D6: 0.1057 | E6: 1.001040681 | F6: 48800000000 | G6: 1.420081967e-11 | H6: 1.621737374e+11 | I6: 73258268.79 | J6: 73.25826879 | K6: 0.07325826879 | L6: 2460 | M6: 3357.98271 | N6: =(J6-L6) -> -2386.741731
B7: 0.70433 | C7: 0.70451 | D7: 0.1778 | E7: 1.001012373 | F7: 48800000000 | G7: 1.420081967e-11 | H7: 1.621737374e+11 | I7: 71266567.81 | J7: 71.26656781 | K7: 0.07126656781 | L7: 2460 | M7: 3451.828923 | N7: =(J7-L7) -> -2388.733432
B8: 0.70431 | C8: 0.70446 | D8: 0.1525 | E8: 1.000983607 | F8: 48800000000 | G8: 1.420081967e-11 | H8: 1.621737374e+11 | I8: 69242501.97 | J8: 69.24250197 | K8: 0.06924250197 | L8: 3060 | M8: 4419.251056 | N8: =(L8-J8) -> 2990.757498
B9: 0.7043 | C9: 0.70446 | D9: 0.1551 | E9: 1.001031593 | F9: 48800000000 | G9: 1.420081967e-11 | H9: 1.621737374e+11 | I9: 72618807.05 | J9: 72.61880705 | K9: 0.07261880705 | L9: 3060 | M9: 4213.784451 | N9: =(L9-J9) -> 2987.381193
B10: 0.70502 | C10: 0.70625 | D10: 0.2275 | E10: 1.005406593 | F10: 48800000000 | G10: 1.420081967e-11 | H10: 1.621737374e+11 | I10: 379766941.1 | J10: 379.7669411 | K10: 0.3797669411 | L10: 2300 | M10: 605.6346014 | N10: =(J10-L10) -> -1920.233059
B11: 0.70532 | C11: 0.70653 | D11: 0.2069 | E11: 1.005848236 | F11: 48800000000 | G11: 1.420081967e-11 | H11: 1.621737374e+11 | I11: 410698268.4 | J11: 410.6982684 | K11: 0.4106982684 | L11: 2300 | M11: 560.0218402 | N11: =(L11-J11) -> 1889.301732
B12: 0.70362 | C12: 0.7038 | D12: 0.1816 | E12: 1.000991189 | F12: 48800000000 | G12: 1.420081967e-11 | H12: 1.621737374e+11 | I12: 69776045.47 | J12: 69.77604547 | K12: 0.06977604547 | L12: 2300 | M12: 3296.260177 | N12: 2230.223955
B13: 0.70361 | C13: 0.7038 | D13: 0.1868 | E13: 1.001017131 | F13: 48800000000 | G13: 1.420081967e-11 | H13: 1.621737374e+11 | I13: 71601280.99 | J13: 71.60128099 | K13: 0.07160128099 | L13: 2300 | M13: 3212.233033 | N13: 2228.398719
B14: 0.70392 | C14: 0.70399 | D14: 0.0741 | E14: 1.000944669 | F14: 48800000000 | G14: 1.420081967e-11 | H14: 1.621737374e+11 | I14: 66502751.92 | J14: 66.50275192 | K14: 0.06650275192 | L14: 2300 | M14: 3458.503496 | N14: 2233.497248
B15: 0.7039 | C15: 0.70398 | D15: 0.0833 | E15: 1.000960384 | F15: 48800000000 | G15: 1.420081967e-11 | H15: 1.621737374e+11 | I15: 67608509.39 | J15: 67.60850939 | K15: 0.06760850939 | L15: 2300 | M15: 3401.938633 | N15: 2232.391491
B16: 0.7039 | C16: 0.70403 | D16: 0.1347 | E16: 1.000965108 | F16: 48800000000 | G16: 1.420081967e-11 | H16: 1.621737374e+11 | I16: 67940870.5 | J16: 67.9408705 | K16: 0.0679408705 | L16: 2300 | M16: 3385.296631 | N16: 2232.05913
B17: 0.70387 | C17: 0.70401 | D17: 0.1377 | E17: 1.001016703 | F17: 48800000000 | G17: 1.420081967e-11 | H17: 1.621737374e+11 | I17: 71571192.16 | J17: 71.57119216 | K17: 0.07157119216 | L17: 2300 | M17: 3213.583469 | N17: 2228.428808
B18: 0.70365 | C18: 0.70384 | D18: 0.1886 | E18: 1.001007423 | F18: 48800000000 | G18: 1.420081967e-11 | H18: 1.621737374e+11 | I18: 70918261.68 | J18: 70.91826168 | K18: 0.07091826168 | L18: 2300 | M18: 3243.1703 | N18: 2229.081738
B19: 0.70364 | C19: 0.70383 | D19: 0.185 | E19: 1.001027027 | F19: 48800000000 | G19: 1.420081967e-11 | H19: 1.621737374e+11 | I19: 72297584.66 | J19: 72.29758466 | K19: 0.07229758466 | L19: 2300 | M19: 3181.295766 | N19: 2227.702415
B20: 0.70391 | C20: 0.703917 | D20: 0.002 | E20: 1.0035 | F20: 48800000000 | G20: 1.420081967e-11 | H20: 1.621737374e+11 | I20: 246078670.5 | J20: 246.0786705 | K20: 0.2460786705 | L20: 2300 | M20: 934.6604464 | N20: 2053.92133
B21: 0.70388 | C21: 0.703882 | D21: 0.0021 | E21: 1.000952381 | F21: 48800000000 | G21: 1.420081967e-11 | H21: 1.621737374e+11 | I21: 67045373.22 | J21: 67.04537322 | K21: 0.06704537322 | L21: 2300 | M21: 3430.512636 | N21: 2232.954627
B22: 0.70389 | C22: 0.703896 | D22: 0.0021 | E22: 1.002857143 | F22: 48800000000 | G22: 1.420081967e-11 | H22: 1.621737374e+11 | I22: 200944955.9 | J22: 200.9449559 | K22: 0.2009449559 | L22: 2300 | M22: 1144.592055 | N22: 2099.055044
B23: 0.70389 | C23: 0.703889 | D23: 0.0021 | E23: 0.9995238095 | F23: 48800000000 | G23: 1.420081967e-11 | H23: 1.621737374e+11 | I23: -33546635.19 | J23: -33.54663519 | K23: -0.03354663519 | L23: 2300 | M23: -6856.127259 | N23: 2333.546635
B24: 0.70381 | C24: 0.703817 | D24: 0.0052 | E24: 1.001346154 | F24: 48800000000 | G24: 1.420081967e-11 | H24: 1.621737374e+11 | I24: 94747417.91 | J24: 94.74741791 | K24: 0.09474741791 | L24: 2300 | M24: 2427.506787 | N24: 2205.252582
B25: 0.70335 | C25: 0.703356 | D25: 0.0055 | E25: 1.001090909 | F25: 48800000000 | G25: 1.420081967e-11 | H25: 1.621737374e+11 | I25: 76792112.91 | J25: 76.79211291 | K25: 0.07679211291 | L25: 2300 | M25: 2995.099253 | N25: 2223.207887
B26: 0.70333 | C26: 0.703335 | D26: 0.0062 | E26: 1.000806452 | F26: 48800000000 | G26: 1.420081967e-11 | H26: 1.621737374e+11 | I26: 56776431.33 | J26: 56.77643133 | K26: 0.05677643133 | L26: 2300 | M26: 4050.976692 | N26: 2243.223569
B27: 0.70337 | C27: 0.703373 | D27: 0.0027 | E27: 1.001111111 | F27: 48800000000 | G27: 1.420081967e-11 | H27: 1.621737374e+11 | I27: 78213399.77 | J27: 78.21339977 | K27: 0.07821339977 | L27: 2300 | M27: 2940.672579 | N27: 2221.7866
B28: 0.70336 | C28: 0.703369 | D28: 0.0063 | E28: 1.001428571 | F28: 48800000000 | G28: 1.420081967e-11 | H28: 1.621737374e+11 | I28: 100544141.6 | J28: 100.5441416 | K28: 0.1005441416 | L28: 2300 | M28: 2287.552475 | N28: 2199.455858
B29: 0.70339 | C29: 0.703401 | D29: 0.0068 | E29: 1.001617647 | F29: 48800000000 | G29: 1.420081967e-11 | H29: 1.621737374e+11 | I29: 113840705.4 | J29: 113.8407054 | K29: 0.1138407054 | L29: 2300 | M29: 2020.366961 | N29: 2186.159295
I30: Average | J30: =AVERAGE(J4:J29) -> 106.8730064
I31: Maximum | J31: =MAX(J4:J30) -> 410.6982684
I32: Minimum | J32: =MIN(J4:J31) -> -33.54663519
I33: Difference | J33: =(J31+ABS(J32)) -> 444.2449036
A37: Neodymium | K37: Rubidium_055.pdf
A38: Samarium | B38: Initial | C38: Today | D38: Today | E38: The Ratio | F38: Half | G38: Decay | H38: 2.303/Delta | I38: Age | J38: Age
A39: Dating | B39: 143Nd/144Nd | C39: 143Nd/144Nd | D39: 147Sm/144Nd | E39: Plus One | F39: Life | G39: Constant | H39: Constant | I39: Years | J39: Million Years
B40: 0.51274 | C40: 0.512776 | D40: 0.07476 | E40: =1+((C40-B40)/D40) -> 1.000481541 | F40: 106000000000 | G40: =(0.693/F40) -> 6.537735849e-12 | H40: =(2.303/G40) -> 3.522626263e+11 | I40: =(LOG(E40))*(H40) -> 73651151.92 | J40: =(I40/1000000) -> 73.65115192
B41: 0.512729 | C41: 0.512764 | D41: 0.07396 | E41: 1.000473229 | F41: 106000000000 | G41: 6.537735849e-12 | H41: 3.522626263e+11 | I41: 72380117.15 | J41: 72.38011715
B42: 0.512677 | C42: 0.512712 | D42: 0.07385 | E42: 1.000473934 | F42: 106000000000 | G42: 6.537735849e-12 | H42: 3.522626263e+11 | I42: 72487902.22 | J42: 72.48790222 | K42: =(J42/1000) -> 0.07248790222
B43: 0.512714 | C43: 0.512749 | D43: 0.07684 | E43: 1.000455492 | F43: 106000000000 | G43: 6.537735849e-12 | H43: 3.522626263e+11 | I43: 69667893.3 | J43: 69.6678933 | K43: 0.0696678933
B44: 0.512664 | C44: 0.512699 | D44: 0.07578 | E44: 1.000461863 | F44: 106000000000 | G44: 6.537735849e-12 | H44: 3.522626263e+11 | I44: 70642173.05 | J44: 70.64217305 | K44: 0.07064217305
B45: 0.512704 | C45: 0.51274 | D45: 0.07635 | E45: 1.000471513 | F45: 106000000000 | G45: 6.537735849e-12 | H45: 3.522626263e+11 | I45: 72117717.28 | J45: 72.11771728 | K45: 0.07211771728
B46: 0.512677 | C46: 0.512713 | D46: 0.07657 | E46: 1.000470158 | F46: 106000000000 | G46: 6.537735849e-12 | H46: 3.522626263e+11 | I46: 71910558.22 | J46: 71.91055822 | K46: 0.07191055822
B47: 0.512718 | C47: 0.512753 | D47: 0.07612 | E47: 1.0004598 | F47: 106000000000 | G47: 6.537735849e-12 | H47: 3.522626263e+11 | I47: 70326713 | J47: 70.326713 | K47: 0.070326713
B48: 0.51263 | C48: 0.512666 | D48: 0.07646 | E48: 1.000470834 | F48: 106000000000 | G48: 6.537735849e-12 | H48: 3.522626263e+11 | I48: 72013988.77 | J48: 72.01398877 | K48: 0.07201398877
B49: 0.512669 | C49: 0.512703 | D49: 0.07198 | E49: 1.000472353 | F49: 106000000000 | G49: 6.537735849e-12 | H49: 3.522626263e+11 | I49: 72246265.8 | J49: 72.2462658 | K49: 0.0722462658
B50: 0.512678 | C50: 0.512713 | D50: 0.07631 | E50: 1.000458655 | F50: 106000000000 | G50: 6.537735849e-12 | H50: 3.522626263e+11 | I50: 70151650.59 | J50: 70.15165059 | K50: 0.07015165059
B51: 0.51263 | C51: 0.512666 | D51: 0.07402 | E51: 1.000486355 | F51: 106000000000 | G51: 6.537735849e-12 | H51: 3.522626263e+11 | I51: 74387285.45 | J51: 74.38728545 | K51: 0.07438728545
B52: 0.512641 | C52: 0.512677 | D52: 0.07593 | E52: 1.000474121 | F52: 106000000000 | G52: 6.537735849e-12 | H52: 3.522626263e+11 | I52: 72516535.45 | J52: 72.51653545 | K52: 0.07251653545
B53: 0.512671 | C53: 0.512705 | D53: 0.07348 | E53: 1.000462711 | F53: 106000000000 | G53: 6.537735849e-12 | H53: 3.522626263e+11 | I53: 70771791.98 | J53: 70.77179198 | K53: 0.07077179198
B54: 0.51265 | C54: 0.512684 | D54: 0.07367 | E54: 1.000461518 | F54: 106000000000 | G54: 6.537735849e-12 | H54: 3.522626263e+11 | I54: 70589308.76 | J54: 70.58930876 | K54: 0.07058930876
B55: 0.512693 | C55: 0.512728 | D55: 0.07409 | E55: 1.000472398 | F55: 106000000000 | G55: 6.537735849e-12 | H55: 3.522626263e+11 | I55: 72253147.34 | J55: 72.25314734 | K55: 0.07225314734
B56: 0.512768 | C56: 0.512838 | D56: 0.14967 | E56: 1.000467696 | F56: 106000000000 | G56: 6.537735849e-12 | H56: 3.522626263e+11 | I56: 71534018.43 | J56: 71.53401843 | K56: 0.07153401843
B57: 0.512783 | C57: 0.512853 | D57: 0.14965 | E57: 1.000467758 | F57: 106000000000 | G57: 6.537735849e-12 | H57: 3.522626263e+11 | I57: 71543576.37 | J57: 71.54357637 | K57: 0.07154357637
B58: 0.512757 | C58: 0.512827 | D58: 0.14953 | E58: 1.000468133 | F58: 106000000000 | G58: 6.537735849e-12 | H58: 3.522626263e+11 | I58: 71600977.7 | J58: 71.6009777 | K58: 0.0716009777
B59: 0.512811 | C59: 0.513075 | D59: 0.56442 | E59: 1.000467737 | F59: 106000000000 | G59: 6.537735849e-12 | H59: 3.522626263e+11 | I59: 71540317.69 | J59: 71.54031769 | K59: 0.07154031769
B60: 0.512787 | C60: 0.512857 | D60: 0.14951 | E60: 1.000468196 | F60: 106000000000 | G60: 6.537735849e-12 | H60: 3.522626263e+11 | I60: 71610553.54 | J60: 71.61055354 | K60: 0.07161055354
B61: 0.512744 | C61: 0.513001 | D61: 0.55007 | E61: 1.000467213 | F61: 106000000000 | G61: 6.537735849e-12 | H61: 3.522626263e+11 | I61: 71460262.81 | J61: 71.46026281 | K61: 0.07146026281
B62: 0.512775 | C62: 0.513025 | D62: 0.53316 | E62: 1.000468902 | F62: 106000000000 | G62: 6.537735849e-12 | H62: 3.522626263e+11 | I62: 71718554.6 | J62: 71.7185546 | K62: 0.0717185546
B63: 0.512682 | C63: 0.512929 | D63: 0.52831 | E63: 1.000467529 | F63: 106000000000 | G63: 6.537735849e-12 | H63: 3.522626263e+11 | I63: 71508472.18 | J63: 71.50847218 | K63: 0.07150847218
B64: 0.512689 | C64: 0.512759 | D64: 0.14992 | E64: 1.000466916 | F64: 106000000000 | G64: 6.537735849e-12 | H64: 3.522626263e+11 | I64: 71414759.28 | J64: 71.41475928 | K64: 0.07141475928
B65: 0.512729 | C65: 0.512799 | D65: 0.14908 | E65: 1.000469547 | F65: 106000000000 | G65: 6.537735849e-12 | H65: 3.522626263e+11 | I65: 71817055.5 | J65: 71.8170555 | K65: 0.0718170555
B66: 0.512744 | C66: 0.512813 | D66: 0.1482 | E66: 1.000465587 | F66: 106000000000 | G66: 6.537735849e-12 | H66: 3.522626263e+11 | I66: 71211590.48 | J66: 71.21159048 | K66: 0.07121159048
B67: 0.512737 | C67: 0.512806 | D67: 0.1485 | E67: 1.000464646 | F67: 106000000000 | G67: 6.537735849e-12 | H67: 3.522626263e+11 | I67: 71067762.09 | J67: 71.06776209 | K67: 0.07106776209
B68: 0.512739 | C68: 0.512809 | D68: 0.14911 | E68: 1.000469452 | F68: 106000000000 | G68: 6.537735849e-12 | H68: 3.522626263e+11 | I68: 71802609.74 | J68: 71.80260974 | K68: 0.07180260974
B69: 0.512742 | C69: 0.512812 | D69: 0.14889 | E69: 1.000470146 | F69: 106000000000 | G69: 6.537735849e-12 | H69: 3.522626263e+11 | I69: 71908680.42 | J69: 71.90868042 | K69: 0.07190868042
B70: 0.512744 | C70: 0.512985 | D70: 0.51483 | E70: 1.000468116 | F70: 106000000000 | G70: 6.537735849e-12 | H70: 3.522626263e+11 | I70: 71598256.4 | J70: 71.5982564 | K70: 0.0715982564
B71: 0.512763 | C71: 0.513021 | D71: 0.55171 | E71: 1.000467637 | F71: 106000000000 | G71: 6.537735849e-12 | H71: 3.522626263e+11 | I71: 71525055.55 | J71: 71.52505555 | K71: 0.07152505555
I72: Average | J72: =AVERAGE(J40:J71) -> 71.65552197
I73: Maximum | J73: =MAX(J40:J72) -> 74.38728545
I74: Minimum | J74: =MIN(J40:J73) -> 69.6678933
I75: Difference | J75: =(J73-ABS(J74)) -> 4.719392149
B76: Rubidium_055.pdf | E76: Age
A77: Sample | B77: 206Pb/204Pb | C77: 207Pb/204Pb | D77: 207Pb/206Pb | E77: 207Pb/206Pb
B78: 19.137 | C78: 15.631 | D78: =(C78/B78) -> 0.8167946909 | E78: =[1]!AgePb76(D78) -> 4951.307166
B79: 19.226 | C79: 15.645 | D79: 0.813741808 | E79: =[1]!AgePb76(D79) -> 4945.980295 | H79: Dating | I79: Age | J79: Age | K79: Age
B80: 19.323 | C80: 15.651 | D80: 0.8099673964 | E80: =[1]!AgePb76(D80) -> 4939.364994 | H80: Summary | I80: 87Rb/86Sr | J80: 147Sm/144Nd | K80: 207Pb/206Pb
B81: 19.699 | C81: 15.671 | D81: 0.7955226154 | E81: =[1]!AgePb76(D81) -> 4913.741594 | H81: Average | I81: 106.8730064 | J81: 71.65552197 | K81: 4963.068237
B82: 19.726 | C82: 15.675 | D82: 0.7946365203 | E82: =[1]!AgePb76(D82) -> 4912.153678 | H82: Maximum | I82: 410.6982684 | J82: 74.38728545 | K82: 5044.178765
B83: 19.767 | C83: 15.689 | D83: 0.793696565 | E83: =[1]!AgePb76(D83) -> 4910.467182 | H83: Minimum | I83: -33.54663519 | J83: 69.6678933 | K83: 4906.957856
B84: 19.767 | C84: 15.686 | D84: 0.7935447969 | E84: =[1]!AgePb76(D84) -> 4910.194675 | H84: Difference | I84: 444.2449036 | J84: 4.719392149 | K84: 137.220909
B85: 19.703 | C85: 15.672 | D85: 0.7954118662 | E85: =[1]!AgePb76(D85) -> 4913.54323
B86: 19.817 | C86: 15.69 | D86: 0.7917444618 | E86: =[1]!AgePb76(D86) -> 4906.957856
B87: 19.778 | C87: 15.665 | D87: 0.7920416625 | E87: =[1]!AgePb76(D87) -> 4907.492732
B88: 19.815 | C88: 15.691 | D88: 0.7918748423 | E88: =[1]!AgePb76(D88) -> 4907.19253
B89: 17.964 | C89: 15.6 | D89: 0.8684034736 | E89: =[1]!AgePb76(D89) -> 5038.286266
B90: 18.411 | C90: 15.637 | D90: 0.8493292054 | E90: =[1]!AgePb76(D90) -> 5006.795141
B91: 18.534 | C91: 15.642 | D91: 0.8439624474 | E91: =[1]!AgePb76(D91) -> 4997.799264
B92: 18.074 | C92: 15.594 | D92: 0.8627863229 | E92: =[1]!AgePb76(D92) -> 5029.089389
B93: 17.886 | C93: 15.597 | D93: 0.8720228111 | E93: =[1]!AgePb76(D93) -> 5044.178765
B94: 18.147 | C94: 15.625 | D94: 0.8610238607 | E94: =[1]!AgePb76(D94) -> 5026.190631
B95: 19.024 | C95: 15.669 | D95: 0.8236438183 | E95: =[1]!AgePb76(D95) -> 4963.181343
B96: 18.68 | C96: 15.648 | D96: 0.8376873662 | E96: =[1]!AgePb76(D96) -> 4987.203449
B97: 18.17 | C97: 15.63 | D97: 0.8602091359 | E97: =[1]!AgePb76(D97) -> 5024.848506
B98: 18.667 | C98: 15.651 | D98: 0.8384314566 | E98: =[1]!AgePb76(D98) -> 4988.464285
C99: =COUNT(C78:C98) -> 21 | D99: Average | E99: =AVERAGE(E73:E98) -> 4963.068237
D100: Maximum | E100: =MAX(E73:E99) -> 5044.178765
D101: Minimum | E101: =MIN(E73:E100) -> 4906.957856
D102: Difference | E102: =(E100-ABS(E101)) -> 137.220909

Sheet Rb-Sr _17
A1: Rubidium | B1: TABLE 1. | K1: Rubidium_057.pdf
A2: Strontium | B2: Initial | C2: Today | D2: Today | E2: The Ratio | F2: Half | G2: Decay | H2: 2.303/Delta | I2: Age | J2: Age | K2: Age
A3: Dating | B3: 87Sr/86Sr | C3: 87Sr/86Sr | D3: 87Rb/86Sr | E3: Plus One | F3: Life | G3: Constant | H3: Constant | I3: Years | J3: Million Years | K3: Billion Years
A4: TABLE 1 | B4: 0.70719 | C4: 0.70758 | D4: 0.192 | E4: =1+((C4-B4)/D4) -> 1.00203125 | F4: 48800000000 | G4: =(0.693/F4) -> 1.420081967e-11 | H4: =(2.303/G4) -> 1.621737374e+11 | I4: =(LOG(E4))*(H4) -> 142918190 | J4: =(I4/1000000) -> 142.91819 | K4: =(J4/1000) -> 0.14291819
B5: 0.70643 | C5: 0.706532 | D5: 0.0518 | E5: 1.001969112 | F5: 48800000000 | G5: 1.420081967e-11 | H5: 1.621737374e+11 | I5: 138550472.7 | J5: 138.5504727 | K5: 0.1385504727
B6: 0.70704 | C6: 0.707198 | D6: 0.0768 | E6: =1+((C6-B6)/D6) -> 1.002057292 | F6: 48800000000 | G6: =(0.693/F6) -> 1.420081967e-11 | H6: =(2.303/G6) -> 1.621737374e+11 | I6: =(LOG(E6))*(H6) -> 144748593 | J6: =(I6/1000000) -> 144.748593 | K6: =(J6/1000) -> 0.144748593
B7: 0.70635 | C7: 0.706585 | D7: 0.1149 | E7: 1.002045257 | F7: 48800000000 | G7: 1.420081967e-11 | H7: 1.621737374e+11 | I7: 143902694.6 | J7: 143.9026946 | K7: 0.1439026946
B8: 0.70649 | C8: 0.706597 | D8: 0.0534 | E8: 1.002003745 | F8: 48800000000 | G8: 1.420081967e-11 | H8: 1.621737374e+11 | I8: 140984903.8 | J8: 140.9849038 | K8: 0.1409849038
B9: 0.70726 | C9: 0.707526 | D9: 0.1291 | E9: 1.002060418 | F9: 48800000000 | G9: 1.420081967e-11 | H9: 1.621737374e+11 | I9: 144968351.5 | J9: 144.9683515 | K9: 0.1449683515
B10: 0.70646 | C10: 0.706607 | D10: 0.0731 | E10: 1.002010944 | F10: 48800000000 | G10: 1.420081967e-11 | H10: 1.621737374e+11 | I10: 141490893.5 | J10: 141.4908935 | K10: 0.1414908935
B11: 0.70971 | C11: 0.710295 | D11: 0.2875 | E11: 1.002034783 | F11: 48800000000 | G11: 1.420081967e-11 | H11: 1.621737374e+11 | I11: 143166491 | J11: 143.166491 | K11: 0.143166491
B12: 0.70869 | C12: 0.709069 | D12: 0.1859 | E12: 1.002038731 | F12: 48800000000 | G12: 1.420081967e-11 | H12: 1.621737374e+11 | I12: 143443980.4 | J12: 143.4439804 | K12: 0.1434439804
B13: 0.70861 | C13: 0.708977 | D13: 0.1782 | E13: 1.002059484 | F13: 48800000000 | G13: 1.420081967e-11 | H13: 1.621737374e+11 | I13: 144902665.1 | J13: 144.9026651 | K13: 0.1449026651
B14: 0.70886 | C14: 0.709258 | D14: 0.1965 | E14: 1.002025445 | F14: 48800000000 | G14: 1.420081967e-11 | H14: 1.621737374e+11 | I14: 142510185.3 | J14: 142.5101853 | K14: 0.1425101853
B15: 0.70885 | C15: 0.709239 | D15: 0.1905 | E15: 1.002041995 | F15: 48800000000 | G15: 1.420081967e-11 | H15: 1.621737374e+11 | I15: 143673417.2 | J15: 143.6734172 | K15: 0.1436734172
I16: Average | J16: =AVERAGE(J4:J15) -> 142.9384032
I17: Maximum | J17: =MAX(J4:J16) -> 144.9683515
I18: Minimum | J18: =MIN(J4:J17) -> 138.5504727
I19: Difference | J19: =(J17-ABS(J18)) -> 6.417878837
E20: Age
B21: 206Pb/204Pb | C21: 207Pb/204Pb | D21: 207Pb/206Pb | E21: 207Pb/206Pb
B22: 18.449 | C22: 15.583 | D22: =(C22/B22) -> 0.8446528267 | E22: =[1]!AgePb76($D$22) -> 4998.959893 | I22: Dating | J22: Age | K22: Age | L22: Age
B23: 17.687 | C23: 15.462 | D23: =(C23/B23) -> 0.8742013909 | E23: =[1]!AgePb76($D$23) -> 5047.713125 | I23: Summary | J23: 87Rb/86Sr | K23: 207Pb/206Pb | L23: 147Sm/144Nd
B24: 17.955 | C24: 15.529 | D24: 0.8648844333 | E24: =[1]!AgePb76($D$24) -> 5032.53201 | I24: Average | J24: 142.9384032 | K24: 5051.953617 | L24: 130.5073945
B25: 17.017 | C25: 15.498 | D25: 0.9107363225 | E25: =[1]!AgePb76($D$25) -> 5105.630663 | I25: Maximum | J25: 144.9683515 | K25: 5106.88286 | L25: 144.3818787
B26: 17.719 | C26: 15.503 | D26: 0.8749365088 | E26: =[1]!AgePb76($D$26) -> 5048.903614 | I26: Minimum | J26: 138.5504727 | K26: 4998.959893 | L26: -10.82849245
B27: 17.988 | C27: 15.571 | D27: 0.865632644 | E27: =[1]!AgePb76($D$27) -> 5033.757545 | I27: Difference | J27: 6.417878837 | K27: 107.9229675 | L27: 155.2103712
B28: 17.048 | C28: 15.54 | D28: 0.9115438761 | E28: =[1]!AgePb76($D$28) -> 5106.88286
B29: 17.528 | C29: 15.558 | D29: 0.887608398 | E29: =[1]!AgePb76($D$29) -> 5069.259961
B30: 17.992 | C30: 15.467 | D30: 0.8596598488 | E30: =[1]!AgePb76($D$30) -> 5023.942885
D31: Average | E31: =AVERAGE(E22:E30) -> 5051.953617
D32: Maximum | E32: =MAX(E22:E31) -> 5106.88286
D33: Minimum | E33: =MIN(E22:E32) -> 4998.959893
D34: Difference | E34: =(E32-ABS(E33)) -> 107.9229675
A37: Neodymium | K37: Rubidium_057.pdf
A38: Samarium | B38: Initial | C38: Today | D38: Today | E38: The Ratio | F38: Half | G38: Decay | H38: 2.303/Delta | I38: Age | J38: Age | K38: Age
A39: Dating | B39: 143Nd/144Nd | C39: 143Nd/144Nd | D39: 147Sm/144Nd | E39: Plus One | F39: Life | G39: Constant | H39: Constant | I39: Years | J39: Million Years | K39: Billion Years
B40: 0.512197 | C40: 0.512347 | D40: 0.1604 | E40: =1+((C40-B40)/D40) -> 1.000935162 | F40: 106000000000 | G40: =(0.693/F40) -> 6.537735849e-12 | H40: =(2.303/G40) -> 3.522626263e+11 | I40: =(LOG(E40))*(H40) -> 142999588 | J40: =(I40/1000000) -> 142.999588 | K40: =(J40/1000) -> 0.142999588
B41: 0.512179 | C41: 0.512316 | D41: 0.1467 | E41: =1+((C41-B41)/D41) -> 1.000933879 | F41: 106000000000 | G41: 6.537735849e-12 | H41: =(2.303/G41) -> 3.522626263e+11 | I41: =(LOG(E41))*(H41) -> 142803424.7 | J41: =(I41/1000000) -> 142.8034247 | K41: =(J41/1000) -> 0.1428034247
B42: 0.512121 | C42: 0.512243 | D42: 0.1303 | E42: 1.000936301 | F42: 106000000000 | G42: 6.537735849e-12 | H42: 3.522626263e+11 | I42: 143173637.5 | J42: 143.1736375 | K42: 0.1431736375
B43: 0.512137 | C43: 0.512269 | D43: 0.1398 | E43: =1+((C43-B43)/D43) -> 1.000944206 | F43: 106000000000 | G43: =(0.693/F43) -> 6.537735849e-12 | H43: =(2.303/G43) -> 3.522626263e+11 | I43: =(LOG(E43))*(H43) -> 144381878.7 | J43: =(I43/1000000) -> 144.3818787 | K43: =(J43/1000) -> 0.1443818787
B44: 0.512175 | C44: 0.512319 | D44: 0.1538 | E44: 1.000936281 | F44: 106000000000 | G44: 6.537735849e-12 | H44: 3.522626263e+11 | I44: 143170586.8 | J44: 143.1705868 | K44: 0.1431705868
B45: 0.512173 | C45: 0.512338 | D45: 0.1768 | E45: 1.000933258 | F45: 106000000000 | G45: 6.537735849e-12 | H45: 3.522626263e+11 | I45: 142708548.1 | J45: 142.7085481 | K45: 0.1427085481
B46: 0.512227 | C46: 0.512369 | D46: 0.1518 | E46: 1.000935441 | F46: 106000000000 | G46: 6.537735849e-12 | H46: 3.522626263e+11 | I46: 143042273.2 | J46: 143.0422732 | K46: 0.1430422732
B47: 0.512091 | C47: 0.512185 | D47: 0.1001 | E47: 1.000939061 | F47: 106000000000 | G47: 6.537735849e-12 | H47: 3.522626263e+11 | I47: 143595497.1 | J47: 143.5954971 | K47: 0.1435954971
B48: 0.512105 | C48: 0.512201 | D48: 0.1018 | E48: 1.000943026 | F48: 106000000000 | G48: 6.537735849e-12 | H48: 3.522626263e+11 | I48: 144201454.2 | J48: 144.2014542 | K48: 0.1442014542
B49: 0.512112 | C49: 0.512205 | D49: 0.0989 | E49: 1.000940344 | F49: 106000000000 | G49: 6.537735849e-12 | H49: 3.522626263e+11 | I49: 143791569.4 | J49: 143.7915694 | K49: 0.1437915694
B50: 0.51211 | C50: 0.512103 | D50: 0.0989 | E50: 0.9999292214 | F50: 106000000000 | G50: 6.537735849e-12 | H50: 3.522626263e+11 | I50: -10828492.45 | J50: -10.82849245 | K50: -0.01082849245
B51: 0.512115 | C51: 0.512231 | D51: 0.124 | E51: 1.000935484 | F51: 106000000000 | G51: 6.537735849e-12 | H51: 3.522626263e+11 | I51: 143048769.2 | J51: 143.0487692 | K51: 0.1430487692
I52: Average | J52: =AVERAGE(J40:J51) -> 130.5073945
I53: Maximum | J53: =MAX(J40:J52) -> 144.3818787
I54: Minimum | J54: =MIN(J40:J53) -> -10.82849245
I55: Difference | J55: =(J53+ABS(J54)) -> 155.2103712

Sheet Rb-Sr _18
A1: Table 1 | B1: Age | D1: Table 2 | E1: Age
A2: 207Pb/P06Pb | B2: 207Pb/P06Pb | D2: 207Pb/P06Pb | E2: 207Pb/P06Pb
A3: 0.86254 | B3: =[1]!AgePb76($A$3) -> 5028.684635 | D3: 0.61799 | E3: =[1]!AgePb76($D$3) -> 4550.87526
A4: 0.90445 | B4: =[1]!AgePb76($A$4) -> 5095.842628 | D4: 0.66878 | E4: =[1]!AgePb76($D$4) -> 4665.053798
A5: 0.90347 | B5: =[1]!AgePb76($A$5) -> 5094.310237 | D5: 0.57966 | E5: =[1]!AgePb76($D$5) -> 4457.823633
A6: 0.84337 | B6: =[1]!AgePb76($A$6) -> 4996.802468 | D6: 0.89527 | E6: =[1]!AgePb76($D$6) -> 5081.418707
A7: 0.92997 | B7: =[1]!AgePb76($A$7) -> 5135.139442 | D7: 0.83101 | E7: =[1]!AgePb76($D$7) -> 4975.835331
A8: 0.80426 | B8: =[1]!AgePb76($A$8) -> 4929.299268 | D8: 0.59073 | E8: =[1]!AgePb76($D$8) -> 4485.361732
A9: 0.69289 | B9: =[1]!AgePb76($A$9) -> 4716.043549 | D9: 0.69288 | E9: =[1]!AgePb76($D$9) -> 4716.022796
A10: 0.82776 | B10: =[1]!AgePb76($A$10) -> 4970.267079 | D10: 0.63716 | E10: =[1]!AgePb76($D$10) -> 4595.113899
A11: 0.82417 | B11: =[1]!AgePb76($A$11) -> 4964.089226 | D11: 0.60721 | E11: =[1]!AgePb76($D$11) -> 4525.34625
A12: 0.70092 | B12: =[1]!AgePb76($A$12) -> 4732.605811 | D12: 0.62804 | E12: =[1]!AgePb76($D$12) -> 4574.248419
A13: 0.82239 | B13: =[1]!AgePb76($A$13) -> 4961.015495 | D13: 0.60905 | E13: =[1]!AgePb76($D$13) -> 4529.737999
A14: 0.82864 | B14: =[1]!AgePb76($A$14) -> 4971.777082 | D14: 0.64797 | E14: =[1]!AgePb76($D$14) -> 4619.43494
A15: 0.82168 | B15: =[1]!AgePb76($A$15) -> 4959.787483 | D15: 0.62095 | E15: =[1]!AgePb76($D$15) -> 4557.801442
A16: 0.81617 | B16: =[1]!AgePb76($A$16) -> 4950.218889 | D16: 0.71279 | E16: =[1]!AgePb76($D$16) -> 4756.720442
A17: 0.78098 | B17: =[1]!AgePb76($A$17) -> 4887.439479 | D17: 0.67864 | E17: =[1]!AgePb76($D$17) -> 4686.140544
A18: 0.76031 | B18: =[1]!AgePb76($A$18) -> 4849.143606 | D18: 0.7634 | E18: =[1]!AgePb76($D$18) -> 4854.938565
A19: 0.73511 | B19: =[1]!AgePb76($A$19) -> 4800.924936 | D19: 0.60309 | E19: =[1]!AgePb76($D$19) -> 4515.46047
A20: 0.79975 | B20: =[1]!AgePb76($A$20) -> 4921.291404 | D20: 0.59863 | E20: =[1]!AgePb76($D$20) -> 4504.676721
A21: 0.80387 | B21: =[1]!AgePb76($A$21) -> 4928.608682 | D21: 0.83222 | E21: =[1]!AgePb76($D$21) -> 4977.902524
A22: 0.88416 | B22: =[1]!AgePb76($A$22) -> 5063.751078 | D22: 0.87123 | E22: =[1]!AgePb76($D$22) -> 5042.890244
A23: 0.83623 | B23: =[1]!AgePb76($A$23) -> 4984.730539 | D23: 0.85761 | E23: =[1]!AgePb76($D$23) -> 5020.557821
A24: 0.8032 | B24: =[1]!AgePb76($A$24) -> 4927.421457 | D24: 0.70645 | E24: =[1]!AgePb76($D$24) -> 4743.894202
A25: 0.79195 | B25: =[1]!AgePb76($A$25) -> 4907.327789 | D25: 0.61869 | E25: =[1]!AgePb76($D$25) -> 4552.516419
A26: 0.85582 | B26: =[1]!AgePb76($A$26) -> 5017.594832 | D26: 0.64523 | E26: =[1]!AgePb76($D$26) -> 4613.311696
A27: 0.84245 | B27: =[1]!AgePb76($A$27) -> 4995.253088 | D27: 0.67112 | E27: =[1]!AgePb76($D$27) -> 4670.088133
A28: 0.6205 | B28: =[1]!AgePb76($A$28) -> 4556.750763 | D28: 0.63307 | E28: =[1]!AgePb76($D$28) -> 4585.796354
A29: 0.87988 | B29: =[1]!AgePb76($A$29) -> 5056.881908 | D29: 0.83497 | E29: =[1]!AgePb76($D$29) -> 4982.588834
A30: Average | B30: =AVERAGE(B3:B29) -> 4940.851958 | D30: 0.70988 | E30: =[1]!AgePb76($D$30) -> 4750.848516
A31: Maximum | B31: =MAX(B3:B30) -> 5135.139442 | D31: 0.84486 | E31: =[1]!AgePb76($D$31) -> 4999.307985
A32: Minimum | B32: =MIN(B3:B31) -> 4556.750763 | D32: 0.5961 | E32: =[1]!AgePb76($D$32) -> 4498.521018
A33: Difference | B33: =(B31-ABS(B32)) -> 578.388679 | D33: 0.54602 | E33: =[1]!AgePb76($D$33) -> 4370.528155
D34: 0.58831 | E34: =[1]!AgePb76($D$34) -> 4479.389358
D35: Average | E35: =AVERAGE(E3:E34) -> 4685.629756
D36: Maximum | E36: =MAX(E3:E35) -> 5081.418707
D37: Minimum | E37: =MIN(E3:E36) -> 4370.528155
D38: Difference | E38: =(E36-ABS(E37)) -> 710.8905522
A42: 207Pb/P06Pb | B42: Table 1 | C42: Table 2
A43: Dating | B43: Age Summary | C43: Age Summary
A44: Average | B44: 4940.851958 | C44: 4685.629756
A45: Maximum | B45: 5135.139442 | C45: 5081.418707
A46: Minimum | B46: 4556.750763 | C46: 4370.528155
A47: Difference | B47: 578.388679 | C47: 710.8905522
